Workbook

Sheet Deckblatt
B14: Voraussetzung für die Nutzung des Tools ist Microsoft® Excel® unter Microsoft 365.
B15: Das Tool enthält VBA-Makros. Bitte speichern Sie als erstes das Tool auf ihrem Computer ab.
B16: Die Makros müssen aktiviert sein, damit das Tool funktioniert. Wenden Sie sich bitte an Ihren Systemadministrator, wenn die Makro-Ausführung bei Ihnen gesperrt ist.
B17: Das ÖkoWin-Tool verfügt über einen Schreibschutz, um versehentliche Änderungen zu vermeiden.
B18: Der Schreibschutz kann von der Anwenderin / vom Anwender aufgehoben werden. Das Passwort lautet „schnee“.
B20: Entwickelt von:
C21: Ran Liu, Dr. Dietlinde Quack, Öko-Institut, Berlin/Freiburg
C22: Dr. Franz Götzfried, Salt Research + Consulting, Bad Wimpfen
B25: Impressum
B26: Das Berechnungswerkzeug "ÖkoWin-Tool" wurde im Rahmen des Forschungsprojektes "ÖkoWin: Ermittlung von Grundlagen und Bewertungsmethoden einer Ökobilanz des Straßenwinterdienstes" entwickelt. Das Projekt wurde im Auftrag der Bundesanstalt für Straßenwesen (bast) von Öko-Institut (Projektleitung) in Kooperation mit Salt Research + Consulting und Hydrotox durchgeführt (ÖkoWin - FE 03.0617/2021/MGB). Die konzeptionelle und technische Realisierung des Tools erfolgte durch Öko-Institut und Salt Research + Consulting.
B27: Dieses Tool ist im elektronischen BASt-Archiv ELBA unter https://bast.opus.hbz-nrw.de beim Bericht V 403 abrufbar

Sheet Einleitung
C7: Ziel des Tools:
C8: Das Tool ermöglicht die Erstellung einer orientierenden Ökobilanz des Straßenwinterdienstes. Dabei können einzelne Einsätze und Zeiträume sowie Gebiete, in denen der Winterdienst erfolgt ist, abgebildet werden. Das Tool kann darüber hinaus auch für die Planung und für Investitionsentscheidungen im Rahmen des Winterdienstes genutzt werden. Mit dem Tool können die potenziellen Umweltauswirkungen des Winterdienstes entlang des Lebensweges abgebildet und darüber hinaus die besonders umweltrelevanten Prozesse innerhalb der Systemgrenzen identifiziert werden. Es soll außerdem die Ermittlung der Beiträge der unterschiedlichen Prozesse zu den potenziellen Umweltauswirkungen des Winterdienstes ermöglichen.
C9: Ziel des Tools ist es nicht, die Umweltauswrkungen des Winterdienstes unterschiedlicher Systeme miteinander zu vergleichen, beispielsweise unterschiedlicher Straßenmeisterreien.
C11: Zielgruppen des Tools
C12: Das Tool adressiert vor allem zwei Zielgruppen: Zum einen ist das Tool für Straßen- und Autobahnmeistereien sowie andere Winterdienstverantwortliche gedacht, d.h. Organisationen oder Organisationseinheiten, die den Winterdienst durchführen. Zum anderen kann das Tool auch im Rahmen von Beschaffungsprozessen genutzt werden. Verantwortliche im Rahmen der öffentlichen Beschaffung können mit dem Tool bei Entscheidungen zu Streumitteln oder der Streutechnik unterstützt werden.
C14: Struktur des Tools:
C15: Das Tool besteht aus 6 Arbeitsblättern:
C16: • Blatt "Einleitung": Beschreibung der allgemeinen Eckpunkte und Rahmenbedingungen der Ökobilanzierung mit dem ÖkoWin-Tool
C17: • Blatt "Eingabe Untersuchungsrahmen": Eingabe von allgemeinen Informationen, zur funktionellen Einheit und zur Beschreibung des Winterdienstes.
C18: • Blatt "Eingabe spezifische Daten": Eingabe von spezifischen Inventardaten zum Winterdienst, jeweils mit Bezug zur funktionellen Einheit. Die eingegebenen Daten werden automatisch mit den hintergelegten Emissionsfaktoren verknüpft
C19: • Blatt "Ergebnisse": Überblick über die Gesamtergebnisse sowie die Beiträge der unterschiedlichen Prozesse zu den Umweltauswirkungen (tabellarisch, Grafik). Es besteht die Möglichkeit, die Ergebnisse als pdf-Datei ausgeben zu lassen.
C20: • Blatt "Emissionsfaktoren": Dokumentation der hinterlegten Emissionsfaktoren und der voreingestellten Standardwerte
C21: • Blatt "Quellen": Dokumentation der verwendeten Literaturquellen
C23: Systemgrenzen der Bilanz
C24: Mit der Festlegung der Systemgrenzen wird bestimmt, welche Prozesse in der Berechnung der Ökobilanz berücksichtigt werden und welche nicht
C25: Grundsätzlich wird in einer Ökobilanz angestrebt, den gesamten Lebensweg – von der Rohstoffgewinnung bis zur Entsorgung – einzubeziehen und mit entsprechenden Prozessmodulen abzubilden.
C26: Das ÖkoWin-Tool berücksichtigt die nachfolgend aufgeführten Prozesse:
C27: • Herstellung der Streumittel einschließlich Rohstoffabbau
C28: • Transport der Streumittel vom Hersteller/Lieferanten zum Zentrallager oder direkt zur Meisterei/zum Bauhof und Transport der Streumittel vom Zentrallager zur Meisterei/zum Bauhof
C29: • Soleherstellung (Verdünnung angelieferter konzentrierter Sole auf Anwendungskonzentration oder Herstellung von Sole aus Trockensalz)
C30: • Beladung der Streufahrzeuge
C31: • Bereitstellung von Strom, Wärme und Kraftstoffen inkl. der jeweiligen Vorketten
C32: • Ausbringung der Streumittel (inkl. etwaiger Leerfahrten)
C33: • Kontrollfahrten
C34: • Fahrzeug- und Gerätereinigung (inkl. Vorkette Wasser)
C35: Hinweis: nicht alle Prozesse sind in allen Fällen relevant (beispielsweise stellen nicht alle Meistereien/Bauhöfe Sole her)
C36: Nicht berücksichtigt sind:
C37: • Die Herstellung und die Entsorgung von Kapitalgütern in der Meisterei / im Bauhof (z.B. Gebäude und Anlagen) werden in dieser Ökobilanz nicht berücksichtigt, sie liegen außerhalb der Systemgrenzen. Die verwendeten Hintergrunddatenbanken sind ÖkobauDat, ELCD, und GEMIS5.1.
C38: • Eine etwaige Verpackung von trockenen Streumitteln
C39: • Der manuelle Winterdienst. Es wird angenommen, dass dieser für den Anwendungsbereich des ÖkoWin-Tools (Straßenwinterdienst) keine Rolle spielt
C40: • Der Verbleib der Streumittel in der Umwelt nach der Ausbringung und deren Umweltauswirkungen
C41: Datenqualität
D42: Bei der Datenqualität der spezifischen Daten werden drei Kategorien unterschieden:
D43: Datenqualität | E43: Beispiele
D44: gemessen | E44: Als Messwerte gelten z.B. Stromrechnungen, Lieferscheine, abgelesene Werte an Tanksäulen
D45: berechnet | E45: Der Wasserverbrauch für die Herstellung der Anwendungskonzentration von Sole kann aus der Ausgangskonzentration der konzentrierten Sole berechnet werden.
D46: abgeschätzt | E46: Auf Basis von Literaturquellen, Informationen aus dem Internet (z.B. Herstellerangaben) oder Aussagen von Expert*innen, z.B. zum Wasserverbrauch für die Fahrzeug- und Streumaschinenreinigung
C48: Berücksichtigte Umweltauswirkungen
D50: Wirkungskategorie (Deutsch) | E50: Wirkungskategorie (Englisch) | F50: Abkürzung | G50: Wirkungsindikator | H50: Erläuterung
D51: Kumulierter Energie Aufwand | E51: Cumulative Energy Demand | F51: KEA | G51: MJ | H51: Energie wird vor allem für Bereitstellungsprozesse (Vorketten) aufgewendet. Im Fall des Straßenwinterdienstes z.B. für die Bereitstellung von Strom, Kraftstoffen und Streumitteln.
D52: Treibhauspotenzial | E52: Global Warming Potential | F52: GWP | G52: kg CO2-Äquivalent | H52: Klimarelevante Emissionen resultieren vor allem aus Bereitstellungsprozessen (Vorketten). Im Fall des Straßenwinterdienstes z.B. für die Bereitstellung von Strom, Kraftstoffen und Streumitteln.
D53: Versauerungspotenzial | E53: Acidification Potential | F53: AP | G53: Mol H+- Äquivalent | H53: Verkehr ist ein relevanter Verursacher von versauerenden Emissionen.
D54: Ozonabbaupotenzial | E54: Ozone Depletion Potential | F54: ODP | G54: kg FCKW-11-Äquivalent | H54: Die Produktion von Kraftstoffen trägt potenziell zur Emission ozonabbauender Substanzen bei.
D55: Photooxidantienpotenzial | E55: Photochemical Ozone Potential | F55: POCP | G55: kg NMVOC-Äquivalent | H55: Verkehr ist ein relevanter Verursacher der bodennahen, photochemischen Ozonbildung.
C57: Erläuterungen zur Berechnung der Umweltauswirkungen
C58: Die Berechnung der Umweltwirkungspotenziale im ÖkoWin-Tool basiert auf der Verknüpfung der von Ihnen eingegebenen spezifischen Daten mit den im ÖkoWin-Tool hinterlegten Emissionsfaktoren und vordefinierten Systemgrenzen. So wird beispielsweise der von Ihnen angegebene spezifische Verbrauch an Streumitteln verknüpft mit den Emissionsfaktoren zur Herstellung von Streumitteln. Liegt der spezifische Verbrauch von Streumitteln für die angegebene funktionelle Einheit bei 1 Tonne, dann wird das Treibhauspotenzials wie folgt berechnet:
E59: GHG-EmissionenHerstellung (kg CO2Äq./funktionelle Einheit)=1000 kg Streumittel/funtionelle Einheit x Emissionsfaktor für die Herstellung(kg CO2Äq./kg Streumittel)
C61: Bedeutung der farblichen Markierungen der Zellen
D63: Eingabe erforderlich
D65: Voreingestellte Standardwerte, die Nutzer*innen ändern können
D67: Voreingestellte Standardwerte, die Nutzer*innen NICHT ändern können
D69: Keine Eingabe möglich oder automatische Ausgabe. Die Zelle enthält Formeln, die von Anwender*innen nicht geändert werden können.
C71: Abkürzungen
C72: AP | D72: Versauerungspotenzial
C73: bSF | D73: Bewertete Streufläche
C74: CO2Äq. | D74: CO₂-Äquivalente
C75: EF | D75: Emissionsfaktor
C76: FU | D76: Funktionelle Einheit
C77: GHG | D77: Greenhouse Gas
C78: GWP | D78: Global Warming Potential (Treibhauspotenzial)
C79: k.A. | D79: Keine Angabe
C80: KEA | D80: Kumulierter Energie Aufwand
C81: kg | D81: Kilogramm
C82: kWh | D82: Kilowattstunde
C83: ODP | D83: Ozonabbaupotenzial
C84: Pkm | D84: Personenkilometer
C85: PM | D85: Feinstaub-Potenzial
C86: POCP | D86: Photooxidantienpotenzial
C87: SF | D87: Streufläche
C88: t | D88: Tonne
C89: THG | D89: Treibhausgasemissionen
C90: Tkm | D90: Tonnenkilometer

Sheet Eingabe Untersuchungsrahmen
C9: 1. Allgemeine Angaben
C11: Bezeichnung Meisterei/Bauhof
C12: Adresse Meisterei/Bauhof
C13: Bundesland/Niederlassung
C14: Standort
C15: Bearbeiter*in(nen)
C16: Datum | D16: 2023-12-01
C19: 2. Eingabe der Bezugsgröße: Festlegung der räumlichen Komponente der funktionellen Einheit der Ökobilanz
C20: Das ÖkoWin-Tool berechnet die Umweltwirkungspotenziale für die von Ihnen eingegebene funktionelle Einheit. Die spezifischen Daten, die Sie im Blatt "Eingabe spezifische Daten" eingeben, müssen sich auf diese funktionelle Einheit beziehen.
C21: Die funktionelle Einheit hat eine räumliche Komponente - die bewertete Streufläche - und eine zeitliche Komponente - den Zeitraum des Winterdienstes (z.B. eine Winterperiode oder der Winterdiensteinsatz an eiem bestimmten Tag). Bitte geben Sie beide Komponenten in die nachfolgenden beiden Tabellen ein.
C23: Erläuterungen zur Eingabe der funktionellen Einheit:
C24: • Bewertete Streufläche: Die bewertete Streufläche (bSF) wird durch die Multiplikation der Streufläche mit einem Betreuungsfaktor ermittelt.
C25: • Betreuungsfaktoren: Die Betreuungsfaktoren beschreiben die unterschiedlichen Winterdienstintensitäten nach Straßenklassen. Im ÖkoWin-Tool sind Betreuungsfaktoren für die verschiedenen Straßenklassen voreingestellt, die auf TAUSALA (Quelle: [4]) basieren. Sie können durch eine spezifische Eingabe ersetzt werden.
C26: • Ändern der voreingestellten Betreuungsfaktoren: Sie können die voreingestellten Betreuungsfaktoren ändern, in dem Sie in der Spalte "Auswahl des Betreuungsfaktors" in der Drop-Down-Liste "Nutzereingabe" auswählen, und dann in der Spalte "Betreuungsfaktor" einen Wert eingeben.
C28: Straßenklasse | D28: Streufläche SF [m²] | E28: Auswahl des Betreuungsfaktors | F28: Betreuungsfaktor | G28: Bewertete Streufläche bSF [m²]
C29: Bundesautobahnen | E29: voreingestellter Betreuungsfaktor | F29: 1.00 | G29: =D29*F29 -> 0
C30: Bundesstraßen | E30: voreingestellter Betreuungsfaktor | F30: 0.80 | G30: =D30*F30 -> 0
C31: Landes-, Staatsstraßen | E31: voreingestellter Betreuungsfaktor | F31: 0.67 | G31: =D31*F31 -> 0
C32: Kreisstraßen | E32: voreingestellter Betreuungsfaktor | F32: 0.67 | G32: =D32*F32 -> 0
C33: Summe | G33: =SUBTOTAL(109,Streuflaeche[Bewertete Streufläche bSF '[m²'] ]) -> 0
C35: ="Die räumliche Komponente der funktionellen Einheit dieser Ökobilanz ist "&Streuflaeche[[#Totals],[Bewertete Streufläche bSF '[m²'] ]]&" m² bewertete Streufläche." -> Die räumliche Komponente der funktionellen Einheit dieser Ökobilanz ist 0 m² bewertete Streufläche.
C38: 3. Eingabe der zeitlichen Komponente der funktionellen Einheit: Geben Sie hier den Zeitraum des Winterdienstes ein, den Sie bilanzieren möchten.
C39: Geben Sie dazu das Anfangs- und Enddatum der Winterdienstaktivitäten ein, die sie bilanzieren möchten.
C40: Sie können eine ganze Winterperiode, Teile einer Winterperiode oder auch nur einzelne Tage bilanzieren - je nachdem, welches Ziel Sie mit der Ökobilanz verfolgen
C41: Die spezifischen Daten, die Sie im Blatt "Eingabe spezifische Daten" eingeben, müssen sich auf diese funktionelle Einheit beziehen.
C42: Startdatum: Beginn Bilanzzeitraum | E42: 2023-11-01
C43: Enddatum: Ende Bilanzzeitraum | E43: 2023-11-30
C46: 4. Angaben zum Winterdienst
C47: Geben Sie nachfolgend bitte Details zum Winterdienst und zu seinen spezifischen Bedingungen ein. Beziehen Sie sich dabei auf die oben von Ihnen angegebene funktionelle Einheit (d.h. Zeitraum und Streufläche).
C48: Erläuterung:
C49: Diese Angaben erleichtern Ihnen die Interpretation und Einordnung der Ergebnisse. Dies gilt im Besonderen, wenn Sie den Winterdienst von mehreren Winterperioden miteinander vergleichen wollen.
C50: Die Eingabe ist auf 960 Zeichen je Eingabezelle begrenzt.
C51: Winterdienst:
C52: Anteile Trockensalz, FS 30 und FS 100 der betrachteten Winterdienstaktivitäten (Einsätze in Prozent, geschätzt)
C53: Anteile präventiver und kurativer Maßnahmen der betrachteten Winterdienstaktivitäten (Einsätze in Prozent, geschätzt)
C54: Besonderheiten in Bezug auf die verwendeten Fahrzeuge und die eingesetzte Streutechnik
C55: Sonstige Besonderheiten in Bezug auf den durchgeführten Winterdienst
C56: Gibt es interne Salz- und Soletransporte sowie Umschlagsprozesse? Wenn ja, diese bitte kurz beschreiben.
C58: Wetter- und Straßenbedingungen:
C59: Schneefallereignisse (z.B. Häufigkeit, Dauer/Zeitpunkt und Schwere)
C60: Reifglätte (z.B. Häufigkeit, Dauer/Zeitpunkt und Schwere)
C61: Eisglätte (z.B. Häufigkeit, Dauer/Zeitpunkt und Schwere)
C62: Sonstige Besonderheiten der Wetterbedingungen
C63: Besonderheiten in Bezug auf den Verkehr / die Verkehrsbedingungen

Sheet Eingabe spezifische Daten
B8: 1. Bitte geben Sie Ihre spezifischen Daten in die gelben Felder ein
E9: Erläuterungen zur Dateneingabe:
E10: Auf diesem Tabellenblatt werden Ihre spezifischen Daten zum Winterdienst erfasst.
E11: Bitte machen Sie Ihre Angaben immer mit Bezug zur funktionellen Einheit, d.h. der Streufläche und dem Zeitraum des Winterdienstes, den Sie auf dem Blatt "Eingabe Untersuchungsrahmen" als funktionelle Einheit festgelegt haben.
E12: Machen Sie zu den eingegebenen Daten bitte Angaben zur Datenqualität. Sie können dabei aus einem Dropdown-Menü auswählen: gemessen (z.B. Stromrechnung), berechnet (z.B. Wassermenge zur Herstellung von Sole) und abgeschätzt (z.B. Anteil Wasserverbrauch für den Winterdienst, wenn die Wasserrechnung nur jährlich ausgestellt wird).
E13: Sie haben die Möglichkeit in den Eingabetabellen in der letzten Spalte jeweils eine Anmerkung einzugeben. Darin können Sie beispielsweise dokumentieren, wie Sie eine Berechnung oder Abschätzung vorgenommen haben, in welchen Dokumenten Sie die benötigten Informationen gefunden haben oder welche Vereinfachungen Sie durchgeführt haben. Ihr Vorteil: Die eingegebenen Daten sind für Sie selbst auch zu einem späteren Zeitpunkt nachvollziehbar und die Nutzung des ÖkoWin-Tools ist einfacher selbst bei einem Wechsel des Bearbeiters / der Bearbeiterin.
B15: 2. Prozesse in der Meisterei / im Bauhof
E16: Geben Sie bitte ein, welche Aufwendungen Sie in der Meisterei / im Bauhof für den Winterdienst haben.
E17: Beachten Sie dabei, dass sich Ihre Angaben immer auf die funktionelle Einheit beziehen müssen, die Sie auf dem Blatt "Eingabe Untersuchungsrahmen" festgelegt haben.
E18: Wenn eine Zeile für Ihren Fall nicht relevant ist, geben Sie bitte "0" ein.
E19: Frage 1: Verfügt die Meisterei / der Bauhof über eine eigene Stromerzeugung? Hinweis: Falls es einen Generator gibt, der nur im Falle eines Stromausfalls eingesetzt wird, geben Sie bitte "nein" ein.
E20: Frage 2: Verfügt die Meisterei / der Bauhof über eine eigene Wärmebereitstellung?
E22: Aufwand innerhalb der Meisterei/des Bauhofes | F22: Verbrauch | G22: Einheit | H22: Datenqualität | I22: Anmerkung
E23: Stromverbrauch der Meisterei / des Bauhofs für den Winterdienst (Bezug aus dem Stromnetz) | G23: ="kWh / "&Streuflaeche[[#Totals],[Bewertete Streufläche bSF '[m²'] ]]&" m² bewertete Streufläche" -> kWh / 0 m² bewertete Streufläche
E24: Verbrauch von Nah- oder Fernwärme (Wärmebezug) | G24: ="MJ / "&Streuflaeche[[#Totals],[Bewertete Streufläche bSF '[m²'] ]]&" m² bewertete Streufläche" -> MJ / 0 m² bewertete Streufläche
E25: Verbrauch von Leitungswasser in der Meisterei / im Bauhof für den Winterdienst (z.B. für Soleherstellung, Fahrzeug- und Streumaschinenreinigung) | G25: ="Liter / "&Streuflaeche[[#Totals],[Bewertete Streufläche bSF '[m²'] ]]&" m² bewertete Streufläche" -> Liter / 0 m² bewertete Streufläche
E26: Verbrauch von Niederschlagswasser in der Meisterei / im Bauhof für den Winterdienst (z.B. für Soleherstellung, Fahrzeug- und Streumaschinenreinigung) | G26: ="Liter / "&Streuflaeche[[#Totals],[Bewertete Streufläche bSF '[m²'] ]]&" m² bewertete Streufläche" -> Liter / 0 m² bewertete Streufläche
E27: Verbrauch von Motoröl und Hydrauliköl, der dem Winterdeinst zugeordnet werden kann (z.B. für Streufahrzeuge) | G27: ="Liter / "&Streuflaeche[[#Totals],[Bewertete Streufläche bSF '[m²'] ]]&" m² bewertete Streufläche" -> Liter / 0 m² bewertete Streufläche
E28: Verbrauch von Diesel für Prozesse in der Meisterei / auf dem Bauhof, die dem Winterdienst zugeordnet werden können (z.B. Nutzung Radlader im Streumittellager oder für Beladung Streufahrzeuge) | G28: ="Liter / "&Streuflaeche[[#Totals],[Bewertete Streufläche bSF '[m²'] ]]&" m² bewertete Streufläche" -> Liter / 0 m² bewertete Streufläche
E31: Geben Se hier bitte an, wie in der Meiterei / im Bauhof die Stromerzeugung erfolgt.
E32: Strom aus Eigenerzeugung | F32: Verbrauch | G32: Einheit | H32: Datenqualität | I32: Anmerkung
E33: Eigenverbrauch Strom aus Photovoltaik | G33: ="Eigenverbrauch Endenergie in kWh / "&Streuflaeche[[#Totals],[Bewertete Streufläche bSF '[m²'] ]]&" m² bewertete Streufläche" -> Eigenverbrauch Endenergie in kWh / 0 m² bewertete Streufläche
E36: Geben Sie bitte ein, welche Energieträger in der Meisterei / im Bauhof für die eigene Wärmeerzeugung genutzt werden und wie hoch der jeweilige Wärmeverbrauch für den Winterdienst ist.
E37: Energieträger | F37: Verbrauch | G37: Einheit | H37: Datenqualität | I37: Anmerkung
E38: Erdgas | G38: ="m³ / "&Streuflaeche[[#Totals],[Bewertete Streufläche bSF '[m²'] ]]&" m² bewertete Streufläche" -> m³ / 0 m² bewertete Streufläche
E39: Heizöl | G39: ="Liter / "&Streuflaeche[[#Totals],[Bewertete Streufläche bSF '[m²'] ]]&" m² bewertete Streufläche" -> Liter / 0 m² bewertete Streufläche
E40: Holzhackschnitzel, Verbrauch bitte als Trockenmasse angeben | G40: ="Tonnen / "&Streuflaeche[[#Totals],[Bewertete Streufläche bSF '[m²'] ]]&" m² bewertete Streufläche" -> Tonnen / 0 m² bewertete Streufläche
E41: Holzpellets, Verbrauch bitte als Trockenmasse angeben | G41: ="Tonnen / "&Streuflaeche[[#Totals],[Bewertete Streufläche bSF '[m²'] ]]&" m² bewertete Streufläche" -> Tonnen / 0 m² bewertete Streufläche
E42: Biogas | G42: ="m³ / "&Streuflaeche[[#Totals],[Bewertete Streufläche bSF '[m²'] ]]&" m² bewertete Streufläche" -> m³ / 0 m² bewertete Streufläche
E43: Solarthermie (eigene Kollektoren) | G43: ="Eigenverbrauch Endenergie in MJ / "&Streuflaeche[[#Totals],[Bewertete Streufläche bSF '[m²'] ]]&" m² bewertete Streufläche" -> Eigenverbrauch Endenergie in MJ / 0 m² bewertete Streufläche
B47: 3. Ausbringung
E48: 3.1. Streumittel
E50: 3.1.1 Geben Sie bitte den Verbrauch an trockenen Streumitteln (Trockensalz) in Bezug auf die von Ihnen festgelegte funktionelle Einheit an.
E51: Sie können dabei in der ersten Spalte der nachfolgenden Tabelle aus einem Dropdown-Menü die entsprechenden Streumittel auswählen. Bei Natriumchlorid haben Sie die Auswahl zwischen drei verschiedenen Herstellungsverfahren: Steinsalz, Siedesalz und Meersalz
E52: Beachten Sie, dass sowohl Trockensalz direkt für die Ausbringung als auch Trockensalz für die eigene Soleherstellung anzugeben ist.
E54: Bezeichnung Streumittel (Trockensalz) | F54: Verbrauch [Tonnen/funktionelle Einheit] | G54: Einheit | H54: Datenqualität | I54: Anmerkung
E55: Natriumchlorid (aus Steinsalz) | G55: ="Tonnen / "&Streuflaeche[[#Totals],[Bewertete Streufläche bSF '[m²'] ]]&" m² bewertete Streufläche" -> Tonnen / 0 m² bewertete Streufläche | H55: berechnet
G56: ="Tonnen / "&Streuflaeche[[#Totals],[Bewertete Streufläche bSF '[m²'] ]]&" m² bewertete Streufläche" -> Tonnen / 0 m² bewertete Streufläche
G57: ="Tonnen / "&Streuflaeche[[#Totals],[Bewertete Streufläche bSF '[m²'] ]]&" m² bewertete Streufläche" -> Tonnen / 0 m² bewertete Streufläche
G58: ="Tonnen / "&Streuflaeche[[#Totals],[Bewertete Streufläche bSF '[m²'] ]]&" m² bewertete Streufläche" -> Tonnen / 0 m² bewertete Streufläche
G59: ="Tonnen / "&Streuflaeche[[#Totals],[Bewertete Streufläche bSF '[m²'] ]]&" m² bewertete Streufläche" -> Tonnen / 0 m² bewertete Streufläche
G60: ="Tonnen / "&Streuflaeche[[#Totals],[Bewertete Streufläche bSF '[m²'] ]]&" m² bewertete Streufläche" -> Tonnen / 0 m² bewertete Streufläche
G61: ="Tonnen / "&Streuflaeche[[#Totals],[Bewertete Streufläche bSF '[m²'] ]]&" m² bewertete Streufläche" -> Tonnen / 0 m² bewertete Streufläche
G62: ="Tonnen / "&Streuflaeche[[#Totals],[Bewertete Streufläche bSF '[m²'] ]]&" m² bewertete Streufläche" -> Tonnen / 0 m² bewertete Streufläche
E63: Summe | F63: =SUBTOTAL(109,Eingabe_Ausbringungen_Fremdsalz[Verbrauch '[Tonnen/funktionelle Einheit']]) -> 0.00 | G63: ="Tonnen / "&Streuflaeche[[#Totals],[Bewertete Streufläche bSF '[m²'] ]]&" m² bewertete Streufläche" -> Tonnen / 0 m² bewertete Streufläche
E65: 3.1.2 Verbrauchte Streumittel: konzentrierte Fremdsole und Fremdsole in Anwendungskonzentration
E66: Beachten Sie, dass sowohl anwendungsfertige Fremdsole als auch konzentrierte Fremdsole, die vor Ort verdünnt wird, anzugeben ist - in Abhängigkeit davon, was Sie einkaufen. Die angegebene Menge muss sich immer auf die funktionelle Einheit beziehen.
E68: Bezeichnung Streumittel (Sole) | F68: Bezug von konzentrierter oder anwendungsfertiger Fremdsole | G68: Menge an eingesetzter Fremdesole | H68: Einheit | I68: Anwendungskonzentration der Sole [Prozent] Falls Sie nur eine Angabe zur Bandbreite der Anwendungskonzentrationen kennen, geben Sie bitte einen Mittelwert an. | J68: Datenqualität | K68: Anmerkung | L68: Wasserverbrauch für die Verdünnung bei Herstellern (Tonne/FU), nur relevant für anwendigungsfertige Fremdsole
H69: ="Tonnen / "&Streuflaeche[[#Totals],[Bewertete Streufläche bSF '[m²'] ]]&" m² bewertete Streufläche" -> Tonnen / 0 m² bewertete Streufläche | L69: =IFERROR(_xlfn.IFS(AND(Eingabe_Ausbringungen_FremdSole[[#This Row],[Bezug von konzentrierter oder anwendungsfertiger Fremdsole ]]="anwendungsfertige Fremdsole",Eingabe_Ausbringungen_FremdSole[[#This Row],[Bezeichnung Streumittel (Sole)]]="Natriumchlorid-Sole"),(Konzentration_NaCl_konz_Fremdsole-Eingabe_Ausbringungen_FremdSole[[#This Row],[Anwendungskonzentration der Sole '[Prozent'] Falls Sie nur eine Angabe zur Bandbreite der Anwendungskonzentrationen kennen, geben Sie bitte einen Mittelwert an.]]),(AND(Eingabe_Ausbringungen_FremdSole[[#This Row],[Bezug von konzentrierter oder anwendungsfertiger Fremdsole ]]="anwendungsfertige Fremdsole",Eingabe_Ausbringungen_FremdSole[[#This Row],[Bezeichnung Streumittel (Sole)]]="Magnesiumchlorid-Sole")),(Konzentration_MgCl2_konz_Fremdsole-Eingabe_Ausbringungen_FremdSole[[#This Row],[Anwendungskonzentration der Sole '[Prozent'] Falls Sie nur eine Angabe zur Bandbreite der Anwendungskonzentrationen kennen, geben Sie bitte einen Mittelwert an.]]),(AND(Eingabe_Ausbringungen_FremdSole[[#This Row],[Bezug von konzentrierter oder anwendungsfertiger Fremdsole ]]="anwendungsfertige Fremdsole",Eingabe_Ausbringungen_FremdSole[[#This Row],[Bezeichnung Streumittel (Sole)]]="Calciumchlorid-Sole")),(Konzentration_CaCl2_konz_Fremdsole-Eingabe_Ausbringungen_FremdSole[[#This Row],[Anwendungskonzentration der Sole '[Prozent'] Falls Sie nur eine Angabe zur Bandbreite der Anwendungskonzentrationen kennen, geben Sie bitte einen Mittelwert an.]]))*Eingabe_Ausbringungen_FremdSole[[#This Row],[Menge an eingesetzter Fremdesole]],"k.A.") -> k.A.
H70: ="Tonnen / "&Streuflaeche[[#Totals],[Bewertete Streufläche bSF '[m²'] ]]&" m² bewertete Streufläche" -> Tonnen / 0 m² bewertete Streufläche | L70: =IFERROR(_xlfn.IFS(AND(Eingabe_Ausbringungen_FremdSole[[#This Row],[Bezug von konzentrierter oder anwendungsfertiger Fremdsole ]]="anwendungsfertige Fremdsole",Eingabe_Ausbringungen_FremdSole[[#This Row],[Bezeichnung Streumittel (Sole)]]="Natriumchlorid-Sole"),(Konzentration_NaCl_konz_Fremdsole-Eingabe_Ausbringungen_FremdSole[[#This Row],[Anwendungskonzentration der Sole '[Prozent'] Falls Sie nur eine Angabe zur Bandbreite der Anwendungskonzentrationen kennen, geben Sie bitte einen Mittelwert an.]]),(AND(Eingabe_Ausbringungen_FremdSole[[#This Row],[Bezug von konzentrierter oder anwendungsfertiger Fremdsole ]]="anwendungsfertige Fremdsole",Eingabe_Ausbringungen_FremdSole[[#This Row],[Bezeichnung Streumittel (Sole)]]="Magnesiumchlorid-Sole")),(Konzentration_MgCl2_konz_Fremdsole-Eingabe_Ausbringungen_FremdSole[[#This Row],[Anwendungskonzentration der Sole '[Prozent'] Falls Sie nur eine Angabe zur Bandbreite der Anwendungskonzentrationen kennen, geben Sie bitte einen Mittelwert an.]]),(AND(Eingabe_Ausbringungen_FremdSole[[#This Row],[Bezug von konzentrierter oder anwendungsfertiger Fremdsole ]]="anwendungsfertige Fremdsole",Eingabe_Ausbringungen_FremdSole[[#This Row],[Bezeichnung Streumittel (Sole)]]="Calciumchlorid-Sole")),(Konzentration_CaCl2_konz_Fremdsole-Eingabe_Ausbringungen_FremdSole[[#This Row],[Anwendungskonzentration der Sole '[Prozent'] Falls Sie nur eine Angabe zur Bandbreite der Anwendungskonzentrationen kennen, geben Sie bitte einen Mittelwert an.]]))*Eingabe_Ausbringungen_FremdSole[[#This Row],[Menge an eingesetzter Fremdesole]],"k.A.") -> k.A.
H71: ="Tonnen / "&Streuflaeche[[#Totals],[Bewertete Streufläche bSF '[m²'] ]]&" m² bewertete Streufläche" -> Tonnen / 0 m² bewertete Streufläche | L71: =IFERROR(_xlfn.IFS(AND(Eingabe_Ausbringungen_FremdSole[[#This Row],[Bezug von konzentrierter oder anwendungsfertiger Fremdsole ]]="anwendungsfertige Fremdsole",Eingabe_Ausbringungen_FremdSole[[#This Row],[Bezeichnung Streumittel (Sole)]]="Natriumchlorid-Sole"),(Konzentration_NaCl_konz_Fremdsole-Eingabe_Ausbringungen_FremdSole[[#This Row],[Anwendungskonzentration der Sole '[Prozent'] Falls Sie nur eine Angabe zur Bandbreite der Anwendungskonzentrationen kennen, geben Sie bitte einen Mittelwert an.]]),(AND(Eingabe_Ausbringungen_FremdSole[[#This Row],[Bezug von konzentrierter oder anwendungsfertiger Fremdsole ]]="anwendungsfertige Fremdsole",Eingabe_Ausbringungen_FremdSole[[#This Row],[Bezeichnung Streumittel (Sole)]]="Magnesiumchlorid-Sole")),(Konzentration_MgCl2_konz_Fremdsole-Eingabe_Ausbringungen_FremdSole[[#This Row],[Anwendungskonzentration der Sole '[Prozent'] Falls Sie nur eine Angabe zur Bandbreite der Anwendungskonzentrationen kennen, geben Sie bitte einen Mittelwert an.]]),(AND(Eingabe_Ausbringungen_FremdSole[[#This Row],[Bezug von konzentrierter oder anwendungsfertiger Fremdsole ]]="anwendungsfertige Fremdsole",Eingabe_Ausbringungen_FremdSole[[#This Row],[Bezeichnung Streumittel (Sole)]]="Calciumchlorid-Sole")),(Konzentration_CaCl2_konz_Fremdsole-Eingabe_Ausbringungen_FremdSole[[#This Row],[Anwendungskonzentration der Sole '[Prozent'] Falls Sie nur eine Angabe zur Bandbreite der Anwendungskonzentrationen kennen, geben Sie bitte einen Mittelwert an.]]))*Eingabe_Ausbringungen_FremdSole[[#This Row],[Menge an eingesetzter Fremdesole]],"k.A.") -> k.A.
H72: ="Tonnen / "&Streuflaeche[[#Totals],[Bewertete Streufläche bSF '[m²'] ]]&" m² bewertete Streufläche" -> Tonnen / 0 m² bewertete Streufläche | L72: =IFERROR(_xlfn.IFS(AND(Eingabe_Ausbringungen_FremdSole[[#This Row],[Bezug von konzentrierter oder anwendungsfertiger Fremdsole ]]="anwendungsfertige Fremdsole",Eingabe_Ausbringungen_FremdSole[[#This Row],[Bezeichnung Streumittel (Sole)]]="Natriumchlorid-Sole"),(Konzentration_NaCl_konz_Fremdsole-Eingabe_Ausbringungen_FremdSole[[#This Row],[Anwendungskonzentration der Sole '[Prozent'] Falls Sie nur eine Angabe zur Bandbreite der Anwendungskonzentrationen kennen, geben Sie bitte einen Mittelwert an.]]),(AND(Eingabe_Ausbringungen_FremdSole[[#This Row],[Bezug von konzentrierter oder anwendungsfertiger Fremdsole ]]="anwendungsfertige Fremdsole",Eingabe_Ausbringungen_FremdSole[[#This Row],[Bezeichnung Streumittel (Sole)]]="Magnesiumchlorid-Sole")),(Konzentration_MgCl2_konz_Fremdsole-Eingabe_Ausbringungen_FremdSole[[#This Row],[Anwendungskonzentration der Sole '[Prozent'] Falls Sie nur eine Angabe zur Bandbreite der Anwendungskonzentrationen kennen, geben Sie bitte einen Mittelwert an.]]),(AND(Eingabe_Ausbringungen_FremdSole[[#This Row],[Bezug von konzentrierter oder anwendungsfertiger Fremdsole ]]="anwendungsfertige Fremdsole",Eingabe_Ausbringungen_FremdSole[[#This Row],[Bezeichnung Streumittel (Sole)]]="Calciumchlorid-Sole")),(Konzentration_CaCl2_konz_Fremdsole-Eingabe_Ausbringungen_FremdSole[[#This Row],[Anwendungskonzentration der Sole '[Prozent'] Falls Sie nur eine Angabe zur Bandbreite der Anwendungskonzentrationen kennen, geben Sie bitte einen Mittelwert an.]]))*Eingabe_Ausbringungen_FremdSole[[#This Row],[Menge an eingesetzter Fremdesole]],"k.A.") -> k.A.
H73: ="Tonnen / "&Streuflaeche[[#Totals],[Bewertete Streufläche bSF '[m²'] ]]&" m² bewertete Streufläche" -> Tonnen / 0 m² bewertete Streufläche | L73: =IFERROR(_xlfn.IFS(AND(Eingabe_Ausbringungen_FremdSole[[#This Row],[Bezug von konzentrierter oder anwendungsfertiger Fremdsole ]]="anwendungsfertige Fremdsole",Eingabe_Ausbringungen_FremdSole[[#This Row],[Bezeichnung Streumittel (Sole)]]="Natriumchlorid-Sole"),(Konzentration_NaCl_konz_Fremdsole-Eingabe_Ausbringungen_FremdSole[[#This Row],[Anwendungskonzentration der Sole '[Prozent'] Falls Sie nur eine Angabe zur Bandbreite der Anwendungskonzentrationen kennen, geben Sie bitte einen Mittelwert an.]]),(AND(Eingabe_Ausbringungen_FremdSole[[#This Row],[Bezug von konzentrierter oder anwendungsfertiger Fremdsole ]]="anwendungsfertige Fremdsole",Eingabe_Ausbringungen_FremdSole[[#This Row],[Bezeichnung Streumittel (Sole)]]="Magnesiumchlorid-Sole")),(Konzentration_MgCl2_konz_Fremdsole-Eingabe_Ausbringungen_FremdSole[[#This Row],[Anwendungskonzentration der Sole '[Prozent'] Falls Sie nur eine Angabe zur Bandbreite der Anwendungskonzentrationen kennen, geben Sie bitte einen Mittelwert an.]]),(AND(Eingabe_Ausbringungen_FremdSole[[#This Row],[Bezug von konzentrierter oder anwendungsfertiger Fremdsole ]]="anwendungsfertige Fremdsole",Eingabe_Ausbringungen_FremdSole[[#This Row],[Bezeichnung Streumittel (Sole)]]="Calciumchlorid-Sole")),(Konzentration_CaCl2_konz_Fremdsole-Eingabe_Ausbringungen_FremdSole[[#This Row],[Anwendungskonzentration der Sole '[Prozent'] Falls Sie nur eine Angabe zur Bandbreite der Anwendungskonzentrationen kennen, geben Sie bitte einen Mittelwert an.]]))*Eingabe_Ausbringungen_FremdSole[[#This Row],[Menge an eingesetzter Fremdesole]],"k.A.") -> k.A.
H74: ="Tonnen / "&Streuflaeche[[#Totals],[Bewertete Streufläche bSF '[m²'] ]]&" m² bewertete Streufläche" -> Tonnen / 0 m² bewertete Streufläche | L74: =IFERROR(_xlfn.IFS(AND(Eingabe_Ausbringungen_FremdSole[[#This Row],[Bezug von konzentrierter oder anwendungsfertiger Fremdsole ]]="anwendungsfertige Fremdsole",Eingabe_Ausbringungen_FremdSole[[#This Row],[Bezeichnung Streumittel (Sole)]]="Natriumchlorid-Sole"),(Konzentration_NaCl_konz_Fremdsole-Eingabe_Ausbringungen_FremdSole[[#This Row],[Anwendungskonzentration der Sole '[Prozent'] Falls Sie nur eine Angabe zur Bandbreite der Anwendungskonzentrationen kennen, geben Sie bitte einen Mittelwert an.]]),(AND(Eingabe_Ausbringungen_FremdSole[[#This Row],[Bezug von konzentrierter oder anwendungsfertiger Fremdsole ]]="anwendungsfertige Fremdsole",Eingabe_Ausbringungen_FremdSole[[#This Row],[Bezeichnung Streumittel (Sole)]]="Magnesiumchlorid-Sole")),(Konzentration_MgCl2_konz_Fremdsole-Eingabe_Ausbringungen_FremdSole[[#This Row],[Anwendungskonzentration der Sole '[Prozent'] Falls Sie nur eine Angabe zur Bandbreite der Anwendungskonzentrationen kennen, geben Sie bitte einen Mittelwert an.]]),(AND(Eingabe_Ausbringungen_FremdSole[[#This Row],[Bezug von konzentrierter oder anwendungsfertiger Fremdsole ]]="anwendungsfertige Fremdsole",Eingabe_Ausbringungen_FremdSole[[#This Row],[Bezeichnung Streumittel (Sole)]]="Calciumchlorid-Sole")),(Konzentration_CaCl2_konz_Fremdsole-Eingabe_Ausbringungen_FremdSole[[#This Row],[Anwendungskonzentration der Sole '[Prozent'] Falls Sie nur eine Angabe zur Bandbreite der Anwendungskonzentrationen kennen, geben Sie bitte einen Mittelwert an.]]))*Eingabe_Ausbringungen_FremdSole[[#This Row],[Menge an eingesetzter Fremdesole]],"k.A.") -> k.A.
H75: ="Tonnen / "&Streuflaeche[[#Totals],[Bewertete Streufläche bSF '[m²'] ]]&" m² bewertete Streufläche" -> Tonnen / 0 m² bewertete Streufläche | L75: =IFERROR(_xlfn.IFS(AND(Eingabe_Ausbringungen_FremdSole[[#This Row],[Bezug von konzentrierter oder anwendungsfertiger Fremdsole ]]="anwendungsfertige Fremdsole",Eingabe_Ausbringungen_FremdSole[[#This Row],[Bezeichnung Streumittel (Sole)]]="Natriumchlorid-Sole"),(Konzentration_NaCl_konz_Fremdsole-Eingabe_Ausbringungen_FremdSole[[#This Row],[Anwendungskonzentration der Sole '[Prozent'] Falls Sie nur eine Angabe zur Bandbreite der Anwendungskonzentrationen kennen, geben Sie bitte einen Mittelwert an.]]),(AND(Eingabe_Ausbringungen_FremdSole[[#This Row],[Bezug von konzentrierter oder anwendungsfertiger Fremdsole ]]="anwendungsfertige Fremdsole",Eingabe_Ausbringungen_FremdSole[[#This Row],[Bezeichnung Streumittel (Sole)]]="Magnesiumchlorid-Sole")),(Konzentration_MgCl2_konz_Fremdsole-Eingabe_Ausbringungen_FremdSole[[#This Row],[Anwendungskonzentration der Sole '[Prozent'] Falls Sie nur eine Angabe zur Bandbreite der Anwendungskonzentrationen kennen, geben Sie bitte einen Mittelwert an.]]),(AND(Eingabe_Ausbringungen_FremdSole[[#This Row],[Bezug von konzentrierter oder anwendungsfertiger Fremdsole ]]="anwendungsfertige Fremdsole",Eingabe_Ausbringungen_FremdSole[[#This Row],[Bezeichnung Streumittel (Sole)]]="Calciumchlorid-Sole")),(Konzentration_CaCl2_konz_Fremdsole-Eingabe_Ausbringungen_FremdSole[[#This Row],[Anwendungskonzentration der Sole '[Prozent'] Falls Sie nur eine Angabe zur Bandbreite der Anwendungskonzentrationen kennen, geben Sie bitte einen Mittelwert an.]]))*Eingabe_Ausbringungen_FremdSole[[#This Row],[Menge an eingesetzter Fremdesole]],"k.A.") -> k.A.
H76: ="Tonnen / "&Streuflaeche[[#Totals],[Bewertete Streufläche bSF '[m²'] ]]&" m² bewertete Streufläche" -> Tonnen / 0 m² bewertete Streufläche | L76: =IFERROR(_xlfn.IFS(AND(Eingabe_Ausbringungen_FremdSole[[#This Row],[Bezug von konzentrierter oder anwendungsfertiger Fremdsole ]]="anwendungsfertige Fremdsole",Eingabe_Ausbringungen_FremdSole[[#This Row],[Bezeichnung Streumittel (Sole)]]="Natriumchlorid-Sole"),(Konzentration_NaCl_konz_Fremdsole-Eingabe_Ausbringungen_FremdSole[[#This Row],[Anwendungskonzentration der Sole '[Prozent'] Falls Sie nur eine Angabe zur Bandbreite der Anwendungskonzentrationen kennen, geben Sie bitte einen Mittelwert an.]]),(AND(Eingabe_Ausbringungen_FremdSole[[#This Row],[Bezug von konzentrierter oder anwendungsfertiger Fremdsole ]]="anwendungsfertige Fremdsole",Eingabe_Ausbringungen_FremdSole[[#This Row],[Bezeichnung Streumittel (Sole)]]="Magnesiumchlorid-Sole")),(Konzentration_MgCl2_konz_Fremdsole-Eingabe_Ausbringungen_FremdSole[[#This Row],[Anwendungskonzentration der Sole '[Prozent'] Falls Sie nur eine Angabe zur Bandbreite der Anwendungskonzentrationen kennen, geben Sie bitte einen Mittelwert an.]]),(AND(Eingabe_Ausbringungen_FremdSole[[#This Row],[Bezug von konzentrierter oder anwendungsfertiger Fremdsole ]]="anwendungsfertige Fremdsole",Eingabe_Ausbringungen_FremdSole[[#This Row],[Bezeichnung Streumittel (Sole)]]="Calciumchlorid-Sole")),(Konzentration_CaCl2_konz_Fremdsole-Eingabe_Ausbringungen_FremdSole[[#This Row],[Anwendungskonzentration der Sole '[Prozent'] Falls Sie nur eine Angabe zur Bandbreite der Anwendungskonzentrationen kennen, geben Sie bitte einen Mittelwert an.]]))*Eingabe_Ausbringungen_FremdSole[[#This Row],[Menge an eingesetzter Fremdesole]],"k.A.") -> k.A.
H77: ="Tonnen / "&Streuflaeche[[#Totals],[Bewertete Streufläche bSF '[m²'] ]]&" m² bewertete Streufläche" -> Tonnen / 0 m² bewertete Streufläche | L77: =IFERROR(_xlfn.IFS(AND(Eingabe_Ausbringungen_FremdSole[[#This Row],[Bezug von konzentrierter oder anwendungsfertiger Fremdsole ]]="anwendungsfertige Fremdsole",Eingabe_Ausbringungen_FremdSole[[#This Row],[Bezeichnung Streumittel (Sole)]]="Natriumchlorid-Sole"),(Konzentration_NaCl_konz_Fremdsole-Eingabe_Ausbringungen_FremdSole[[#This Row],[Anwendungskonzentration der Sole '[Prozent'] Falls Sie nur eine Angabe zur Bandbreite der Anwendungskonzentrationen kennen, geben Sie bitte einen Mittelwert an.]]),(AND(Eingabe_Ausbringungen_FremdSole[[#This Row],[Bezug von konzentrierter oder anwendungsfertiger Fremdsole ]]="anwendungsfertige Fremdsole",Eingabe_Ausbringungen_FremdSole[[#This Row],[Bezeichnung Streumittel (Sole)]]="Magnesiumchlorid-Sole")),(Konzentration_MgCl2_konz_Fremdsole-Eingabe_Ausbringungen_FremdSole[[#This Row],[Anwendungskonzentration der Sole '[Prozent'] Falls Sie nur eine Angabe zur Bandbreite der Anwendungskonzentrationen kennen, geben Sie bitte einen Mittelwert an.]]),(AND(Eingabe_Ausbringungen_FremdSole[[#This Row],[Bezug von konzentrierter oder anwendungsfertiger Fremdsole ]]="anwendungsfertige Fremdsole",Eingabe_Ausbringungen_FremdSole[[#This Row],[Bezeichnung Streumittel (Sole)]]="Calciumchlorid-Sole")),(Konzentration_CaCl2_konz_Fremdsole-Eingabe_Ausbringungen_FremdSole[[#This Row],[Anwendungskonzentration der Sole '[Prozent'] Falls Sie nur eine Angabe zur Bandbreite der Anwendungskonzentrationen kennen, geben Sie bitte einen Mittelwert an.]]))*Eingabe_Ausbringungen_FremdSole[[#This Row],[Menge an eingesetzter Fremdesole]],"k.A.") -> k.A.
H78: ="Tonnen / "&Streuflaeche[[#Totals],[Bewertete Streufläche bSF '[m²'] ]]&" m² bewertete Streufläche" -> Tonnen / 0 m² bewertete Streufläche | L78: =IFERROR(_xlfn.IFS(AND(Eingabe_Ausbringungen_FremdSole[[#This Row],[Bezug von konzentrierter oder anwendungsfertiger Fremdsole ]]="anwendungsfertige Fremdsole",Eingabe_Ausbringungen_FremdSole[[#This Row],[Bezeichnung Streumittel (Sole)]]="Natriumchlorid-Sole"),(Konzentration_NaCl_konz_Fremdsole-Eingabe_Ausbringungen_FremdSole[[#This Row],[Anwendungskonzentration der Sole '[Prozent'] Falls Sie nur eine Angabe zur Bandbreite der Anwendungskonzentrationen kennen, geben Sie bitte einen Mittelwert an.]]),(AND(Eingabe_Ausbringungen_FremdSole[[#This Row],[Bezug von konzentrierter oder anwendungsfertiger Fremdsole ]]="anwendungsfertige Fremdsole",Eingabe_Ausbringungen_FremdSole[[#This Row],[Bezeichnung Streumittel (Sole)]]="Magnesiumchlorid-Sole")),(Konzentration_MgCl2_konz_Fremdsole-Eingabe_Ausbringungen_FremdSole[[#This Row],[Anwendungskonzentration der Sole '[Prozent'] Falls Sie nur eine Angabe zur Bandbreite der Anwendungskonzentrationen kennen, geben Sie bitte einen Mittelwert an.]]),(AND(Eingabe_Ausbringungen_FremdSole[[#This Row],[Bezug von konzentrierter oder anwendungsfertiger Fremdsole ]]="anwendungsfertige Fremdsole",Eingabe_Ausbringungen_FremdSole[[#This Row],[Bezeichnung Streumittel (Sole)]]="Calciumchlorid-Sole")),(Konzentration_CaCl2_konz_Fremdsole-Eingabe_Ausbringungen_FremdSole[[#This Row],[Anwendungskonzentration der Sole '[Prozent'] Falls Sie nur eine Angabe zur Bandbreite der Anwendungskonzentrationen kennen, geben Sie bitte einen Mittelwert an.]]))*Eingabe_Ausbringungen_FremdSole[[#This Row],[Menge an eingesetzter Fremdesole]],"k.A.") -> k.A.
H79: ="Tonnen / "&Streuflaeche[[#Totals],[Bewertete Streufläche bSF '[m²'] ]]&" m² bewertete Streufläche" -> Tonnen / 0 m² bewertete Streufläche | L79: =IFERROR(_xlfn.IFS(AND(Eingabe_Ausbringungen_FremdSole[[#This Row],[Bezug von konzentrierter oder anwendungsfertiger Fremdsole ]]="anwendungsfertige Fremdsole",Eingabe_Ausbringungen_FremdSole[[#This Row],[Bezeichnung Streumittel (Sole)]]="Natriumchlorid-Sole"),(Konzentration_NaCl_konz_Fremdsole-Eingabe_Ausbringungen_FremdSole[[#This Row],[Anwendungskonzentration der Sole '[Prozent'] Falls Sie nur eine Angabe zur Bandbreite der Anwendungskonzentrationen kennen, geben Sie bitte einen Mittelwert an.]]),(AND(Eingabe_Ausbringungen_FremdSole[[#This Row],[Bezug von konzentrierter oder anwendungsfertiger Fremdsole ]]="anwendungsfertige Fremdsole",Eingabe_Ausbringungen_FremdSole[[#This Row],[Bezeichnung Streumittel (Sole)]]="Magnesiumchlorid-Sole")),(Konzentration_MgCl2_konz_Fremdsole-Eingabe_Ausbringungen_FremdSole[[#This Row],[Anwendungskonzentration der Sole '[Prozent'] Falls Sie nur eine Angabe zur Bandbreite der Anwendungskonzentrationen kennen, geben Sie bitte einen Mittelwert an.]]),(AND(Eingabe_Ausbringungen_FremdSole[[#This Row],[Bezug von konzentrierter oder anwendungsfertiger Fremdsole ]]="anwendungsfertige Fremdsole",Eingabe_Ausbringungen_FremdSole[[#This Row],[Bezeichnung Streumittel (Sole)]]="Calciumchlorid-Sole")),(Konzentration_CaCl2_konz_Fremdsole-Eingabe_Ausbringungen_FremdSole[[#This Row],[Anwendungskonzentration der Sole '[Prozent'] Falls Sie nur eine Angabe zur Bandbreite der Anwendungskonzentrationen kennen, geben Sie bitte einen Mittelwert an.]]))*Eingabe_Ausbringungen_FremdSole[[#This Row],[Menge an eingesetzter Fremdesole]],"k.A.") -> k.A.
E80: Summe | G80: =SUBTOTAL(109,Eingabe_Ausbringungen_FremdSole[Menge an eingesetzter Fremdesole]) -> 0.00 | H80: ="Tonnen / "&Streuflaeche[[#Totals],[Bewertete Streufläche bSF '[m²'] ]]&" m² bewertete Streufläche" -> Tonnen / 0 m² bewertete Streufläche
E82: 3.2 Verbrauch Kraftstoffe für die Ausbringung
E83: Erläuterungen:
E84: Für den Fall, dass Biodiesel in Kraftstoffmischungen verwendet wird, berechnen Sie bitte den Anteil Biodiesel und den Anteil Diesel und tragen diese dann ein.
E85: Die Angaben zu den Fahrzeugen in der ersten Spalte der nachfolgenden Tabelle dienen dazu, die korrekten Emissionsfakoren für die Berechnung der Emissionen zu verknüpfen.
E87: Angaben zu den Fahrzeugen (Lkw: zulässiges Gesamtgewicht, Euro Norm, Kraftstoff) | F87: Verbrauch Kraftstoffe | G87: Einheit | H87: Datenqualität | I87: Anmerkung
G88: =IF(OR(Eingabe_Ausbringungen[[#This Row],[Angaben zu den Fahrzeugen (Lkw: zulässiges Gesamtgewicht, Euro Norm, Kraftstoff)]]="Pkw, Erdgas, CNG",Eingabe_Ausbringungen[[#This Row],[Angaben zu den Fahrzeugen (Lkw: zulässiges Gesamtgewicht, Euro Norm, Kraftstoff)]]="Pkw, Erdgas, LNG"),"kg / "&Streuflaeche[[#Totals],[Bewertete Streufläche bSF '[m²'] ]]&" m² bewertete Streufläche","Liter / "&Streuflaeche[[#Totals],[Bewertete Streufläche bSF '[m²'] ]]&" m² bewertete Streufläche") -> Liter / 0 m² bewertete Streufläche
G89: =IF(OR(Eingabe_Ausbringungen[[#This Row],[Angaben zu den Fahrzeugen (Lkw: zulässiges Gesamtgewicht, Euro Norm, Kraftstoff)]]="Pkw, Erdgas, CNG",Eingabe_Ausbringungen[[#This Row],[Angaben zu den Fahrzeugen (Lkw: zulässiges Gesamtgewicht, Euro Norm, Kraftstoff)]]="Pkw, Erdgas, LNG"),"kg / "&Streuflaeche[[#Totals],[Bewertete Streufläche bSF '[m²'] ]]&" m² bewertete Streufläche","Liter / "&Streuflaeche[[#Totals],[Bewertete Streufläche bSF '[m²'] ]]&" m² bewertete Streufläche") -> Liter / 0 m² bewertete Streufläche
G90: =IF(OR(Eingabe_Ausbringungen[[#This Row],[Angaben zu den Fahrzeugen (Lkw: zulässiges Gesamtgewicht, Euro Norm, Kraftstoff)]]="Pkw, Erdgas, CNG",Eingabe_Ausbringungen[[#This Row],[Angaben zu den Fahrzeugen (Lkw: zulässiges Gesamtgewicht, Euro Norm, Kraftstoff)]]="Pkw, Erdgas, LNG"),"kg / "&Streuflaeche[[#Totals],[Bewertete Streufläche bSF '[m²'] ]]&" m² bewertete Streufläche","Liter / "&Streuflaeche[[#Totals],[Bewertete Streufläche bSF '[m²'] ]]&" m² bewertete Streufläche") -> Liter / 0 m² bewertete Streufläche
G91: =IF(OR(Eingabe_Ausbringungen[[#This Row],[Angaben zu den Fahrzeugen (Lkw: zulässiges Gesamtgewicht, Euro Norm, Kraftstoff)]]="Pkw, Erdgas, CNG",Eingabe_Ausbringungen[[#This Row],[Angaben zu den Fahrzeugen (Lkw: zulässiges Gesamtgewicht, Euro Norm, Kraftstoff)]]="Pkw, Erdgas, LNG"),"kg / "&Streuflaeche[[#Totals],[Bewertete Streufläche bSF '[m²'] ]]&" m² bewertete Streufläche","Liter / "&Streuflaeche[[#Totals],[Bewertete Streufläche bSF '[m²'] ]]&" m² bewertete Streufläche") -> Liter / 0 m² bewertete Streufläche
G92: =IF(OR(Eingabe_Ausbringungen[[#This Row],[Angaben zu den Fahrzeugen (Lkw: zulässiges Gesamtgewicht, Euro Norm, Kraftstoff)]]="Pkw, Erdgas, CNG",Eingabe_Ausbringungen[[#This Row],[Angaben zu den Fahrzeugen (Lkw: zulässiges Gesamtgewicht, Euro Norm, Kraftstoff)]]="Pkw, Erdgas, LNG"),"kg / "&Streuflaeche[[#Totals],[Bewertete Streufläche bSF '[m²'] ]]&" m² bewertete Streufläche","Liter / "&Streuflaeche[[#Totals],[Bewertete Streufläche bSF '[m²'] ]]&" m² bewertete Streufläche") -> Liter / 0 m² bewertete Streufläche
G93: =IF(OR(Eingabe_Ausbringungen[[#This Row],[Angaben zu den Fahrzeugen (Lkw: zulässiges Gesamtgewicht, Euro Norm, Kraftstoff)]]="Pkw, Erdgas, CNG",Eingabe_Ausbringungen[[#This Row],[Angaben zu den Fahrzeugen (Lkw: zulässiges Gesamtgewicht, Euro Norm, Kraftstoff)]]="Pkw, Erdgas, LNG"),"kg / "&Streuflaeche[[#Totals],[Bewertete Streufläche bSF '[m²'] ]]&" m² bewertete Streufläche","Liter / "&Streuflaeche[[#Totals],[Bewertete Streufläche bSF '[m²'] ]]&" m² bewertete Streufläche") -> Liter / 0 m² bewertete Streufläche
G94: =IF(OR(Eingabe_Ausbringungen[[#This Row],[Angaben zu den Fahrzeugen (Lkw: zulässiges Gesamtgewicht, Euro Norm, Kraftstoff)]]="Pkw, Erdgas, CNG",Eingabe_Ausbringungen[[#This Row],[Angaben zu den Fahrzeugen (Lkw: zulässiges Gesamtgewicht, Euro Norm, Kraftstoff)]]="Pkw, Erdgas, LNG"),"kg / "&Streuflaeche[[#Totals],[Bewertete Streufläche bSF '[m²'] ]]&" m² bewertete Streufläche","Liter / "&Streuflaeche[[#Totals],[Bewertete Streufläche bSF '[m²'] ]]&" m² bewertete Streufläche") -> Liter / 0 m² bewertete Streufläche
G95: =IF(OR(Eingabe_Ausbringungen[[#This Row],[Angaben zu den Fahrzeugen (Lkw: zulässiges Gesamtgewicht, Euro Norm, Kraftstoff)]]="Pkw, Erdgas, CNG",Eingabe_Ausbringungen[[#This Row],[Angaben zu den Fahrzeugen (Lkw: zulässiges Gesamtgewicht, Euro Norm, Kraftstoff)]]="Pkw, Erdgas, LNG"),"kg / "&Streuflaeche[[#Totals],[Bewertete Streufläche bSF '[m²'] ]]&" m² bewertete Streufläche","Liter / "&Streuflaeche[[#Totals],[Bewertete Streufläche bSF '[m²'] ]]&" m² bewertete Streufläche") -> Liter / 0 m² bewertete Streufläche
G96: =IF(OR(Eingabe_Ausbringungen[[#This Row],[Angaben zu den Fahrzeugen (Lkw: zulässiges Gesamtgewicht, Euro Norm, Kraftstoff)]]="Pkw, Erdgas, CNG",Eingabe_Ausbringungen[[#This Row],[Angaben zu den Fahrzeugen (Lkw: zulässiges Gesamtgewicht, Euro Norm, Kraftstoff)]]="Pkw, Erdgas, LNG"),"kg / "&Streuflaeche[[#Totals],[Bewertete Streufläche bSF '[m²'] ]]&" m² bewertete Streufläche","Liter / "&Streuflaeche[[#Totals],[Bewertete Streufläche bSF '[m²'] ]]&" m² bewertete Streufläche") -> Liter / 0 m² bewertete Streufläche
G97: =IF(OR(Eingabe_Ausbringungen[[#This Row],[Angaben zu den Fahrzeugen (Lkw: zulässiges Gesamtgewicht, Euro Norm, Kraftstoff)]]="Pkw, Erdgas, CNG",Eingabe_Ausbringungen[[#This Row],[Angaben zu den Fahrzeugen (Lkw: zulässiges Gesamtgewicht, Euro Norm, Kraftstoff)]]="Pkw, Erdgas, LNG"),"kg / "&Streuflaeche[[#Totals],[Bewertete Streufläche bSF '[m²'] ]]&" m² bewertete Streufläche","Liter / "&Streuflaeche[[#Totals],[Bewertete Streufläche bSF '[m²'] ]]&" m² bewertete Streufläche") -> Liter / 0 m² bewertete Streufläche
G98: =IF(OR(Eingabe_Ausbringungen[[#This Row],[Angaben zu den Fahrzeugen (Lkw: zulässiges Gesamtgewicht, Euro Norm, Kraftstoff)]]="Pkw, Erdgas, CNG",Eingabe_Ausbringungen[[#This Row],[Angaben zu den Fahrzeugen (Lkw: zulässiges Gesamtgewicht, Euro Norm, Kraftstoff)]]="Pkw, Erdgas, LNG"),"kg / "&Streuflaeche[[#Totals],[Bewertete Streufläche bSF '[m²'] ]]&" m² bewertete Streufläche","Liter / "&Streuflaeche[[#Totals],[Bewertete Streufläche bSF '[m²'] ]]&" m² bewertete Streufläche") -> Liter / 0 m² bewertete Streufläche
B103: 4. Transport der Streumittel (trocken, Sole) vom Herstellungsort bis zur Meisterei / zum Bauhof
E104: Erläuterungen:
E105: Der Transportweg kann mehrere Abschnitte umfassen. Geben Sie die mit unterschiedlichen Transportmitteln erfolgten Transportbschnitte bitte getrennt ein.
E106: Sollten Sie für die Angaben zum Transport der Streumittel weitere Zeilen benötigen, dann können Sie diese über die Funktion "Zeilen einfügen" in die nachfolgende Tabelle einfügen.
E107: Beschreiben Sie in der ersten Spalte der nachfolgenden Tabelle den jeweiligen Abschnitt des Transportwegs. Beispiele für Transportabschnitte: vom Herstellungsort der Streumittel zur Meisterei oder zum Bauhof; vom Herstellungsort zu einem Zwischenlager des Lieferanten oder zum Zentrallager der Meisterei oder des Bauhofes; vom Zentrallager zur Meisterei oder zum Bauhof etc..
E108: Geben Sie für alle Transportabschnitte die Transportentfernung und das Transportmittel an.
E109: Sollten Ihnen Transportentfernungen nicht bekannt sein, so können Sie verschiedene Rechner nutzen, die im Internet zugünglich sind, beispeielsweise:
E110: • Antransport per LKW, Berechnung eines Landwegs: https://routing.openstreetmap.de/?z=4&center=47.724545%2C-29.707031&hl=de&alt=0&srv=0
E111: • Antransport per Schiff, Berechnung eines Wasserweges: https://www.searates.com/services/distances-time/
E112: • Antransport per Bahn: Für die Berechnung einer Bahnstrecke konnte kein vergleichbarer Rechner identifiziert werden. Bitte erfragen Sie die Transportentfernungen bei Ihren Lieferanten.
E113: Wählen Sie das Transportmittel aus dem Dropdownmenü aus. Falls Sie die EURO-Klasse eines LKW nicht kennen, wählen Sie bitte den Euro-3-Lkw aus (konservativer Ansatz).
E115: Beschreibung Transportprozesse, z.B. Produktionsstätte => Zentrallager; Prduktionsstätte =>Meisterei oder Zentrallager => Meisterei) | F115: Spezifikation transportiertes Streumittel | G115: Transportmittel | H115: Transportentfernung, einfache Entfernung (km) | I115: Menge an transportiertem Streumittel (Tonnen) | J115: Einheit | K115: Tonnenkilometer (automatisch berechneter Wert) (tkm/funktionelle Einheit) | L115: Datenqualität | M115: Anmerkung
J116: Tonnen/funkionelle Einheit | K116: =Eingabe_Antransport[[#This Row],[Transportentfernung, einfache Entfernung (km)]]*Eingabe_Antransport[[#This Row],[Menge an transportiertem Streumittel (Tonnen)]] -> 0.00
J117: Tonnen/funkionelle Einheit | K117: =Eingabe_Antransport[[#This Row],[Transportentfernung, einfache Entfernung (km)]]*Eingabe_Antransport[[#This Row],[Menge an transportiertem Streumittel (Tonnen)]] -> 0.00
J118: Tonnen/funkionelle Einheit | K118: =Eingabe_Antransport[[#This Row],[Transportentfernung, einfache Entfernung (km)]]*Eingabe_Antransport[[#This Row],[Menge an transportiertem Streumittel (Tonnen)]] -> 0.00
J119: Tonnen/funkionelle Einheit | K119: =Eingabe_Antransport[[#This Row],[Transportentfernung, einfache Entfernung (km)]]*Eingabe_Antransport[[#This Row],[Menge an transportiertem Streumittel (Tonnen)]] -> 0.00
J120: Tonnen/funkionelle Einheit | K120: =Eingabe_Antransport[[#This Row],[Transportentfernung, einfache Entfernung (km)]]*Eingabe_Antransport[[#This Row],[Menge an transportiertem Streumittel (Tonnen)]] -> 0.00
J121: Tonnen/funkionelle Einheit | K121: =Eingabe_Antransport[[#This Row],[Transportentfernung, einfache Entfernung (km)]]*Eingabe_Antransport[[#This Row],[Menge an transportiertem Streumittel (Tonnen)]] -> 0.00
J122: Tonnen/funkionelle Einheit | K122: =Eingabe_Antransport[[#This Row],[Transportentfernung, einfache Entfernung (km)]]*Eingabe_Antransport[[#This Row],[Menge an transportiertem Streumittel (Tonnen)]] -> 0.00
J123: Tonnen/funkionelle Einheit | K123: =Eingabe_Antransport[[#This Row],[Transportentfernung, einfache Entfernung (km)]]*Eingabe_Antransport[[#This Row],[Menge an transportiertem Streumittel (Tonnen)]] -> 0.00
J124: Tonnen/funkionelle Einheit | K124: =Eingabe_Antransport[[#This Row],[Transportentfernung, einfache Entfernung (km)]]*Eingabe_Antransport[[#This Row],[Menge an transportiertem Streumittel (Tonnen)]] -> 0.00
J125: Tonnen/funkionelle Einheit | K125: =Eingabe_Antransport[[#This Row],[Transportentfernung, einfache Entfernung (km)]]*Eingabe_Antransport[[#This Row],[Menge an transportiertem Streumittel (Tonnen)]] -> 0.00
J126: Tonnen/funkionelle Einheit | K126: =Eingabe_Antransport[[#This Row],[Transportentfernung, einfache Entfernung (km)]]*Eingabe_Antransport[[#This Row],[Menge an transportiertem Streumittel (Tonnen)]] -> 0.00
E128: Summe | I128: =SUBTOTAL(109,Eingabe_Antransport[Menge an transportiertem Streumittel (Tonnen)]) -> 0.00 | J128: Tonnen/funkionelle Einheit

Sheet Ergebnisse
C6: Bezeichnung Meisterei/Bauhof: | D6: ='Eingabe Untersuchungsrahmen'!D11 -> 0
C7: Adresse Meisterei/Bauhof: | D7: ='Eingabe Untersuchungsrahmen'!D12 -> 0
C8: Bundesland/Niederlassung: | D8: ='Eingabe Untersuchungsrahmen'!D13 -> 0
C9: Standort: | D9: ='Eingabe Untersuchungsrahmen'!D14 -> 0
C10: Bearbeiter*in(nen): | D10: ='Eingabe Untersuchungsrahmen'!D15 -> 0
C11: Datum: | D11: ='Eingabe Untersuchungsrahmen'!D16 -> 2023-12-01
C12: Funktionelle Einheit: | D12: ="Die funktionelle Einheit dieser Ökobilanz ist "&Streuflaeche[[#Totals],[Bewertete Streufläche bSF '[m²'] ]]&" m² bewertete Streufläche im Bilanzzeitraum "&TEXT('Eingabe Untersuchungsrahmen'!E42, "TT.MM.JJJJ")&"-"&TEXT('Eingabe Untersuchungsrahmen'!E43, "TT.MM.JJJJ") -> Die funktionelle Einheit dieser Ökobilanz ist 0 m² bewertete Streufläche im Bilanzzeitraum 01.11.2023-30.11.2023
C14: ='Eingabe Untersuchungsrahmen'!C51 -> Winterdienst:
C15: ='Eingabe Untersuchungsrahmen'!C52 -> Anteile Trockensalz, FS 30 und FS 100 der betrachteten Winterdienstaktivitäten (Einsätze in Prozent, geschätzt) | D15: =IF('Eingabe Untersuchungsrahmen'!E52="","k.A.",WD_Info_Salz) -> k.A.
C16: ='Eingabe Untersuchungsrahmen'!C53 -> Anteile präventiver und kurativer Maßnahmen der betrachteten Winterdienstaktivitäten (Einsätze in Prozent, geschätzt) | D16: =IF('Eingabe Untersuchungsrahmen'!E53="","k.A.",WD_Info_P_K_Maßnahmen) -> k.A.
C17: ='Eingabe Untersuchungsrahmen'!C54 -> Besonderheiten in Bezug auf die verwendeten Fahrzeuge und die eingesetzte Streutechnik | D17: =IF('Eingabe Untersuchungsrahmen'!E54="","k.A.",WD_Info_Technik) -> k.A.
C18: ='Eingabe Untersuchungsrahmen'!C55 -> Sonstige Besonderheiten in Bezug auf den durchgeführten Winterdienst | D18: =IF('Eingabe Untersuchungsrahmen'!E55="","k.A.",WD_Info_Besonderheiten_WD) -> k.A.
C19: ='Eingabe Untersuchungsrahmen'!C56 -> Gibt es interne Salz- und Soletransporte sowie Umschlagsprozesse? Wenn ja, diese bitte kurz beschreiben. | D19: =IF('Eingabe Untersuchungsrahmen'!E56="","k.A.",WD_info_interne_Transport_Umschlag) -> k.A.
C21: ='Eingabe Untersuchungsrahmen'!C58 -> Wetter- und Straßenbedingungen:
C22: ='Eingabe Untersuchungsrahmen'!C59 -> Schneefallereignisse (z.B. Häufigkeit, Dauer/Zeitpunkt und Schwere) | D22: =IF('Eingabe Untersuchungsrahmen'!E59="","k.A.",WD_Info_Schnee) -> k.A.
C23: ='Eingabe Untersuchungsrahmen'!C60 -> Reifglätte (z.B. Häufigkeit, Dauer/Zeitpunkt und Schwere) | D23: =IF('Eingabe Untersuchungsrahmen'!E60="","k.A.",WD_Info_Eis) -> k.A.
C24: ='Eingabe Untersuchungsrahmen'!C61 -> Eisglätte (z.B. Häufigkeit, Dauer/Zeitpunkt und Schwere) | D24: =IF('Eingabe Untersuchungsrahmen'!E61="","k.A.",WD_Info_Glatt) -> k.A.
C25: ='Eingabe Untersuchungsrahmen'!C62 -> Sonstige Besonderheiten der Wetterbedingungen | D25: =IF('Eingabe Untersuchungsrahmen'!E62="","k.A.",WD_Info_Wetter) -> k.A.
C26: ='Eingabe Untersuchungsrahmen'!C63 -> Besonderheiten in Bezug auf den Verkehr / die Verkehrsbedingungen | D26: =IF('Eingabe Untersuchungsrahmen'!E63="","k.A.",WD_Info_Besonderheiten_Verkehr) -> k.A.
B29: 1. Gesamtergebnis der Ökobilanz
C30: Erläuterungen zur Schreibweise der Ergebnisse:
C31: Die Darstellung der absoluten Ergebnisse erfolgt als Dezimalzahl mit zwei Nachkommastellen.
C32: Eine Ausnahme stellt die Wirkungskategorie Ozonabbaupotenzial dar. Da in dieser Wirkungskategorie sehr kleine Werte zu erwarten sind, wurde die wissenschaftliche Schreibweise gewählt.
C34: Funktionelle Einheit | D34: Kumulierter Energie Aufwand (MJ / funktionelle Einheit) | E34: Treibhauspotenzial (kg CO2-Äq / funktionelle Einheit) | F34: Versauerungspotenzial (mol H+-Äq/ funktionelle Einheit) | G34: Ozonabbaupotenzial (kg CFC11-Äq / funktionelle Einheit) | H34: Photooxidantienpotenzial (kg NMVOC-Äq / funktionelle Einheit)
C35: =Streuflaeche[[#Totals],[Bewertete Streufläche bSF '[m²'] ]] &" m² bewertete Streufläche im Bilanzzeitraum "&TEXT('Eingabe Untersuchungsrahmen'!E42, "TT.MM.JJJJ")&"-"&TEXT('Eingabe Untersuchungsrahmen'!E43, "TT.MM.JJJJ") -> 0 m² bewertete Streufläche im Bilanzzeitraum 01.11.2023-30.11.2023 | D35: =Ergebnis_Absolut[[#Totals],[Kumulierter Energie Aufwand (MJ / funktionelle Einheit)]] -> 0 | E35: =Ergebnis_Absolut[[#Totals],[Treibhauspotenzial (kg CO2-Äq / funktionelle Einheit)]] -> 0 | F35: =Ergebnis_Absolut[[#Totals],[Versauerungspotenzial (mol H+-Äq/ funktionelle Einheit)]] -> 0 | G35: =Ergebnis_Absolut[[#Totals],[Ozonabbaupotenzial (kg CFC11-Äq / funktionelle Einheit)]] -> 0 | H35: =Ergebnis_Absolut[[#Totals],[Photooxidantienpotenzial (kg NMVOC-Äq / funktionelle Einheit)]] -> 0
C36: 1 m² bewertete Streufläche im Bilanzzeitraum | D36: =D35/FU_bSF ->  | E36: =E35/FU_bSF ->  | F36: =F35/FU_bSF ->  | G36: =G35/FU_bSF ->  | H36: =H35/FU_bSF -> 
C39: Erläuterungen zur Datenqualität
C40: In der nachfolgenden Tabelle wird die Datenqualtiät der spezifischen Daten dargestellt, die Sie eingegeben haben.
C41: Die Datenqualität bildet nicht ab, welche Bedeutung die jeweiligen spezifischen Daten im Rahmen der Bilanz haben,
C42: z.B. welchen Einfluss es auf das Ergebnis hätte, wenn statt eines grob abgeschätzten Wertes ein gemessener Wert eingegeben würde.
C43: Prüfen Sie daher in der nachfolgenden differenzierten Darstellung der Ergebnisse, welche Prozesse besonders relevant sind,
C44: und welche Datenqualität die entsprechenden von Ihnen eingegebenen spezifischen Daten haben.
C45: Ist der Beitrag eines Prozesses besonders groß, kann es sinnvoll sein Daten nachzuerheben, um die Datenqualität zu verbessern und das Ergebnis der Ökobilanz zu präzisieren.
C47: Datenqualität der spezifischen Daten | D47: Anzahl | E47: Anteil in %
C48: gemessen | D48: =SUM(COUNTIF(INDIRECT({"Eingabe_Meisterei_Intern_Prozess_Inventar[Datenqualität]";"Eingabe_Eigene_Stromerzeugung[Datenqualität]";"Eingabe_Eigene_Waermebereitstellung[Datenqualität]";"Eingabe_Ausbringungen_Fremdsalz[Datenqualität]";"Eingabe_Ausbringungen_FremdSole[Datenqualität]";"Eingabe_Ausbringungen[Datenqualität]";"Eingabe_Antransport[Datenqualität]"}),C48)) -> 0 | E48: =D48/$D$51 -> 0%
C49: berechnet | D49: =SUM(COUNTIF(INDIRECT({"Eingabe_Meisterei_Intern_Prozess_Inventar[Datenqualität]";"Eingabe_Eigene_Stromerzeugung[Datenqualität]";"Eingabe_Eigene_Waermebereitstellung[Datenqualität]";"Eingabe_Ausbringungen_Fremdsalz[Datenqualität]";"Eingabe_Ausbringungen_FremdSole[Datenqualität]";"Eingabe_Ausbringungen[Datenqualität]";"Eingabe_Antransport[Datenqualität]"}),C49)) -> 1 | E49: =D49/$D$51 -> 100%
C50: abgeschätzt | D50: =SUM(COUNTIF(INDIRECT({"Eingabe_Meisterei_Intern_Prozess_Inventar[Datenqualität]";"Eingabe_Eigene_Stromerzeugung[Datenqualität]";"Eingabe_Eigene_Waermebereitstellung[Datenqualität]";"Eingabe_Ausbringungen_Fremdsalz[Datenqualität]";"Eingabe_Ausbringungen_FremdSole[Datenqualität]";"Eingabe_Ausbringungen[Datenqualität]";"Eingabe_Antransport[Datenqualität]"}),C50)) -> 0 | E50: =D50/$D$51 -> 0%
C51: Summe | D51: =SUM(D48:D50) -> 1 | E51: =D51/$D$51 -> 100%
B55: 2. Darstellung der Ökobilanz-Ergebnisse differenziert nach Prozessen
B56: 2.1 | C56: Beitraganalyse
C57: 2.1.1 Absolute Ergebnisse nach Prozessen
C58: Erläuterung:
C59: In der nachfolgenden Tabelle werden die Zahlenwerte mit einem Farbbalken hinterlegt. Die Größe des Farbbalkens spiegelt die Größe des Beitrags innerhalb einer Umweltwirkungskategorie wieder.
C63: Prozess | D63: Kumulierter Energie Aufwand (MJ / funktionelle Einheit) | E63: Treibhauspotenzial (kg CO2-Äq / funktionelle Einheit) | F63: Versauerungspotenzial (mol H+-Äq/ funktionelle Einheit) | G63: Ozonabbaupotenzial (kg CFC11-Äq / funktionelle Einheit) | H63: Photooxidantienpotenzial (kg NMVOC-Äq / funktionelle Einheit)
C64: Herstellung der Streumittel (trockene Streumittel und Sole) | D64: =Result_KEA_Sole_Herstellung+Result_KEA_Trockensalz_Herstellung -> 0 | E64: =Result_GWP_Sole_Herstellung+Result_GWP_Trockensalz_Herstellung -> 0 | F64: =Result_AP_Sole_Herstellung+Result_AP_Trockensalz_Herstellung -> 0 | G64: =Result_ODP_Sole_Herstellung+Result_ODP_Trockensalz_Herstellung -> 0 | H64: =Result_POCP_Sole_Herstellung+Result_POCP_Trockensalz_Herstellung -> 0
C65: Transporte der Streumittel (trockene Streumittel und Sole) | D65: =Result_KEA_Antransport -> 0 | E65: =Result_GWP_Antransport -> 0 | F65: =Result_AP_Antransport -> 0 | G65: =Result_ODP_Antransport -> 0 | H65: =Result_POCP_Antransport -> 0
C66: Ausbringung der Streumittel (direkte Emisssionen bei der Ausbringung und Herstellung Kraftstoffe) | D66: =Result_Ausbringung_KEA -> 0 | E66: =Result_Ausbringung_GWP -> 0 | F66: =Result_Ausbringung_AP -> 0 | G66: =Result_Ausbringung_ODP -> 0 | H66: =Result_Ausbringung_POCP -> 0
C67: Stromverbrauch in der Meisterei / im Bauhof (Bereitstellung Strom, Netzbezug) | D67: =Eingabe_Strom_stromnetz*EF_KEA_Strom -> 0 | E67: =Eingabe_Strom_stromnetz*EF_GWP_Strom -> 0 | F67: =Eingabe_Strom_stromnetz*EF_AP_Strom -> 0 | G67: =Eingabe_Strom_stromnetz*EF_ODP_Strom -> 0 | H67: =Eingabe_Strom_stromnetz*EF_POCP_Strom -> 0
C68: Stromverbrauch in der Meisterei / im Bauhof (Bereitstellung Strom, eigene Stromerzeugung) | D68: =Eingabe_Eigene_Stromerzeugung[Verbrauch]*Emissionsfaktoren!D$84 -> 0 | E68: =Eingabe_Eigene_Stromerzeugung[Verbrauch]*Emissionsfaktoren!E$84 -> 0 | F68: =Eingabe_Eigene_Stromerzeugung[Verbrauch]*Emissionsfaktoren!F$84 -> 0 | G68: =Eingabe_Eigene_Stromerzeugung[Verbrauch]*Emissionsfaktoren!G$84 -> 0 | H68: =Eingabe_Eigene_Stromerzeugung[Verbrauch]*Emissionsfaktoren!H$84 -> 0
C69: Wärmeverbrauch in der Meisterei / im Bauhof (Bereitstellung Wärme, Netzbezug) | D69: =Eingabe_Waermemix*EF_KEA_Waerme -> 0 | E69: =Eingabe_Waermemix*EF_GWP_Waerme -> 0 | F69: =Eingabe_Waermemix*EF_AP_Waerme -> 0 | G69: =Eingabe_Waermemix*EF_ODP_Waerme -> 0 | H69: =Eingabe_Waermemix*EF_POCP_Waerme -> 0
C70: Wärmeverbrauch in der Meisterei / im Bauhof (Bereitstellung Wärme, eigene Wärmeerzeugung) | D70: =Result_KEA_Waerme_EigenE -> 0 | E70: =Result_GWP_Waerme_EigenE -> 0 | F70: =Result_AP_Waerme_EigenE -> 0 | G70: =Result_ODP_Waerme_EigenE -> 0 | H70: =Result_POCP_Waerme_EigenE -> 0
C71: Wasserverbrauch (Bereitstellung Trinwasser, Bezug Leitungswasser) für Sole-Herstellung sowie die Reinigung von Fahrzeugen und Streumaschinen | D71: =Eingabe_Leitungswasser*EF_KEA_Wasser -> 0 | E71: =Eingabe_Leitungswasser*EF_GWP_Wasser -> 0 | F71: =Eingabe_Leitungswasser*EF_AP_Wasser -> 0 | G71: =Eingabe_Leitungswasser*EF_ODP_Wasser -> 0 | H71: =Eingabe_Leitungswasser*EF_POCP_Wasser -> 0
C72: Herstellung von Motor- und Hydrauliköl sowie Diesel für Prozesse in der Meisterei / im Bauhof | D72: =Eingabe_Oel*Emissionsfaktoren!D102+Eingabe_Beladung_Dieselverbrauch*Emissionsfaktoren!D103 -> 0 | E72: =Eingabe_Oel*Emissionsfaktoren!E102+Eingabe_Beladung_Dieselverbrauch*Emissionsfaktoren!E103 -> 0 | F72: =Eingabe_Oel*Emissionsfaktoren!F102+Eingabe_Beladung_Dieselverbrauch*Emissionsfaktoren!F103 -> 0 | G72: =Eingabe_Oel*Emissionsfaktoren!G102+Eingabe_Beladung_Dieselverbrauch*Emissionsfaktoren!G103 -> 0 | H72: =Eingabe_Oel*Emissionsfaktoren!H102+Eingabe_Beladung_Dieselverbrauch*Emissionsfaktoren!H103 -> 0
C73: Summe | D73: =SUBTOTAL(109,Ergebnis_Absolut[Kumulierter Energie Aufwand (MJ / funktionelle Einheit)]) -> 0 | E73: =SUBTOTAL(109,Ergebnis_Absolut[Treibhauspotenzial (kg CO2-Äq / funktionelle Einheit)]) -> 0 | F73: =SUBTOTAL(109,Ergebnis_Absolut[Versauerungspotenzial (mol H+-Äq/ funktionelle Einheit)]) -> 0 | G73: =SUBTOTAL(109,Ergebnis_Absolut[Ozonabbaupotenzial (kg CFC11-Äq / funktionelle Einheit)]) -> 0 | H73: =SUBTOTAL(109,Ergebnis_Absolut[Photooxidantienpotenzial (kg NMVOC-Äq / funktionelle Einheit)]) -> 0
C75: 2.1.2 Anteile der einzelnen Prozesse am Gesamtergebnis
C76: Prozess | D76: Kumulierter Energie Aufwand (MJ / funktionelle Einheit) | E76: Treibhauspotenzial (kg CO2-Äq / funktionelle Einheit) | F76: Versauerungspotenzial (mol H+-Äq/ funktionelle Einheit) | G76: Ozonabbaupotenzial (kg CFC11-Äq / funktionelle Einheit) | H76: Photooxidantienpotenzial (kg NMVOC-Äq / funktionelle Einheit)
C77: =C64 -> Herstellung der Streumittel (trockene Streumittel und Sole) | D77: =D64/Ergebnis_Absolut[[#Totals],[Kumulierter Energie Aufwand (MJ / funktionelle Einheit)]] ->  | E77: =E64/Ergebnis_Absolut[[#Totals],[Treibhauspotenzial (kg CO2-Äq / funktionelle Einheit)]] ->  | F77: =F64/Ergebnis_Absolut[[#Totals],[Versauerungspotenzial (mol H+-Äq/ funktionelle Einheit)]] ->  | G77: =G64/Ergebnis_Absolut[[#Totals],[Ozonabbaupotenzial (kg CFC11-Äq / funktionelle Einheit)]] ->  | H77: =H64/Ergebnis_Absolut[[#Totals],[Photooxidantienpotenzial (kg NMVOC-Äq / funktionelle Einheit)]] -> 
C78: Transporte der Streumittel (trockene Streumittel und Sole) | D78: =D65/Ergebnis_Absolut[[#Totals],[Kumulierter Energie Aufwand (MJ / funktionelle Einheit)]] ->  | E78: =E65/Ergebnis_Absolut[[#Totals],[Treibhauspotenzial (kg CO2-Äq / funktionelle Einheit)]] ->  | F78: =F65/Ergebnis_Absolut[[#Totals],[Versauerungspotenzial (mol H+-Äq/ funktionelle Einheit)]] ->  | G78: =G65/Ergebnis_Absolut[[#Totals],[Ozonabbaupotenzial (kg CFC11-Äq / funktionelle Einheit)]] ->  | H78: =H65/Ergebnis_Absolut[[#Totals],[Photooxidantienpotenzial (kg NMVOC-Äq / funktionelle Einheit)]] -> 
C79: Ausbringung der Streumittel (direkte Emisssionen bei der Ausbringung und Herstellung Kraftstoffe) | D79: =D66/Ergebnis_Absolut[[#Totals],[Kumulierter Energie Aufwand (MJ / funktionelle Einheit)]] ->  | E79: =E66/Ergebnis_Absolut[[#Totals],[Treibhauspotenzial (kg CO2-Äq / funktionelle Einheit)]] ->  | F79: =F66/Ergebnis_Absolut[[#Totals],[Versauerungspotenzial (mol H+-Äq/ funktionelle Einheit)]] ->  | G79: =G66/Ergebnis_Absolut[[#Totals],[Ozonabbaupotenzial (kg CFC11-Äq / funktionelle Einheit)]] ->  | H79: =H66/Ergebnis_Absolut[[#Totals],[Photooxidantienpotenzial (kg NMVOC-Äq / funktionelle Einheit)]] -> 
C80: Stromverbrauch in der Meisterei / im Bauhof (Bereitstellung Strom, Netzbezug) | D80: =D67/Ergebnis_Absolut[[#Totals],[Kumulierter Energie Aufwand (MJ / funktionelle Einheit)]] ->  | E80: =E67/Ergebnis_Absolut[[#Totals],[Treibhauspotenzial (kg CO2-Äq / funktionelle Einheit)]] ->  | F80: =F67/Ergebnis_Absolut[[#Totals],[Versauerungspotenzial (mol H+-Äq/ funktionelle Einheit)]] ->  | G80: =G67/Ergebnis_Absolut[[#Totals],[Ozonabbaupotenzial (kg CFC11-Äq / funktionelle Einheit)]] ->  | H80: =H67/Ergebnis_Absolut[[#Totals],[Photooxidantienpotenzial (kg NMVOC-Äq / funktionelle Einheit)]] -> 
C81: Stromverbrauch in der Meisterei / im Bauhof (Bereitstellung Strom, eigene Stromerzeugung) | D81: =D68/Ergebnis_Absolut[[#Totals],[Kumulierter Energie Aufwand (MJ / funktionelle Einheit)]] ->  | E81: =E68/Ergebnis_Absolut[[#Totals],[Treibhauspotenzial (kg CO2-Äq / funktionelle Einheit)]] ->  | F81: =F68/Ergebnis_Absolut[[#Totals],[Versauerungspotenzial (mol H+-Äq/ funktionelle Einheit)]] ->  | G81: =G68/Ergebnis_Absolut[[#Totals],[Ozonabbaupotenzial (kg CFC11-Äq / funktionelle Einheit)]] ->  | H81: =H68/Ergebnis_Absolut[[#Totals],[Photooxidantienpotenzial (kg NMVOC-Äq / funktionelle Einheit)]] -> 
C82: Wärmeverbrauch in der Meisterei / im Bauhof (Bereitstellung Wärme, Netzbezug) | D82: =D69/Ergebnis_Absolut[[#Totals],[Kumulierter Energie Aufwand (MJ / funktionelle Einheit)]] ->  | E82: =E69/Ergebnis_Absolut[[#Totals],[Treibhauspotenzial (kg CO2-Äq / funktionelle Einheit)]] ->  | F82: =F69/Ergebnis_Absolut[[#Totals],[Versauerungspotenzial (mol H+-Äq/ funktionelle Einheit)]] ->  | G82: =G69/Ergebnis_Absolut[[#Totals],[Ozonabbaupotenzial (kg CFC11-Äq / funktionelle Einheit)]] ->  | H82: =H69/Ergebnis_Absolut[[#Totals],[Photooxidantienpotenzial (kg NMVOC-Äq / funktionelle Einheit)]] -> 
C83: =C70 -> Wärmeverbrauch in der Meisterei / im Bauhof (Bereitstellung Wärme, eigene Wärmeerzeugung) | D83: =D70/Ergebnis_Absolut[[#Totals],[Kumulierter Energie Aufwand (MJ / funktionelle Einheit)]] ->  | E83: =E70/Ergebnis_Absolut[[#Totals],[Treibhauspotenzial (kg CO2-Äq / funktionelle Einheit)]] ->  | F83: =F70/Ergebnis_Absolut[[#Totals],[Versauerungspotenzial (mol H+-Äq/ funktionelle Einheit)]] ->  | G83: =G70/Ergebnis_Absolut[[#Totals],[Ozonabbaupotenzial (kg CFC11-Äq / funktionelle Einheit)]] ->  | H83: =H70/Ergebnis_Absolut[[#Totals],[Photooxidantienpotenzial (kg NMVOC-Äq / funktionelle Einheit)]] -> 
C84: =C71 -> Wasserverbrauch (Bereitstellung Trinwasser, Bezug Leitungswasser) für Sole-Herstellung sowie die Reinigung von Fahrzeugen und Streumaschinen | D84: =D71/Ergebnis_Absolut[[#Totals],[Kumulierter Energie Aufwand (MJ / funktionelle Einheit)]] ->  | E84: =E71/Ergebnis_Absolut[[#Totals],[Treibhauspotenzial (kg CO2-Äq / funktionelle Einheit)]] ->  | F84: =F71/Ergebnis_Absolut[[#Totals],[Versauerungspotenzial (mol H+-Äq/ funktionelle Einheit)]] ->  | G84: =G71/Ergebnis_Absolut[[#Totals],[Ozonabbaupotenzial (kg CFC11-Äq / funktionelle Einheit)]] ->  | H84: =H71/Ergebnis_Absolut[[#Totals],[Photooxidantienpotenzial (kg NMVOC-Äq / funktionelle Einheit)]] -> 
C85: Herstellung von Motor- und Hydrauliköl sowie Diesel für Prozesse in der Meisterei / im Bauhof | D85: =D72/Ergebnis_Absolut[[#Totals],[Kumulierter Energie Aufwand (MJ / funktionelle Einheit)]] ->  | E85: =E72/Ergebnis_Absolut[[#Totals],[Treibhauspotenzial (kg CO2-Äq / funktionelle Einheit)]] ->  | F85: =F72/Ergebnis_Absolut[[#Totals],[Versauerungspotenzial (mol H+-Äq/ funktionelle Einheit)]] ->  | G85: =G72/Ergebnis_Absolut[[#Totals],[Ozonabbaupotenzial (kg CFC11-Äq / funktionelle Einheit)]] ->  | H85: =H72/Ergebnis_Absolut[[#Totals],[Photooxidantienpotenzial (kg NMVOC-Äq / funktionelle Einheit)]] -> 
C86: Summe | D86: =SUBTOTAL(109,Ergebnisse!$D$77:$D$85) -> 0% | E86: =SUBTOTAL(109,Ergebnisse!$E$77:$E$85) -> 0% | F86: =SUBTOTAL(109,Ergebnisse!$F$77:$F$85) -> 0% | G86: =SUBTOTAL(109,Ergebnisse!$G$77:$G$85) -> 0% | H86: =SUBTOTAL(109,Ergebnisse!$H$77:$H$85) -> 0%
B88: 2.2 | C88: =C64 -> Herstellung der Streumittel (trockene Streumittel und Sole)
C89: 2.2.1 Verbrauch an trockenen Streumitteln (Trockensalz für die Ausbringung sowie für die eigene Herstellung von Sole)
C90: Bezeichnung Streumittel | D90: Kumulierter Energie Aufwand (MJ / funktionelle Einheit) | E90: Treibhauspotenzial (kg CO2-Äq / funktionelle Einheit) | F90: Versauerungspotenzial (mol H+-Äq/ funktionelle Einheit) | G90: Ozonabbaupotenzial (kg CFC11-Äq / funktionelle Einheit | H90: Photooxidantienpotenzial (kg NMVOC-Äq / funktionelle Einheit)
C91: Natriumchlorid (aus Steinsalz) | D91: =SUMIF(Eingabe_Ausbringungen_Fremdsalz[Bezeichnung Streumittel (Trockensalz)],Result_Trockensalz[[#This Row],[Bezeichnung Streumittel]],Eingabe_Ausbringungen_Fremdsalz[Verbrauch '[Tonnen/funktionelle Einheit']])*_xlfn.XLOOKUP(Result_Trockensalz[[#This Row],[Bezeichnung Streumittel]],EF_StreumittelTrocken_Herstellung[Trockensalz],EF_StreumittelTrocken_Herstellung[KEA (MJ / Tonne)]) -> 0 | E91: =SUMIF(Eingabe_Ausbringungen_Fremdsalz[Bezeichnung Streumittel (Trockensalz)],Result_Trockensalz[[#This Row],[Bezeichnung Streumittel]],Eingabe_Ausbringungen_Fremdsalz[Verbrauch '[Tonnen/funktionelle Einheit']])*_xlfn.XLOOKUP(Result_Trockensalz[[#This Row],[Bezeichnung Streumittel]],EF_StreumittelTrocken_Herstellung[Trockensalz],EF_StreumittelTrocken_Herstellung[GWP (kg CO2Äq. / Tonne)]) -> 0 | F91: =SUMIF(Eingabe_Ausbringungen_Fremdsalz[Bezeichnung Streumittel (Trockensalz)],Result_Trockensalz[[#This Row],[Bezeichnung Streumittel]],Eingabe_Ausbringungen_Fremdsalz[Verbrauch '[Tonnen/funktionelle Einheit']])*_xlfn.XLOOKUP(Result_Trockensalz[[#This Row],[Bezeichnung Streumittel]],EF_StreumittelTrocken_Herstellung[Trockensalz],EF_StreumittelTrocken_Herstellung[AP (mol H+ Äq. / Tonne)]) -> 0 | G91: =SUMIF(Eingabe_Ausbringungen_Fremdsalz[Bezeichnung Streumittel (Trockensalz)],Result_Trockensalz[[#This Row],[Bezeichnung Streumittel]],Eingabe_Ausbringungen_Fremdsalz[Verbrauch '[Tonnen/funktionelle Einheit']])*_xlfn.XLOOKUP(Result_Trockensalz[[#This Row],[Bezeichnung Streumittel]],EF_StreumittelTrocken_Herstellung[Trockensalz],EF_StreumittelTrocken_Herstellung[ODP (kg FCKW-11 Äq. / Tonne)]) -> 0 | H91: =SUMIF(Eingabe_Ausbringungen_Fremdsalz[Bezeichnung Streumittel (Trockensalz)],Result_Trockensalz[[#This Row],[Bezeichnung Streumittel]],Eingabe_Ausbringungen_Fremdsalz[Verbrauch '[Tonnen/funktionelle Einheit']])*_xlfn.XLOOKUP(Result_Trockensalz[[#This Row],[Bezeichnung Streumittel]],EF_StreumittelTrocken_Herstellung[Trockensalz],EF_StreumittelTrocken_Herstellung[POCP (kg NMVOC Äq. / Tonne)]) -> 0
C92: Natriumchlorid (aus Siedesalz) | D92: =SUMIF(Eingabe_Ausbringungen_Fremdsalz[Bezeichnung Streumittel (Trockensalz)],Result_Trockensalz[[#This Row],[Bezeichnung Streumittel]],Eingabe_Ausbringungen_Fremdsalz[Verbrauch '[Tonnen/funktionelle Einheit']])*_xlfn.XLOOKUP(Result_Trockensalz[[#This Row],[Bezeichnung Streumittel]],EF_StreumittelTrocken_Herstellung[Trockensalz],EF_StreumittelTrocken_Herstellung[KEA (MJ / Tonne)]) -> 0 | E92: =SUMIF(Eingabe_Ausbringungen_Fremdsalz[Bezeichnung Streumittel (Trockensalz)],Result_Trockensalz[[#This Row],[Bezeichnung Streumittel]],Eingabe_Ausbringungen_Fremdsalz[Verbrauch '[Tonnen/funktionelle Einheit']])*_xlfn.XLOOKUP(Result_Trockensalz[[#This Row],[Bezeichnung Streumittel]],EF_StreumittelTrocken_Herstellung[Trockensalz],EF_StreumittelTrocken_Herstellung[GWP (kg CO2Äq. / Tonne)]) -> 0 | F92: =SUMIF(Eingabe_Ausbringungen_Fremdsalz[Bezeichnung Streumittel (Trockensalz)],Result_Trockensalz[[#This Row],[Bezeichnung Streumittel]],Eingabe_Ausbringungen_Fremdsalz[Verbrauch '[Tonnen/funktionelle Einheit']])*_xlfn.XLOOKUP(Result_Trockensalz[[#This Row],[Bezeichnung Streumittel]],EF_StreumittelTrocken_Herstellung[Trockensalz],EF_StreumittelTrocken_Herstellung[AP (mol H+ Äq. / Tonne)]) -> 0 | G92: =SUMIF(Eingabe_Ausbringungen_Fremdsalz[Bezeichnung Streumittel (Trockensalz)],Result_Trockensalz[[#This Row],[Bezeichnung Streumittel]],Eingabe_Ausbringungen_Fremdsalz[Verbrauch '[Tonnen/funktionelle Einheit']])*_xlfn.XLOOKUP(Result_Trockensalz[[#This Row],[Bezeichnung Streumittel]],EF_StreumittelTrocken_Herstellung[Trockensalz],EF_StreumittelTrocken_Herstellung[ODP (kg FCKW-11 Äq. / Tonne)]) -> 0 | H92: =SUMIF(Eingabe_Ausbringungen_Fremdsalz[Bezeichnung Streumittel (Trockensalz)],Result_Trockensalz[[#This Row],[Bezeichnung Streumittel]],Eingabe_Ausbringungen_Fremdsalz[Verbrauch '[Tonnen/funktionelle Einheit']])*_xlfn.XLOOKUP(Result_Trockensalz[[#This Row],[Bezeichnung Streumittel]],EF_StreumittelTrocken_Herstellung[Trockensalz],EF_StreumittelTrocken_Herstellung[POCP (kg NMVOC Äq. / Tonne)]) -> 0
C93: Natriumchlorid (aus Meersalz) | D93: =SUMIF(Eingabe_Ausbringungen_Fremdsalz[Bezeichnung Streumittel (Trockensalz)],Result_Trockensalz[[#This Row],[Bezeichnung Streumittel]],Eingabe_Ausbringungen_Fremdsalz[Verbrauch '[Tonnen/funktionelle Einheit']])*_xlfn.XLOOKUP(Result_Trockensalz[[#This Row],[Bezeichnung Streumittel]],EF_StreumittelTrocken_Herstellung[Trockensalz],EF_StreumittelTrocken_Herstellung[KEA (MJ / Tonne)]) -> 0 | E93: =SUMIF(Eingabe_Ausbringungen_Fremdsalz[Bezeichnung Streumittel (Trockensalz)],Result_Trockensalz[[#This Row],[Bezeichnung Streumittel]],Eingabe_Ausbringungen_Fremdsalz[Verbrauch '[Tonnen/funktionelle Einheit']])*_xlfn.XLOOKUP(Result_Trockensalz[[#This Row],[Bezeichnung Streumittel]],EF_StreumittelTrocken_Herstellung[Trockensalz],EF_StreumittelTrocken_Herstellung[GWP (kg CO2Äq. / Tonne)]) -> 0 | F93: =SUMIF(Eingabe_Ausbringungen_Fremdsalz[Bezeichnung Streumittel (Trockensalz)],Result_Trockensalz[[#This Row],[Bezeichnung Streumittel]],Eingabe_Ausbringungen_Fremdsalz[Verbrauch '[Tonnen/funktionelle Einheit']])*_xlfn.XLOOKUP(Result_Trockensalz[[#This Row],[Bezeichnung Streumittel]],EF_StreumittelTrocken_Herstellung[Trockensalz],EF_StreumittelTrocken_Herstellung[AP (mol H+ Äq. / Tonne)]) -> 0 | G93: =SUMIF(Eingabe_Ausbringungen_Fremdsalz[Bezeichnung Streumittel (Trockensalz)],Result_Trockensalz[[#This Row],[Bezeichnung Streumittel]],Eingabe_Ausbringungen_Fremdsalz[Verbrauch '[Tonnen/funktionelle Einheit']])*_xlfn.XLOOKUP(Result_Trockensalz[[#This Row],[Bezeichnung Streumittel]],EF_StreumittelTrocken_Herstellung[Trockensalz],EF_StreumittelTrocken_Herstellung[ODP (kg FCKW-11 Äq. / Tonne)]) -> 0 | H93: =SUMIF(Eingabe_Ausbringungen_Fremdsalz[Bezeichnung Streumittel (Trockensalz)],Result_Trockensalz[[#This Row],[Bezeichnung Streumittel]],Eingabe_Ausbringungen_Fremdsalz[Verbrauch '[Tonnen/funktionelle Einheit']])*_xlfn.XLOOKUP(Result_Trockensalz[[#This Row],[Bezeichnung Streumittel]],EF_StreumittelTrocken_Herstellung[Trockensalz],EF_StreumittelTrocken_Herstellung[POCP (kg NMVOC Äq. / Tonne)]) -> 0
C94: Calciumchlorid (Prills, 100%) | D94: =SUMIF(Eingabe_Ausbringungen_Fremdsalz[Bezeichnung Streumittel (Trockensalz)],Result_Trockensalz[[#This Row],[Bezeichnung Streumittel]],Eingabe_Ausbringungen_Fremdsalz[Verbrauch '[Tonnen/funktionelle Einheit']])*_xlfn.XLOOKUP(Result_Trockensalz[[#This Row],[Bezeichnung Streumittel]],EF_StreumittelTrocken_Herstellung[Trockensalz],EF_StreumittelTrocken_Herstellung[KEA (MJ / Tonne)]) -> 0 | E94: =SUMIF(Eingabe_Ausbringungen_Fremdsalz[Bezeichnung Streumittel (Trockensalz)],Result_Trockensalz[[#This Row],[Bezeichnung Streumittel]],Eingabe_Ausbringungen_Fremdsalz[Verbrauch '[Tonnen/funktionelle Einheit']])*_xlfn.XLOOKUP(Result_Trockensalz[[#This Row],[Bezeichnung Streumittel]],EF_StreumittelTrocken_Herstellung[Trockensalz],EF_StreumittelTrocken_Herstellung[GWP (kg CO2Äq. / Tonne)]) -> 0 | F94: =SUMIF(Eingabe_Ausbringungen_Fremdsalz[Bezeichnung Streumittel (Trockensalz)],Result_Trockensalz[[#This Row],[Bezeichnung Streumittel]],Eingabe_Ausbringungen_Fremdsalz[Verbrauch '[Tonnen/funktionelle Einheit']])*_xlfn.XLOOKUP(Result_Trockensalz[[#This Row],[Bezeichnung Streumittel]],EF_StreumittelTrocken_Herstellung[Trockensalz],EF_StreumittelTrocken_Herstellung[AP (mol H+ Äq. / Tonne)]) -> 0 | G94: =SUMIF(Eingabe_Ausbringungen_Fremdsalz[Bezeichnung Streumittel (Trockensalz)],Result_Trockensalz[[#This Row],[Bezeichnung Streumittel]],Eingabe_Ausbringungen_Fremdsalz[Verbrauch '[Tonnen/funktionelle Einheit']])*_xlfn.XLOOKUP(Result_Trockensalz[[#This Row],[Bezeichnung Streumittel]],EF_StreumittelTrocken_Herstellung[Trockensalz],EF_StreumittelTrocken_Herstellung[ODP (kg FCKW-11 Äq. / Tonne)]) -> 0 | H94: =SUMIF(Eingabe_Ausbringungen_Fremdsalz[Bezeichnung Streumittel (Trockensalz)],Result_Trockensalz[[#This Row],[Bezeichnung Streumittel]],Eingabe_Ausbringungen_Fremdsalz[Verbrauch '[Tonnen/funktionelle Einheit']])*_xlfn.XLOOKUP(Result_Trockensalz[[#This Row],[Bezeichnung Streumittel]],EF_StreumittelTrocken_Herstellung[Trockensalz],EF_StreumittelTrocken_Herstellung[POCP (kg NMVOC Äq. / Tonne)]) -> 0
C95: Calciumchlorid (Flakes 76-82%) | D95: =SUMIF(Eingabe_Ausbringungen_Fremdsalz[Bezeichnung Streumittel (Trockensalz)],Result_Trockensalz[[#This Row],[Bezeichnung Streumittel]],Eingabe_Ausbringungen_Fremdsalz[Verbrauch '[Tonnen/funktionelle Einheit']])*_xlfn.XLOOKUP(Result_Trockensalz[[#This Row],[Bezeichnung Streumittel]],EF_StreumittelTrocken_Herstellung[Trockensalz],EF_StreumittelTrocken_Herstellung[KEA (MJ / Tonne)]) -> 0 | E95: =SUMIF(Eingabe_Ausbringungen_Fremdsalz[Bezeichnung Streumittel (Trockensalz)],Result_Trockensalz[[#This Row],[Bezeichnung Streumittel]],Eingabe_Ausbringungen_Fremdsalz[Verbrauch '[Tonnen/funktionelle Einheit']])*_xlfn.XLOOKUP(Result_Trockensalz[[#This Row],[Bezeichnung Streumittel]],EF_StreumittelTrocken_Herstellung[Trockensalz],EF_StreumittelTrocken_Herstellung[GWP (kg CO2Äq. / Tonne)]) -> 0 | F95: =SUMIF(Eingabe_Ausbringungen_Fremdsalz[Bezeichnung Streumittel (Trockensalz)],Result_Trockensalz[[#This Row],[Bezeichnung Streumittel]],Eingabe_Ausbringungen_Fremdsalz[Verbrauch '[Tonnen/funktionelle Einheit']])*_xlfn.XLOOKUP(Result_Trockensalz[[#This Row],[Bezeichnung Streumittel]],EF_StreumittelTrocken_Herstellung[Trockensalz],EF_StreumittelTrocken_Herstellung[AP (mol H+ Äq. / Tonne)]) -> 0 | G95: =SUMIF(Eingabe_Ausbringungen_Fremdsalz[Bezeichnung Streumittel (Trockensalz)],Result_Trockensalz[[#This Row],[Bezeichnung Streumittel]],Eingabe_Ausbringungen_Fremdsalz[Verbrauch '[Tonnen/funktionelle Einheit']])*_xlfn.XLOOKUP(Result_Trockensalz[[#This Row],[Bezeichnung Streumittel]],EF_StreumittelTrocken_Herstellung[Trockensalz],EF_StreumittelTrocken_Herstellung[ODP (kg FCKW-11 Äq. / Tonne)]) -> 0 | H95: =SUMIF(Eingabe_Ausbringungen_Fremdsalz[Bezeichnung Streumittel (Trockensalz)],Result_Trockensalz[[#This Row],[Bezeichnung Streumittel]],Eingabe_Ausbringungen_Fremdsalz[Verbrauch '[Tonnen/funktionelle Einheit']])*_xlfn.XLOOKUP(Result_Trockensalz[[#This Row],[Bezeichnung Streumittel]],EF_StreumittelTrocken_Herstellung[Trockensalz],EF_StreumittelTrocken_Herstellung[POCP (kg NMVOC Äq. / Tonne)]) -> 0
C96: Summe | D96: =SUBTOTAL(109,Result_Trockensalz[Kumulierter Energie Aufwand (MJ / funktionelle Einheit)]) -> 0 | E96: =SUBTOTAL(109,Result_Trockensalz[Treibhauspotenzial (kg CO2-Äq / funktionelle Einheit)]) -> 0 | F96: =SUBTOTAL(109,Result_Trockensalz[Versauerungspotenzial (mol H+-Äq/ funktionelle Einheit)]) -> 0 | G96: =SUBTOTAL(109,Result_Trockensalz[Ozonabbaupotenzial (kg CFC11-Äq / funktionelle Einheit]) -> 0 | H96: =SUBTOTAL(109,Result_Trockensalz[Photooxidantienpotenzial (kg NMVOC-Äq / funktionelle Einheit)]) -> 0
C98: 2.2.2 Verbrauchte Fremdsole (Fremdsole in Anwendungskonzentration sowie konzentrierte Fremdsole)
C99: Bezeichnung Streumittel | D99: Kumulierter Energie Aufwand (MJ / funktionelle Einheit) | E99: Treibhauspotenzial (kg CO2-Äq / funktionelle Einheit) | F99: Versauerungspotenzial (mol H+-Äq/ funktionelle Einheit) | G99: Ozonabbaupotenzial (kg CFC11-Äq / funktionelle Einheit) | H99: Photooxidantienpotenzial (kg NMVOC-Äq / funktionelle Einheit)
C100: Natriumchlorid-Sole, konzentrierte Fremdsole | D100: =SUMIFS(Eingabe_Ausbringungen_FremdSole[Menge an eingesetzter Fremdesole],Eingabe_Ausbringungen_FremdSole[Bezeichnung Streumittel (Sole)],"Natriumchlorid-Sole",Eingabe_Ausbringungen_FremdSole[[Bezug von konzentrierter oder anwendungsfertiger Fremdsole ]],"konzentrierte Fremdsole")*EF_KEA_NaCl_Konz_Sole -> 0 | E100: =SUMIFS(Eingabe_Ausbringungen_FremdSole[Menge an eingesetzter Fremdesole],Eingabe_Ausbringungen_FremdSole[Bezeichnung Streumittel (Sole)],"Natriumchlorid-Sole",Eingabe_Ausbringungen_FremdSole[[Bezug von konzentrierter oder anwendungsfertiger Fremdsole ]],"konzentrierte Fremdsole")*EF_GWP_NaCl_Konz_Sole -> 0 | F100: =SUMIFS(Eingabe_Ausbringungen_FremdSole[Menge an eingesetzter Fremdesole],Eingabe_Ausbringungen_FremdSole[Bezeichnung Streumittel (Sole)],"Natriumchlorid-Sole",Eingabe_Ausbringungen_FremdSole[[Bezug von konzentrierter oder anwendungsfertiger Fremdsole ]],"konzentrierte Fremdsole")*EF_AP_NaCl_Konz_Sole -> 0 | G100: =SUMIFS(Eingabe_Ausbringungen_FremdSole[Menge an eingesetzter Fremdesole],Eingabe_Ausbringungen_FremdSole[Bezeichnung Streumittel (Sole)],"Natriumchlorid-Sole",Eingabe_Ausbringungen_FremdSole[[Bezug von konzentrierter oder anwendungsfertiger Fremdsole ]],"konzentrierte Fremdsole")*EF_ODP_NaCl_Konz_Sole -> 0 | H100: =SUMIFS(Eingabe_Ausbringungen_FremdSole[Menge an eingesetzter Fremdesole],Eingabe_Ausbringungen_FremdSole[Bezeichnung Streumittel (Sole)],"Natriumchlorid-Sole",Eingabe_Ausbringungen_FremdSole[[Bezug von konzentrierter oder anwendungsfertiger Fremdsole ]],"konzentrierte Fremdsole")*EF_POCP_NaCl_Konz_Sole -> 0
C101: Natriumchlorid-Sole, anwendungsfertige Fremdsole | D101: =SUMIFS(Eingabe_Ausbringungen_FremdSole[Menge an eingesetzter Fremdesole],Eingabe_Ausbringungen_FremdSole[Bezeichnung Streumittel (Sole)],"Natriumchlorid-Sole",Eingabe_Ausbringungen_FremdSole[[Bezug von konzentrierter oder anwendungsfertiger Fremdsole ]],"anwendungsfertige Fremdsole")*(EF_KEA_NaCl_Konz_Sole+1.5*EF_KEA_Strom)+SUMIFS(Eingabe_Ausbringungen_FremdSole[Wasserverbrauch für die Verdünnung bei Herstellern (Tonne/FU), nur relevant für anwendigungsfertige Fremdsole],Eingabe_Ausbringungen_FremdSole[Bezeichnung Streumittel (Sole)],"Natriumchlorid-Sole",Eingabe_Ausbringungen_FremdSole[[Bezug von konzentrierter oder anwendungsfertiger Fremdsole ]],"anwendungsfertige Fremdsole")*EF_KEA_Wasser*1000 -> 0 | E101: =SUMIFS(Eingabe_Ausbringungen_FremdSole[Menge an eingesetzter Fremdesole],Eingabe_Ausbringungen_FremdSole[Bezeichnung Streumittel (Sole)],"Natriumchlorid-Sole",Eingabe_Ausbringungen_FremdSole[[Bezug von konzentrierter oder anwendungsfertiger Fremdsole ]],"anwendungsfertige Fremdsole")*(EF_GWP_NaCl_Konz_Sole+1.5*EF_GWP_Strom)+SUMIFS(Eingabe_Ausbringungen_FremdSole[Wasserverbrauch für die Verdünnung bei Herstellern (Tonne/FU), nur relevant für anwendigungsfertige Fremdsole],Eingabe_Ausbringungen_FremdSole[Bezeichnung Streumittel (Sole)],"Natriumchlorid-Sole",Eingabe_Ausbringungen_FremdSole[[Bezug von konzentrierter oder anwendungsfertiger Fremdsole ]],"anwendungsfertige Fremdsole")*EF_GWP_Wasser*1000 -> 0 | F101: =SUMIFS(Eingabe_Ausbringungen_FremdSole[Menge an eingesetzter Fremdesole],Eingabe_Ausbringungen_FremdSole[Bezeichnung Streumittel (Sole)],"Natriumchlorid-Sole",Eingabe_Ausbringungen_FremdSole[[Bezug von konzentrierter oder anwendungsfertiger Fremdsole ]],"anwendungsfertige Fremdsole")*(EF_AP_NaCl_Konz_Sole+1.5*EF_AP_Strom)+SUMIFS(Eingabe_Ausbringungen_FremdSole[Wasserverbrauch für die Verdünnung bei Herstellern (Tonne/FU), nur relevant für anwendigungsfertige Fremdsole],Eingabe_Ausbringungen_FremdSole[Bezeichnung Streumittel (Sole)],"Natriumchlorid-Sole",Eingabe_Ausbringungen_FremdSole[[Bezug von konzentrierter oder anwendungsfertiger Fremdsole ]],"anwendungsfertige Fremdsole")*EF_AP_Wasser*1000 -> 0 | G101: =SUMIFS(Eingabe_Ausbringungen_FremdSole[Menge an eingesetzter Fremdesole],Eingabe_Ausbringungen_FremdSole[Bezeichnung Streumittel (Sole)],"Natriumchlorid-Sole",Eingabe_Ausbringungen_FremdSole[[Bezug von konzentrierter oder anwendungsfertiger Fremdsole ]],"anwendungsfertige Fremdsole")*(EF_ODP_NaCl_Konz_Sole+1.5*EF_ODP_Strom)+SUMIFS(Eingabe_Ausbringungen_FremdSole[Wasserverbrauch für die Verdünnung bei Herstellern (Tonne/FU), nur relevant für anwendigungsfertige Fremdsole],Eingabe_Ausbringungen_FremdSole[Bezeichnung Streumittel (Sole)],"Natriumchlorid-Sole",Eingabe_Ausbringungen_FremdSole[[Bezug von konzentrierter oder anwendungsfertiger Fremdsole ]],"anwendungsfertige Fremdsole")*EF_ODP_Wasser*1000 -> 0 | H101: =SUMIFS(Eingabe_Ausbringungen_FremdSole[Menge an eingesetzter Fremdesole],Eingabe_Ausbringungen_FremdSole[Bezeichnung Streumittel (Sole)],"Natriumchlorid-Sole",Eingabe_Ausbringungen_FremdSole[[Bezug von konzentrierter oder anwendungsfertiger Fremdsole ]],"anwendungsfertige Fremdsole")*(EF_POCP_NaCl_Konz_Sole+1.5*EF_POCP_Strom)+SUMIFS(Eingabe_Ausbringungen_FremdSole[Wasserverbrauch für die Verdünnung bei Herstellern (Tonne/FU), nur relevant für anwendigungsfertige Fremdsole],Eingabe_Ausbringungen_FremdSole[Bezeichnung Streumittel (Sole)],"Natriumchlorid-Sole",Eingabe_Ausbringungen_FremdSole[[Bezug von konzentrierter oder anwendungsfertiger Fremdsole ]],"anwendungsfertige Fremdsole")*EF_POCP_Wasser*1000 -> 0
C102: Magnesiumchlorid-Sole, konzentrierte Fremdsole | D102: =SUMIFS(Eingabe_Ausbringungen_FremdSole[Menge an eingesetzter Fremdesole],Eingabe_Ausbringungen_FremdSole[Bezeichnung Streumittel (Sole)],"Magnesiumchlorid-Sole",Eingabe_Ausbringungen_FremdSole[[Bezug von konzentrierter oder anwendungsfertiger Fremdsole ]],"konzentrierte Fremdsole")*EF_KEA_MgCl2_Konz_Sole -> 0 | E102: =SUMIFS(Eingabe_Ausbringungen_FremdSole[Menge an eingesetzter Fremdesole],Eingabe_Ausbringungen_FremdSole[Bezeichnung Streumittel (Sole)],"Magnesiumchlorid-Sole",Eingabe_Ausbringungen_FremdSole[[Bezug von konzentrierter oder anwendungsfertiger Fremdsole ]],"konzentrierte Fremdsole")*EF_GWP_MgCl2_Konz_Sole -> 0 | F102: =SUMIFS(Eingabe_Ausbringungen_FremdSole[Menge an eingesetzter Fremdesole],Eingabe_Ausbringungen_FremdSole[Bezeichnung Streumittel (Sole)],"Magnesiumchlorid-Sole",Eingabe_Ausbringungen_FremdSole[[Bezug von konzentrierter oder anwendungsfertiger Fremdsole ]],"konzentrierte Fremdsole")*EF_AP_MgCl2_Konz_Sole -> 0 | G102: =SUMIFS(Eingabe_Ausbringungen_FremdSole[Menge an eingesetzter Fremdesole],Eingabe_Ausbringungen_FremdSole[Bezeichnung Streumittel (Sole)],"Magnesiumchlorid-Sole",Eingabe_Ausbringungen_FremdSole[[Bezug von konzentrierter oder anwendungsfertiger Fremdsole ]],"konzentrierte Fremdsole")*EF_ODP_MgCl2_Konz_Sole -> 0 | H102: =SUMIFS(Eingabe_Ausbringungen_FremdSole[Menge an eingesetzter Fremdesole],Eingabe_Ausbringungen_FremdSole[Bezeichnung Streumittel (Sole)],"Magnesiumchlorid-Sole",Eingabe_Ausbringungen_FremdSole[[Bezug von konzentrierter oder anwendungsfertiger Fremdsole ]],"konzentrierte Fremdsole")*EF_POCP_MgCl2_Konz_Sole -> 0
C103: Magnesiumchlorid-Sole, anwendungsfertige Fremdsole | D103: =SUMIFS(Eingabe_Ausbringungen_FremdSole[Menge an eingesetzter Fremdesole],Eingabe_Ausbringungen_FremdSole[Bezeichnung Streumittel (Sole)],"Magnesiumchlorid-Sole",Eingabe_Ausbringungen_FremdSole[[Bezug von konzentrierter oder anwendungsfertiger Fremdsole ]],"anwendungsfertige Fremdsole")*(EF_KEA_MgCl2_Konz_Sole+1.5*EF_KEA_Strom)+SUMIFS(Eingabe_Ausbringungen_FremdSole[Wasserverbrauch für die Verdünnung bei Herstellern (Tonne/FU), nur relevant für anwendigungsfertige Fremdsole],Eingabe_Ausbringungen_FremdSole[Bezeichnung Streumittel (Sole)],"Magnesiumchlorid-Sole",Eingabe_Ausbringungen_FremdSole[[Bezug von konzentrierter oder anwendungsfertiger Fremdsole ]],"anwendungsfertige Fremdsole")*EF_KEA_Wasser*1000 -> 0 | E103: =SUMIFS(Eingabe_Ausbringungen_FremdSole[Menge an eingesetzter Fremdesole],Eingabe_Ausbringungen_FremdSole[Bezeichnung Streumittel (Sole)],"Magnesiumchlorid-Sole",Eingabe_Ausbringungen_FremdSole[[Bezug von konzentrierter oder anwendungsfertiger Fremdsole ]],"anwendungsfertige Fremdsole")*(EF_GWP_MgCl2_Konz_Sole+1.5*EF_GWP_Strom)+SUMIFS(Eingabe_Ausbringungen_FremdSole[Wasserverbrauch für die Verdünnung bei Herstellern (Tonne/FU), nur relevant für anwendigungsfertige Fremdsole],Eingabe_Ausbringungen_FremdSole[Bezeichnung Streumittel (Sole)],"Magnesiumchlorid-Sole",Eingabe_Ausbringungen_FremdSole[[Bezug von konzentrierter oder anwendungsfertiger Fremdsole ]],"anwendungsfertige Fremdsole")*EF_GWP_Wasser*1000 -> 0 | F103: =SUMIFS(Eingabe_Ausbringungen_FremdSole[Menge an eingesetzter Fremdesole],Eingabe_Ausbringungen_FremdSole[Bezeichnung Streumittel (Sole)],"Magnesiumchlorid-Sole",Eingabe_Ausbringungen_FremdSole[[Bezug von konzentrierter oder anwendungsfertiger Fremdsole ]],"anwendungsfertige Fremdsole")*(EF_AP_MgCl2_Konz_Sole+1.5*EF_AP_Strom)+SUMIFS(Eingabe_Ausbringungen_FremdSole[Wasserverbrauch für die Verdünnung bei Herstellern (Tonne/FU), nur relevant für anwendigungsfertige Fremdsole],Eingabe_Ausbringungen_FremdSole[Bezeichnung Streumittel (Sole)],"Magnesiumchlorid-Sole",Eingabe_Ausbringungen_FremdSole[[Bezug von konzentrierter oder anwendungsfertiger Fremdsole ]],"anwendungsfertige Fremdsole")*EF_AP_Wasser*1000 -> 0 | G103: =SUMIFS(Eingabe_Ausbringungen_FremdSole[Menge an eingesetzter Fremdesole],Eingabe_Ausbringungen_FremdSole[Bezeichnung Streumittel (Sole)],"Magnesiumchlorid-Sole",Eingabe_Ausbringungen_FremdSole[[Bezug von konzentrierter oder anwendungsfertiger Fremdsole ]],"anwendungsfertige Fremdsole")*(EF_ODP_MgCl2_Konz_Sole+1.5*EF_ODP_Strom)+SUMIFS(Eingabe_Ausbringungen_FremdSole[Wasserverbrauch für die Verdünnung bei Herstellern (Tonne/FU), nur relevant für anwendigungsfertige Fremdsole],Eingabe_Ausbringungen_FremdSole[Bezeichnung Streumittel (Sole)],"Magnesiumchlorid-Sole",Eingabe_Ausbringungen_FremdSole[[Bezug von konzentrierter oder anwendungsfertiger Fremdsole ]],"anwendungsfertige Fremdsole")*EF_ODP_Wasser*1000 -> 0 | H103: =SUMIFS(Eingabe_Ausbringungen_FremdSole[Menge an eingesetzter Fremdesole],Eingabe_Ausbringungen_FremdSole[Bezeichnung Streumittel (Sole)],"Magnesiumchlorid-Sole",Eingabe_Ausbringungen_FremdSole[[Bezug von konzentrierter oder anwendungsfertiger Fremdsole ]],"anwendungsfertige Fremdsole")*(EF_POCP_MgCl2_Konz_Sole+1.5*EF_POCP_Strom)+SUMIFS(Eingabe_Ausbringungen_FremdSole[Wasserverbrauch für die Verdünnung bei Herstellern (Tonne/FU), nur relevant für anwendigungsfertige Fremdsole],Eingabe_Ausbringungen_FremdSole[Bezeichnung Streumittel (Sole)],"Magnesiumchlorid-Sole",Eingabe_Ausbringungen_FremdSole[[Bezug von konzentrierter oder anwendungsfertiger Fremdsole ]],"anwendungsfertige Fremdsole")*EF_POCP_Wasser*1000 -> 0
C104: Calciumchlorid-Sole, konzentrierte Fremdsole | D104: =SUMIFS(Eingabe_Ausbringungen_FremdSole[Menge an eingesetzter Fremdesole],Eingabe_Ausbringungen_FremdSole[Bezeichnung Streumittel (Sole)],"Calciumchlorid-Sole",Eingabe_Ausbringungen_FremdSole[[Bezug von konzentrierter oder anwendungsfertiger Fremdsole ]],"konzentrierte Fremdsole")*EF_KEA_CaCl2_Konz_Sole -> 0 | E104: =SUMIFS(Eingabe_Ausbringungen_FremdSole[Menge an eingesetzter Fremdesole],Eingabe_Ausbringungen_FremdSole[Bezeichnung Streumittel (Sole)],"Calciumchlorid-Sole",Eingabe_Ausbringungen_FremdSole[[Bezug von konzentrierter oder anwendungsfertiger Fremdsole ]],"konzentrierte Fremdsole")*EF_GWP_CaCl2_Konz_Sole -> 0 | F104: =SUMIFS(Eingabe_Ausbringungen_FremdSole[Menge an eingesetzter Fremdesole],Eingabe_Ausbringungen_FremdSole[Bezeichnung Streumittel (Sole)],"Calciumchlorid-Sole",Eingabe_Ausbringungen_FremdSole[[Bezug von konzentrierter oder anwendungsfertiger Fremdsole ]],"konzentrierte Fremdsole")*EF_AP_CaCl2_Konz_Sole -> 0 | G104: =SUMIFS(Eingabe_Ausbringungen_FremdSole[Menge an eingesetzter Fremdesole],Eingabe_Ausbringungen_FremdSole[Bezeichnung Streumittel (Sole)],"Calciumchlorid-Sole",Eingabe_Ausbringungen_FremdSole[[Bezug von konzentrierter oder anwendungsfertiger Fremdsole ]],"konzentrierte Fremdsole")*EF_ODP_CaCl2_Konz_Sole -> 0 | H104: =SUMIFS(Eingabe_Ausbringungen_FremdSole[Menge an eingesetzter Fremdesole],Eingabe_Ausbringungen_FremdSole[Bezeichnung Streumittel (Sole)],"Calciumchlorid-Sole",Eingabe_Ausbringungen_FremdSole[[Bezug von konzentrierter oder anwendungsfertiger Fremdsole ]],"konzentrierte Fremdsole")*EF_POCP_CaCl2_Konz_Sole -> 0
C105: Calciumchlorid-Sole, anwendungsfertige Fremdsole | D105: =SUMIFS(Eingabe_Ausbringungen_FremdSole[Menge an eingesetzter Fremdesole],Eingabe_Ausbringungen_FremdSole[Bezeichnung Streumittel (Sole)],"Calciumchlorid-Sole",Eingabe_Ausbringungen_FremdSole[[Bezug von konzentrierter oder anwendungsfertiger Fremdsole ]],"anwendungsfertige Fremdsole")*(EF_KEA_CaCl2_Konz_Sole+1.5*EF_KEA_Strom)+SUMIFS(Eingabe_Ausbringungen_FremdSole[Wasserverbrauch für die Verdünnung bei Herstellern (Tonne/FU), nur relevant für anwendigungsfertige Fremdsole],Eingabe_Ausbringungen_FremdSole[Bezeichnung Streumittel (Sole)],"Calciumchlorid-Sole",Eingabe_Ausbringungen_FremdSole[[Bezug von konzentrierter oder anwendungsfertiger Fremdsole ]],"anwendungsfertige Fremdsole")*EF_KEA_Wasser*1000 -> 0 | E105: =SUMIFS(Eingabe_Ausbringungen_FremdSole[Menge an eingesetzter Fremdesole],Eingabe_Ausbringungen_FremdSole[Bezeichnung Streumittel (Sole)],"Calciumchlorid-Sole",Eingabe_Ausbringungen_FremdSole[[Bezug von konzentrierter oder anwendungsfertiger Fremdsole ]],"anwendungsfertige Fremdsole")*(EF_GWP_CaCl2_Konz_Sole+1.5*EF_GWP_Strom)+SUMIFS(Eingabe_Ausbringungen_FremdSole[Wasserverbrauch für die Verdünnung bei Herstellern (Tonne/FU), nur relevant für anwendigungsfertige Fremdsole],Eingabe_Ausbringungen_FremdSole[Bezeichnung Streumittel (Sole)],"Calciumchlorid-Sole",Eingabe_Ausbringungen_FremdSole[[Bezug von konzentrierter oder anwendungsfertiger Fremdsole ]],"anwendungsfertige Fremdsole")*EF_GWP_Wasser*1000 -> 0 | F105: =SUMIFS(Eingabe_Ausbringungen_FremdSole[Menge an eingesetzter Fremdesole],Eingabe_Ausbringungen_FremdSole[Bezeichnung Streumittel (Sole)],"Calciumchlorid-Sole",Eingabe_Ausbringungen_FremdSole[[Bezug von konzentrierter oder anwendungsfertiger Fremdsole ]],"anwendungsfertige Fremdsole")*(EF_AP_CaCl2_Konz_Sole+1.5*EF_AP_Strom)+SUMIFS(Eingabe_Ausbringungen_FremdSole[Wasserverbrauch für die Verdünnung bei Herstellern (Tonne/FU), nur relevant für anwendigungsfertige Fremdsole],Eingabe_Ausbringungen_FremdSole[Bezeichnung Streumittel (Sole)],"Calciumchlorid-Sole",Eingabe_Ausbringungen_FremdSole[[Bezug von konzentrierter oder anwendungsfertiger Fremdsole ]],"anwendungsfertige Fremdsole")*EF_AP_Wasser*1000 -> 0 | G105: =SUMIFS(Eingabe_Ausbringungen_FremdSole[Menge an eingesetzter Fremdesole],Eingabe_Ausbringungen_FremdSole[Bezeichnung Streumittel (Sole)],"Calciumchlorid-Sole",Eingabe_Ausbringungen_FremdSole[[Bezug von konzentrierter oder anwendungsfertiger Fremdsole ]],"anwendungsfertige Fremdsole")*(EF_ODP_CaCl2_Konz_Sole+1.5*EF_ODP_Strom)+SUMIFS(Eingabe_Ausbringungen_FremdSole[Wasserverbrauch für die Verdünnung bei Herstellern (Tonne/FU), nur relevant für anwendigungsfertige Fremdsole],Eingabe_Ausbringungen_FremdSole[Bezeichnung Streumittel (Sole)],"Calciumchlorid-Sole",Eingabe_Ausbringungen_FremdSole[[Bezug von konzentrierter oder anwendungsfertiger Fremdsole ]],"anwendungsfertige Fremdsole")*EF_ODP_Wasser*1000 -> 0 | H105: =SUMIFS(Eingabe_Ausbringungen_FremdSole[Menge an eingesetzter Fremdesole],Eingabe_Ausbringungen_FremdSole[Bezeichnung Streumittel (Sole)],"Calciumchlorid-Sole",Eingabe_Ausbringungen_FremdSole[[Bezug von konzentrierter oder anwendungsfertiger Fremdsole ]],"anwendungsfertige Fremdsole")*(EF_POCP_CaCl2_Konz_Sole+1.5*EF_POCP_Strom)+SUMIFS(Eingabe_Ausbringungen_FremdSole[Wasserverbrauch für die Verdünnung bei Herstellern (Tonne/FU), nur relevant für anwendigungsfertige Fremdsole],Eingabe_Ausbringungen_FremdSole[Bezeichnung Streumittel (Sole)],"Calciumchlorid-Sole",Eingabe_Ausbringungen_FremdSole[[Bezug von konzentrierter oder anwendungsfertiger Fremdsole ]],"anwendungsfertige Fremdsole")*EF_POCP_Wasser*1000 -> 0
C106: Summe | D106: =SUBTOTAL(109,Result_Sole[Kumulierter Energie Aufwand (MJ / funktionelle Einheit)]) -> 0 | E106: =SUBTOTAL(109,Result_Sole[Treibhauspotenzial (kg CO2-Äq / funktionelle Einheit)]) -> 0 | F106: =SUBTOTAL(109,Result_Sole[Versauerungspotenzial (mol H+-Äq/ funktionelle Einheit)]) -> 0 | G106: =SUBTOTAL(109,Result_Sole[Ozonabbaupotenzial (kg CFC11-Äq / funktionelle Einheit)]) -> 0 | H106: =SUBTOTAL(109,Result_Sole[Photooxidantienpotenzial (kg NMVOC-Äq / funktionelle Einheit)]) -> 0
B108: 2.3 | C108: =C65 -> Transporte der Streumittel (trockene Streumittel und Sole)
C109: Transportmittel | D109: Kumulierter Energie Aufwand (MJ / funktionelle Einheit) | E109: Treibhauspotenzial (kg CO2-Äq / funktionelle Einheit) | F109: Versauerungspotenzial (mol H+-Äq/ funktionelle Einheit) | G109: Ozonabbaupotenzial (kg CFC11-Äq / funktionelle Einheit) | H109: Photooxidantienpotenzial (kg NMVOC-Äq / funktionelle Einheit)
C110: Bahn | D110: =SUMIF(Eingabe_Antransport[Transportmittel],Result_Antransport[[#This Row],[Transportmittel]],Eingabe_Antransport[Tonnenkilometer (automatisch berechneter Wert) (tkm/funktionelle Einheit)])*_xlfn.XLOOKUP(Result_Antransport[[#This Row],[Transportmittel]],Transportmittel_AntransportStreumittel,Emissionsfaktoren!D$35:D$46) -> 0 | E110: =SUMIF(Eingabe_Antransport[Transportmittel],Result_Antransport[[#This Row],[Transportmittel]],Eingabe_Antransport[Tonnenkilometer (automatisch berechneter Wert) (tkm/funktionelle Einheit)])*_xlfn.XLOOKUP(Result_Antransport[[#This Row],[Transportmittel]],Transportmittel_AntransportStreumittel,Emissionsfaktoren!E$35:E$46) -> 0 | F110: =SUMIF(Eingabe_Antransport[Transportmittel],Result_Antransport[[#This Row],[Transportmittel]],Eingabe_Antransport[Tonnenkilometer (automatisch berechneter Wert) (tkm/funktionelle Einheit)])*_xlfn.XLOOKUP(Result_Antransport[[#This Row],[Transportmittel]],Transportmittel_AntransportStreumittel,Emissionsfaktoren!F$35:F$46) -> 0 | G110: =SUMIF(Eingabe_Antransport[Transportmittel],Result_Antransport[[#This Row],[Transportmittel]],Eingabe_Antransport[Tonnenkilometer (automatisch berechneter Wert) (tkm/funktionelle Einheit)])*_xlfn.XLOOKUP(Result_Antransport[[#This Row],[Transportmittel]],Transportmittel_AntransportStreumittel,Emissionsfaktoren!G$35:G$46) -> 0 | H110: =SUMIF(Eingabe_Antransport[Transportmittel],Result_Antransport[[#This Row],[Transportmittel]],Eingabe_Antransport[Tonnenkilometer (automatisch berechneter Wert) (tkm/funktionelle Einheit)])*_xlfn.XLOOKUP(Result_Antransport[[#This Row],[Transportmittel]],Transportmittel_AntransportStreumittel,Emissionsfaktoren!H$35:H$46) -> 0
C111: Binnenschiff | D111: =SUMIF(Eingabe_Antransport[Transportmittel],Result_Antransport[[#This Row],[Transportmittel]],Eingabe_Antransport[Tonnenkilometer (automatisch berechneter Wert) (tkm/funktionelle Einheit)])*_xlfn.XLOOKUP(Result_Antransport[[#This Row],[Transportmittel]],Transportmittel_AntransportStreumittel,Emissionsfaktoren!D$35:D$46) -> 0 | E111: =SUMIF(Eingabe_Antransport[Transportmittel],Result_Antransport[[#This Row],[Transportmittel]],Eingabe_Antransport[Tonnenkilometer (automatisch berechneter Wert) (tkm/funktionelle Einheit)])*_xlfn.XLOOKUP(Result_Antransport[[#This Row],[Transportmittel]],Transportmittel_AntransportStreumittel,Emissionsfaktoren!E$35:E$46) -> 0 | F111: =SUMIF(Eingabe_Antransport[Transportmittel],Result_Antransport[[#This Row],[Transportmittel]],Eingabe_Antransport[Tonnenkilometer (automatisch berechneter Wert) (tkm/funktionelle Einheit)])*_xlfn.XLOOKUP(Result_Antransport[[#This Row],[Transportmittel]],Transportmittel_AntransportStreumittel,Emissionsfaktoren!F$35:F$46) -> 0 | G111: =SUMIF(Eingabe_Antransport[Transportmittel],Result_Antransport[[#This Row],[Transportmittel]],Eingabe_Antransport[Tonnenkilometer (automatisch berechneter Wert) (tkm/funktionelle Einheit)])*_xlfn.XLOOKUP(Result_Antransport[[#This Row],[Transportmittel]],Transportmittel_AntransportStreumittel,Emissionsfaktoren!G$35:G$46) -> 0 | H111: =SUMIF(Eingabe_Antransport[Transportmittel],Result_Antransport[[#This Row],[Transportmittel]],Eingabe_Antransport[Tonnenkilometer (automatisch berechneter Wert) (tkm/funktionelle Einheit)])*_xlfn.XLOOKUP(Result_Antransport[[#This Row],[Transportmittel]],Transportmittel_AntransportStreumittel,Emissionsfaktoren!H$35:H$46) -> 0
C112: Massengutfrachter | D112: =SUMIF(Eingabe_Antransport[Transportmittel],Result_Antransport[[#This Row],[Transportmittel]],Eingabe_Antransport[Tonnenkilometer (automatisch berechneter Wert) (tkm/funktionelle Einheit)])*_xlfn.XLOOKUP(Result_Antransport[[#This Row],[Transportmittel]],Transportmittel_AntransportStreumittel,Emissionsfaktoren!D$35:D$46) -> 0 | E112: =SUMIF(Eingabe_Antransport[Transportmittel],Result_Antransport[[#This Row],[Transportmittel]],Eingabe_Antransport[Tonnenkilometer (automatisch berechneter Wert) (tkm/funktionelle Einheit)])*_xlfn.XLOOKUP(Result_Antransport[[#This Row],[Transportmittel]],Transportmittel_AntransportStreumittel,Emissionsfaktoren!E$35:E$46) -> 0 | F112: =SUMIF(Eingabe_Antransport[Transportmittel],Result_Antransport[[#This Row],[Transportmittel]],Eingabe_Antransport[Tonnenkilometer (automatisch berechneter Wert) (tkm/funktionelle Einheit)])*_xlfn.XLOOKUP(Result_Antransport[[#This Row],[Transportmittel]],Transportmittel_AntransportStreumittel,Emissionsfaktoren!F$35:F$46) -> 0 | G112: =SUMIF(Eingabe_Antransport[Transportmittel],Result_Antransport[[#This Row],[Transportmittel]],Eingabe_Antransport[Tonnenkilometer (automatisch berechneter Wert) (tkm/funktionelle Einheit)])*_xlfn.XLOOKUP(Result_Antransport[[#This Row],[Transportmittel]],Transportmittel_AntransportStreumittel,Emissionsfaktoren!G$35:G$46) -> 0 | H112: =SUMIF(Eingabe_Antransport[Transportmittel],Result_Antransport[[#This Row],[Transportmittel]],Eingabe_Antransport[Tonnenkilometer (automatisch berechneter Wert) (tkm/funktionelle Einheit)])*_xlfn.XLOOKUP(Result_Antransport[[#This Row],[Transportmittel]],Transportmittel_AntransportStreumittel,Emissionsfaktoren!H$35:H$46) -> 0
C113: Containerschiff | D113: =SUMIF(Eingabe_Antransport[Transportmittel],Result_Antransport[[#This Row],[Transportmittel]],Eingabe_Antransport[Tonnenkilometer (automatisch berechneter Wert) (tkm/funktionelle Einheit)])*_xlfn.XLOOKUP(Result_Antransport[[#This Row],[Transportmittel]],Transportmittel_AntransportStreumittel,Emissionsfaktoren!D$35:D$46) -> 0 | E113: =SUMIF(Eingabe_Antransport[Transportmittel],Result_Antransport[[#This Row],[Transportmittel]],Eingabe_Antransport[Tonnenkilometer (automatisch berechneter Wert) (tkm/funktionelle Einheit)])*_xlfn.XLOOKUP(Result_Antransport[[#This Row],[Transportmittel]],Transportmittel_AntransportStreumittel,Emissionsfaktoren!E$35:E$46) -> 0 | F113: =SUMIF(Eingabe_Antransport[Transportmittel],Result_Antransport[[#This Row],[Transportmittel]],Eingabe_Antransport[Tonnenkilometer (automatisch berechneter Wert) (tkm/funktionelle Einheit)])*_xlfn.XLOOKUP(Result_Antransport[[#This Row],[Transportmittel]],Transportmittel_AntransportStreumittel,Emissionsfaktoren!F$35:F$46) -> 0 | G113: =SUMIF(Eingabe_Antransport[Transportmittel],Result_Antransport[[#This Row],[Transportmittel]],Eingabe_Antransport[Tonnenkilometer (automatisch berechneter Wert) (tkm/funktionelle Einheit)])*_xlfn.XLOOKUP(Result_Antransport[[#This Row],[Transportmittel]],Transportmittel_AntransportStreumittel,Emissionsfaktoren!G$35:G$46) -> 0 | H113: =SUMIF(Eingabe_Antransport[Transportmittel],Result_Antransport[[#This Row],[Transportmittel]],Eingabe_Antransport[Tonnenkilometer (automatisch berechneter Wert) (tkm/funktionelle Einheit)])*_xlfn.XLOOKUP(Result_Antransport[[#This Row],[Transportmittel]],Transportmittel_AntransportStreumittel,Emissionsfaktoren!H$35:H$46) -> 0
C114: Lkw >14-26t, Euro 3 | D114: =SUMIF(Eingabe_Antransport[Transportmittel],Result_Antransport[[#This Row],[Transportmittel]],Eingabe_Antransport[Tonnenkilometer (automatisch berechneter Wert) (tkm/funktionelle Einheit)])*2*_xlfn.XLOOKUP(Result_Antransport[[#This Row],[Transportmittel]],Transportmittel_AntransportStreumittel,Emissionsfaktoren!D$35:D$46) -> 0 | E114: =SUMIF(Eingabe_Antransport[Transportmittel],Result_Antransport[[#This Row],[Transportmittel]],Eingabe_Antransport[Tonnenkilometer (automatisch berechneter Wert) (tkm/funktionelle Einheit)])*2*_xlfn.XLOOKUP(Result_Antransport[[#This Row],[Transportmittel]],Transportmittel_AntransportStreumittel,Emissionsfaktoren!E$35:E$46) -> 0 | F114: =SUMIF(Eingabe_Antransport[Transportmittel],Result_Antransport[[#This Row],[Transportmittel]],Eingabe_Antransport[Tonnenkilometer (automatisch berechneter Wert) (tkm/funktionelle Einheit)])*2*_xlfn.XLOOKUP(Result_Antransport[[#This Row],[Transportmittel]],Transportmittel_AntransportStreumittel,Emissionsfaktoren!F$35:F$46) -> 0 | G114: =SUMIF(Eingabe_Antransport[Transportmittel],Result_Antransport[[#This Row],[Transportmittel]],Eingabe_Antransport[Tonnenkilometer (automatisch berechneter Wert) (tkm/funktionelle Einheit)])*2*_xlfn.XLOOKUP(Result_Antransport[[#This Row],[Transportmittel]],Transportmittel_AntransportStreumittel,Emissionsfaktoren!G$35:G$46) -> 0 | H114: =SUMIF(Eingabe_Antransport[Transportmittel],Result_Antransport[[#This Row],[Transportmittel]],Eingabe_Antransport[Tonnenkilometer (automatisch berechneter Wert) (tkm/funktionelle Einheit)])*2*_xlfn.XLOOKUP(Result_Antransport[[#This Row],[Transportmittel]],Transportmittel_AntransportStreumittel,Emissionsfaktoren!H$35:H$46) -> 0
C115: Lkw >14-26t, Euro 4 | D115: =SUMIF(Eingabe_Antransport[Transportmittel],Result_Antransport[[#This Row],[Transportmittel]],Eingabe_Antransport[Tonnenkilometer (automatisch berechneter Wert) (tkm/funktionelle Einheit)])*2*_xlfn.XLOOKUP(Result_Antransport[[#This Row],[Transportmittel]],Transportmittel_AntransportStreumittel,Emissionsfaktoren!D$35:D$46) -> 0 | E115: =SUMIF(Eingabe_Antransport[Transportmittel],Result_Antransport[[#This Row],[Transportmittel]],Eingabe_Antransport[Tonnenkilometer (automatisch berechneter Wert) (tkm/funktionelle Einheit)])*2*_xlfn.XLOOKUP(Result_Antransport[[#This Row],[Transportmittel]],Transportmittel_AntransportStreumittel,Emissionsfaktoren!E$35:E$46) -> 0 | F115: =SUMIF(Eingabe_Antransport[Transportmittel],Result_Antransport[[#This Row],[Transportmittel]],Eingabe_Antransport[Tonnenkilometer (automatisch berechneter Wert) (tkm/funktionelle Einheit)])*2*_xlfn.XLOOKUP(Result_Antransport[[#This Row],[Transportmittel]],Transportmittel_AntransportStreumittel,Emissionsfaktoren!F$35:F$46) -> 0 | G115: =SUMIF(Eingabe_Antransport[Transportmittel],Result_Antransport[[#This Row],[Transportmittel]],Eingabe_Antransport[Tonnenkilometer (automatisch berechneter Wert) (tkm/funktionelle Einheit)])*2*_xlfn.XLOOKUP(Result_Antransport[[#This Row],[Transportmittel]],Transportmittel_AntransportStreumittel,Emissionsfaktoren!G$35:G$46) -> 0 | H115: =SUMIF(Eingabe_Antransport[Transportmittel],Result_Antransport[[#This Row],[Transportmittel]],Eingabe_Antransport[Tonnenkilometer (automatisch berechneter Wert) (tkm/funktionelle Einheit)])*2*_xlfn.XLOOKUP(Result_Antransport[[#This Row],[Transportmittel]],Transportmittel_AntransportStreumittel,Emissionsfaktoren!H$35:H$46) -> 0
C116: Lkw >14-26t, Euro 5 | D116: =SUMIF(Eingabe_Antransport[Transportmittel],Result_Antransport[[#This Row],[Transportmittel]],Eingabe_Antransport[Tonnenkilometer (automatisch berechneter Wert) (tkm/funktionelle Einheit)])*2*_xlfn.XLOOKUP(Result_Antransport[[#This Row],[Transportmittel]],Transportmittel_AntransportStreumittel,Emissionsfaktoren!D$35:D$46) -> 0 | E116: =SUMIF(Eingabe_Antransport[Transportmittel],Result_Antransport[[#This Row],[Transportmittel]],Eingabe_Antransport[Tonnenkilometer (automatisch berechneter Wert) (tkm/funktionelle Einheit)])*2*_xlfn.XLOOKUP(Result_Antransport[[#This Row],[Transportmittel]],Transportmittel_AntransportStreumittel,Emissionsfaktoren!E$35:E$46) -> 0 | F116: =SUMIF(Eingabe_Antransport[Transportmittel],Result_Antransport[[#This Row],[Transportmittel]],Eingabe_Antransport[Tonnenkilometer (automatisch berechneter Wert) (tkm/funktionelle Einheit)])*2*_xlfn.XLOOKUP(Result_Antransport[[#This Row],[Transportmittel]],Transportmittel_AntransportStreumittel,Emissionsfaktoren!F$35:F$46) -> 0 | G116: =SUMIF(Eingabe_Antransport[Transportmittel],Result_Antransport[[#This Row],[Transportmittel]],Eingabe_Antransport[Tonnenkilometer (automatisch berechneter Wert) (tkm/funktionelle Einheit)])*2*_xlfn.XLOOKUP(Result_Antransport[[#This Row],[Transportmittel]],Transportmittel_AntransportStreumittel,Emissionsfaktoren!G$35:G$46) -> 0 | H116: =SUMIF(Eingabe_Antransport[Transportmittel],Result_Antransport[[#This Row],[Transportmittel]],Eingabe_Antransport[Tonnenkilometer (automatisch berechneter Wert) (tkm/funktionelle Einheit)])*2*_xlfn.XLOOKUP(Result_Antransport[[#This Row],[Transportmittel]],Transportmittel_AntransportStreumittel,Emissionsfaktoren!H$35:H$46) -> 0
C117: Lkw >14-26t, Euro 6 | D117: =SUMIF(Eingabe_Antransport[Transportmittel],Result_Antransport[[#This Row],[Transportmittel]],Eingabe_Antransport[Tonnenkilometer (automatisch berechneter Wert) (tkm/funktionelle Einheit)])*2*_xlfn.XLOOKUP(Result_Antransport[[#This Row],[Transportmittel]],Transportmittel_AntransportStreumittel,Emissionsfaktoren!D$35:D$46) -> 0 | E117: =SUMIF(Eingabe_Antransport[Transportmittel],Result_Antransport[[#This Row],[Transportmittel]],Eingabe_Antransport[Tonnenkilometer (automatisch berechneter Wert) (tkm/funktionelle Einheit)])*2*_xlfn.XLOOKUP(Result_Antransport[[#This Row],[Transportmittel]],Transportmittel_AntransportStreumittel,Emissionsfaktoren!E$35:E$46) -> 0 | F117: =SUMIF(Eingabe_Antransport[Transportmittel],Result_Antransport[[#This Row],[Transportmittel]],Eingabe_Antransport[Tonnenkilometer (automatisch berechneter Wert) (tkm/funktionelle Einheit)])*2*_xlfn.XLOOKUP(Result_Antransport[[#This Row],[Transportmittel]],Transportmittel_AntransportStreumittel,Emissionsfaktoren!F$35:F$46) -> 0 | G117: =SUMIF(Eingabe_Antransport[Transportmittel],Result_Antransport[[#This Row],[Transportmittel]],Eingabe_Antransport[Tonnenkilometer (automatisch berechneter Wert) (tkm/funktionelle Einheit)])*2*_xlfn.XLOOKUP(Result_Antransport[[#This Row],[Transportmittel]],Transportmittel_AntransportStreumittel,Emissionsfaktoren!G$35:G$46) -> 0 | H117: =SUMIF(Eingabe_Antransport[Transportmittel],Result_Antransport[[#This Row],[Transportmittel]],Eingabe_Antransport[Tonnenkilometer (automatisch berechneter Wert) (tkm/funktionelle Einheit)])*2*_xlfn.XLOOKUP(Result_Antransport[[#This Row],[Transportmittel]],Transportmittel_AntransportStreumittel,Emissionsfaktoren!H$35:H$46) -> 0
C118: Lkw >7.5-14t, Euro 3 | D118: =SUMIF(Eingabe_Antransport[Transportmittel],Result_Antransport[[#This Row],[Transportmittel]],Eingabe_Antransport[Tonnenkilometer (automatisch berechneter Wert) (tkm/funktionelle Einheit)])*2*_xlfn.XLOOKUP(Result_Antransport[[#This Row],[Transportmittel]],Transportmittel_AntransportStreumittel,Emissionsfaktoren!D$35:D$46) -> 0 | E118: =SUMIF(Eingabe_Antransport[Transportmittel],Result_Antransport[[#This Row],[Transportmittel]],Eingabe_Antransport[Tonnenkilometer (automatisch berechneter Wert) (tkm/funktionelle Einheit)])*2*_xlfn.XLOOKUP(Result_Antransport[[#This Row],[Transportmittel]],Transportmittel_AntransportStreumittel,Emissionsfaktoren!E$35:E$46) -> 0 | F118: =SUMIF(Eingabe_Antransport[Transportmittel],Result_Antransport[[#This Row],[Transportmittel]],Eingabe_Antransport[Tonnenkilometer (automatisch berechneter Wert) (tkm/funktionelle Einheit)])*2*_xlfn.XLOOKUP(Result_Antransport[[#This Row],[Transportmittel]],Transportmittel_AntransportStreumittel,Emissionsfaktoren!F$35:F$46) -> 0 | G118: =SUMIF(Eingabe_Antransport[Transportmittel],Result_Antransport[[#This Row],[Transportmittel]],Eingabe_Antransport[Tonnenkilometer (automatisch berechneter Wert) (tkm/funktionelle Einheit)])*2*_xlfn.XLOOKUP(Result_Antransport[[#This Row],[Transportmittel]],Transportmittel_AntransportStreumittel,Emissionsfaktoren!G$35:G$46) -> 0 | H118: =SUMIF(Eingabe_Antransport[Transportmittel],Result_Antransport[[#This Row],[Transportmittel]],Eingabe_Antransport[Tonnenkilometer (automatisch berechneter Wert) (tkm/funktionelle Einheit)])*2*_xlfn.XLOOKUP(Result_Antransport[[#This Row],[Transportmittel]],Transportmittel_AntransportStreumittel,Emissionsfaktoren!H$35:H$46) -> 0
C119: Lkw >7.5-14t, Euro 4 | D119: =SUMIF(Eingabe_Antransport[Transportmittel],Result_Antransport[[#This Row],[Transportmittel]],Eingabe_Antransport[Tonnenkilometer (automatisch berechneter Wert) (tkm/funktionelle Einheit)])*2*_xlfn.XLOOKUP(Result_Antransport[[#This Row],[Transportmittel]],Transportmittel_AntransportStreumittel,Emissionsfaktoren!D$35:D$46) -> 0 | E119: =SUMIF(Eingabe_Antransport[Transportmittel],Result_Antransport[[#This Row],[Transportmittel]],Eingabe_Antransport[Tonnenkilometer (automatisch berechneter Wert) (tkm/funktionelle Einheit)])*2*_xlfn.XLOOKUP(Result_Antransport[[#This Row],[Transportmittel]],Transportmittel_AntransportStreumittel,Emissionsfaktoren!E$35:E$46) -> 0 | F119: =SUMIF(Eingabe_Antransport[Transportmittel],Result_Antransport[[#This Row],[Transportmittel]],Eingabe_Antransport[Tonnenkilometer (automatisch berechneter Wert) (tkm/funktionelle Einheit)])*2*_xlfn.XLOOKUP(Result_Antransport[[#This Row],[Transportmittel]],Transportmittel_AntransportStreumittel,Emissionsfaktoren!F$35:F$46) -> 0 | G119: =SUMIF(Eingabe_Antransport[Transportmittel],Result_Antransport[[#This Row],[Transportmittel]],Eingabe_Antransport[Tonnenkilometer (automatisch berechneter Wert) (tkm/funktionelle Einheit)])*2*_xlfn.XLOOKUP(Result_Antransport[[#This Row],[Transportmittel]],Transportmittel_AntransportStreumittel,Emissionsfaktoren!G$35:G$46) -> 0 | H119: =SUMIF(Eingabe_Antransport[Transportmittel],Result_Antransport[[#This Row],[Transportmittel]],Eingabe_Antransport[Tonnenkilometer (automatisch berechneter Wert) (tkm/funktionelle Einheit)])*2*_xlfn.XLOOKUP(Result_Antransport[[#This Row],[Transportmittel]],Transportmittel_AntransportStreumittel,Emissionsfaktoren!H$35:H$46) -> 0
C120: Lkw >7.5-14t, Euro 5 | D120: =SUMIF(Eingabe_Antransport[Transportmittel],Result_Antransport[[#This Row],[Transportmittel]],Eingabe_Antransport[Tonnenkilometer (automatisch berechneter Wert) (tkm/funktionelle Einheit)])*2*_xlfn.XLOOKUP(Result_Antransport[[#This Row],[Transportmittel]],Transportmittel_AntransportStreumittel,Emissionsfaktoren!D$35:D$46) -> 0 | E120: =SUMIF(Eingabe_Antransport[Transportmittel],Result_Antransport[[#This Row],[Transportmittel]],Eingabe_Antransport[Tonnenkilometer (automatisch berechneter Wert) (tkm/funktionelle Einheit)])*2*_xlfn.XLOOKUP(Result_Antransport[[#This Row],[Transportmittel]],Transportmittel_AntransportStreumittel,Emissionsfaktoren!E$35:E$46) -> 0 | F120: =SUMIF(Eingabe_Antransport[Transportmittel],Result_Antransport[[#This Row],[Transportmittel]],Eingabe_Antransport[Tonnenkilometer (automatisch berechneter Wert) (tkm/funktionelle Einheit)])*2*_xlfn.XLOOKUP(Result_Antransport[[#This Row],[Transportmittel]],Transportmittel_AntransportStreumittel,Emissionsfaktoren!F$35:F$46) -> 0 | G120: =SUMIF(Eingabe_Antransport[Transportmittel],Result_Antransport[[#This Row],[Transportmittel]],Eingabe_Antransport[Tonnenkilometer (automatisch berechneter Wert) (tkm/funktionelle Einheit)])*2*_xlfn.XLOOKUP(Result_Antransport[[#This Row],[Transportmittel]],Transportmittel_AntransportStreumittel,Emissionsfaktoren!G$35:G$46) -> 0 | H120: =SUMIF(Eingabe_Antransport[Transportmittel],Result_Antransport[[#This Row],[Transportmittel]],Eingabe_Antransport[Tonnenkilometer (automatisch berechneter Wert) (tkm/funktionelle Einheit)])*2*_xlfn.XLOOKUP(Result_Antransport[[#This Row],[Transportmittel]],Transportmittel_AntransportStreumittel,Emissionsfaktoren!H$35:H$46) -> 0
C121: Lkw >7.5-14t, Euro 6 | D121: =SUMIF(Eingabe_Antransport[Transportmittel],Result_Antransport[[#This Row],[Transportmittel]],Eingabe_Antransport[Tonnenkilometer (automatisch berechneter Wert) (tkm/funktionelle Einheit)])*2*_xlfn.XLOOKUP(Result_Antransport[[#This Row],[Transportmittel]],Transportmittel_AntransportStreumittel,Emissionsfaktoren!D$35:D$46) -> 0 | E121: =SUMIF(Eingabe_Antransport[Transportmittel],Result_Antransport[[#This Row],[Transportmittel]],Eingabe_Antransport[Tonnenkilometer (automatisch berechneter Wert) (tkm/funktionelle Einheit)])*2*_xlfn.XLOOKUP(Result_Antransport[[#This Row],[Transportmittel]],Transportmittel_AntransportStreumittel,Emissionsfaktoren!E$35:E$46) -> 0 | F121: =SUMIF(Eingabe_Antransport[Transportmittel],Result_Antransport[[#This Row],[Transportmittel]],Eingabe_Antransport[Tonnenkilometer (automatisch berechneter Wert) (tkm/funktionelle Einheit)])*2*_xlfn.XLOOKUP(Result_Antransport[[#This Row],[Transportmittel]],Transportmittel_AntransportStreumittel,Emissionsfaktoren!F$35:F$46) -> 0 | G121: =SUMIF(Eingabe_Antransport[Transportmittel],Result_Antransport[[#This Row],[Transportmittel]],Eingabe_Antransport[Tonnenkilometer (automatisch berechneter Wert) (tkm/funktionelle Einheit)])*2*_xlfn.XLOOKUP(Result_Antransport[[#This Row],[Transportmittel]],Transportmittel_AntransportStreumittel,Emissionsfaktoren!G$35:G$46) -> 0 | H121: =SUMIF(Eingabe_Antransport[Transportmittel],Result_Antransport[[#This Row],[Transportmittel]],Eingabe_Antransport[Tonnenkilometer (automatisch berechneter Wert) (tkm/funktionelle Einheit)])*2*_xlfn.XLOOKUP(Result_Antransport[[#This Row],[Transportmittel]],Transportmittel_AntransportStreumittel,Emissionsfaktoren!H$35:H$46) -> 0
C122: Summe | D122: =SUBTOTAL(109,Result_Antransport[Kumulierter Energie Aufwand (MJ / funktionelle Einheit)]) -> 0 | E122: =SUBTOTAL(109,Result_Antransport[Treibhauspotenzial (kg CO2-Äq / funktionelle Einheit)]) -> 0 | F122: =SUBTOTAL(109,Result_Antransport[Versauerungspotenzial (mol H+-Äq/ funktionelle Einheit)]) -> 0 | G122: =SUBTOTAL(109,Result_Antransport[Ozonabbaupotenzial (kg CFC11-Äq / funktionelle Einheit)]) -> 0 | H122: =SUBTOTAL(109,Result_Antransport[Photooxidantienpotenzial (kg NMVOC-Äq / funktionelle Einheit)]) -> 0
B124: 2.4 | C124: =C66 -> Ausbringung der Streumittel (direkte Emisssionen bei der Ausbringung und Herstellung Kraftstoffe)
C125: Fahrzeuge (Lkw, zulässiges Gesamtgewicht, Euro_Norm, Kraftstoffe) | D125: Kumulierter Energie Aufwand (MJ / funktionelle Einheit) | E125: Treibhauspotenzial (kg CO2-Äq / funktionelle Einheit) | F125: Versauerungspotenzial (mol H+-Äq/ funktionelle Einheit) | G125: Ozonabbaupotenzial (kg CFC11-Äq / funktionelle Einheit) | H125: Photooxidantienpotenzial (kg NMVOC-Äq / funktionelle Einheit)
C126: Lkw >14-26t, Euro 3, Diesel | D126: =SUMIF(Eingabe_Ausbringungen[Angaben zu den Fahrzeugen (Lkw: zulässiges Gesamtgewicht, Euro Norm, Kraftstoff)],Result_Ausbringung[[#This Row],[Fahrzeuge (Lkw, zulässiges Gesamtgewicht, Euro_Norm, Kraftstoffe)]],Eingabe_Ausbringungen[Verbrauch Kraftstoffe])*_xlfn.XLOOKUP(Result_Ausbringung[[#This Row],[Fahrzeuge (Lkw, zulässiges Gesamtgewicht, Euro_Norm, Kraftstoffe)]],Auswahl_Lkw_pkw,EF_Ausbringung[KEA (MJ / Einheit)]) -> 0 | E126: =SUMIF(Eingabe_Ausbringungen[Angaben zu den Fahrzeugen (Lkw: zulässiges Gesamtgewicht, Euro Norm, Kraftstoff)],Result_Ausbringung[[#This Row],[Fahrzeuge (Lkw, zulässiges Gesamtgewicht, Euro_Norm, Kraftstoffe)]],Eingabe_Ausbringungen[Verbrauch Kraftstoffe])*_xlfn.XLOOKUP(Result_Ausbringung[[#This Row],[Fahrzeuge (Lkw, zulässiges Gesamtgewicht, Euro_Norm, Kraftstoffe)]],Auswahl_Lkw_pkw,EF_Ausbringung[GWP (kg CO2Äq. / Einheit)]) -> 0 | F126: =SUMIF(Eingabe_Ausbringungen[Angaben zu den Fahrzeugen (Lkw: zulässiges Gesamtgewicht, Euro Norm, Kraftstoff)],Result_Ausbringung[[#This Row],[Fahrzeuge (Lkw, zulässiges Gesamtgewicht, Euro_Norm, Kraftstoffe)]],Eingabe_Ausbringungen[Verbrauch Kraftstoffe])*_xlfn.XLOOKUP(Result_Ausbringung[[#This Row],[Fahrzeuge (Lkw, zulässiges Gesamtgewicht, Euro_Norm, Kraftstoffe)]],Auswahl_Lkw_pkw,EF_Ausbringung[AP (mol H+ Äq. / Einheit)]) -> 0 | G126: =SUMIF(Eingabe_Ausbringungen[Angaben zu den Fahrzeugen (Lkw: zulässiges Gesamtgewicht, Euro Norm, Kraftstoff)],Result_Ausbringung[[#This Row],[Fahrzeuge (Lkw, zulässiges Gesamtgewicht, Euro_Norm, Kraftstoffe)]],Eingabe_Ausbringungen[Verbrauch Kraftstoffe])*_xlfn.XLOOKUP(Result_Ausbringung[[#This Row],[Fahrzeuge (Lkw, zulässiges Gesamtgewicht, Euro_Norm, Kraftstoffe)]],Auswahl_Lkw_pkw,EF_Ausbringung[ODP (kg FCKW-11 Äq. / Einheit)]) -> 0 | H126: =SUMIF(Eingabe_Ausbringungen[Angaben zu den Fahrzeugen (Lkw: zulässiges Gesamtgewicht, Euro Norm, Kraftstoff)],Result_Ausbringung[[#This Row],[Fahrzeuge (Lkw, zulässiges Gesamtgewicht, Euro_Norm, Kraftstoffe)]],Eingabe_Ausbringungen[Verbrauch Kraftstoffe])*_xlfn.XLOOKUP(Result_Ausbringung[[#This Row],[Fahrzeuge (Lkw, zulässiges Gesamtgewicht, Euro_Norm, Kraftstoffe)]],Auswahl_Lkw_pkw,EF_Ausbringung[POCP (kg NMVOC Äq. / Einheit)]) -> 0
C127: Lkw >14-26t, Euro 4, Diesel | D127: =SUMIF(Eingabe_Ausbringungen[Angaben zu den Fahrzeugen (Lkw: zulässiges Gesamtgewicht, Euro Norm, Kraftstoff)],Result_Ausbringung[[#This Row],[Fahrzeuge (Lkw, zulässiges Gesamtgewicht, Euro_Norm, Kraftstoffe)]],Eingabe_Ausbringungen[Verbrauch Kraftstoffe])*_xlfn.XLOOKUP(Result_Ausbringung[[#This Row],[Fahrzeuge (Lkw, zulässiges Gesamtgewicht, Euro_Norm, Kraftstoffe)]],Auswahl_Lkw_pkw,EF_Ausbringung[KEA (MJ / Einheit)]) -> 0 | E127: =SUMIF(Eingabe_Ausbringungen[Angaben zu den Fahrzeugen (Lkw: zulässiges Gesamtgewicht, Euro Norm, Kraftstoff)],Result_Ausbringung[[#This Row],[Fahrzeuge (Lkw, zulässiges Gesamtgewicht, Euro_Norm, Kraftstoffe)]],Eingabe_Ausbringungen[Verbrauch Kraftstoffe])*_xlfn.XLOOKUP(Result_Ausbringung[[#This Row],[Fahrzeuge (Lkw, zulässiges Gesamtgewicht, Euro_Norm, Kraftstoffe)]],Auswahl_Lkw_pkw,EF_Ausbringung[GWP (kg CO2Äq. / Einheit)]) -> 0 | F127: =SUMIF(Eingabe_Ausbringungen[Angaben zu den Fahrzeugen (Lkw: zulässiges Gesamtgewicht, Euro Norm, Kraftstoff)],Result_Ausbringung[[#This Row],[Fahrzeuge (Lkw, zulässiges Gesamtgewicht, Euro_Norm, Kraftstoffe)]],Eingabe_Ausbringungen[Verbrauch Kraftstoffe])*_xlfn.XLOOKUP(Result_Ausbringung[[#This Row],[Fahrzeuge (Lkw, zulässiges Gesamtgewicht, Euro_Norm, Kraftstoffe)]],Auswahl_Lkw_pkw,EF_Ausbringung[AP (mol H+ Äq. / Einheit)]) -> 0 | G127: =SUMIF(Eingabe_Ausbringungen[Angaben zu den Fahrzeugen (Lkw: zulässiges Gesamtgewicht, Euro Norm, Kraftstoff)],Result_Ausbringung[[#This Row],[Fahrzeuge (Lkw, zulässiges Gesamtgewicht, Euro_Norm, Kraftstoffe)]],Eingabe_Ausbringungen[Verbrauch Kraftstoffe])*_xlfn.XLOOKUP(Result_Ausbringung[[#This Row],[Fahrzeuge (Lkw, zulässiges Gesamtgewicht, Euro_Norm, Kraftstoffe)]],Auswahl_Lkw_pkw,EF_Ausbringung[ODP (kg FCKW-11 Äq. / Einheit)]) -> 0 | H127: =SUMIF(Eingabe_Ausbringungen[Angaben zu den Fahrzeugen (Lkw: zulässiges Gesamtgewicht, Euro Norm, Kraftstoff)],Result_Ausbringung[[#This Row],[Fahrzeuge (Lkw, zulässiges Gesamtgewicht, Euro_Norm, Kraftstoffe)]],Eingabe_Ausbringungen[Verbrauch Kraftstoffe])*_xlfn.XLOOKUP(Result_Ausbringung[[#This Row],[Fahrzeuge (Lkw, zulässiges Gesamtgewicht, Euro_Norm, Kraftstoffe)]],Auswahl_Lkw_pkw,EF_Ausbringung[POCP (kg NMVOC Äq. / Einheit)]) -> 0
C128: Lkw >14-26t, Euro 5, Diesel | D128: =SUMIF(Eingabe_Ausbringungen[Angaben zu den Fahrzeugen (Lkw: zulässiges Gesamtgewicht, Euro Norm, Kraftstoff)],Result_Ausbringung[[#This Row],[Fahrzeuge (Lkw, zulässiges Gesamtgewicht, Euro_Norm, Kraftstoffe)]],Eingabe_Ausbringungen[Verbrauch Kraftstoffe])*_xlfn.XLOOKUP(Result_Ausbringung[[#This Row],[Fahrzeuge (Lkw, zulässiges Gesamtgewicht, Euro_Norm, Kraftstoffe)]],Auswahl_Lkw_pkw,EF_Ausbringung[KEA (MJ / Einheit)]) -> 0 | E128: =SUMIF(Eingabe_Ausbringungen[Angaben zu den Fahrzeugen (Lkw: zulässiges Gesamtgewicht, Euro Norm, Kraftstoff)],Result_Ausbringung[[#This Row],[Fahrzeuge (Lkw, zulässiges Gesamtgewicht, Euro_Norm, Kraftstoffe)]],Eingabe_Ausbringungen[Verbrauch Kraftstoffe])*_xlfn.XLOOKUP(Result_Ausbringung[[#This Row],[Fahrzeuge (Lkw, zulässiges Gesamtgewicht, Euro_Norm, Kraftstoffe)]],Auswahl_Lkw_pkw,EF_Ausbringung[GWP (kg CO2Äq. / Einheit)]) -> 0 | F128: =SUMIF(Eingabe_Ausbringungen[Angaben zu den Fahrzeugen (Lkw: zulässiges Gesamtgewicht, Euro Norm, Kraftstoff)],Result_Ausbringung[[#This Row],[Fahrzeuge (Lkw, zulässiges Gesamtgewicht, Euro_Norm, Kraftstoffe)]],Eingabe_Ausbringungen[Verbrauch Kraftstoffe])*_xlfn.XLOOKUP(Result_Ausbringung[[#This Row],[Fahrzeuge (Lkw, zulässiges Gesamtgewicht, Euro_Norm, Kraftstoffe)]],Auswahl_Lkw_pkw,EF_Ausbringung[AP (mol H+ Äq. / Einheit)]) -> 0 | G128: =SUMIF(Eingabe_Ausbringungen[Angaben zu den Fahrzeugen (Lkw: zulässiges Gesamtgewicht, Euro Norm, Kraftstoff)],Result_Ausbringung[[#This Row],[Fahrzeuge (Lkw, zulässiges Gesamtgewicht, Euro_Norm, Kraftstoffe)]],Eingabe_Ausbringungen[Verbrauch Kraftstoffe])*_xlfn.XLOOKUP(Result_Ausbringung[[#This Row],[Fahrzeuge (Lkw, zulässiges Gesamtgewicht, Euro_Norm, Kraftstoffe)]],Auswahl_Lkw_pkw,EF_Ausbringung[ODP (kg FCKW-11 Äq. / Einheit)]) -> 0 | H128: =SUMIF(Eingabe_Ausbringungen[Angaben zu den Fahrzeugen (Lkw: zulässiges Gesamtgewicht, Euro Norm, Kraftstoff)],Result_Ausbringung[[#This Row],[Fahrzeuge (Lkw, zulässiges Gesamtgewicht, Euro_Norm, Kraftstoffe)]],Eingabe_Ausbringungen[Verbrauch Kraftstoffe])*_xlfn.XLOOKUP(Result_Ausbringung[[#This Row],[Fahrzeuge (Lkw, zulässiges Gesamtgewicht, Euro_Norm, Kraftstoffe)]],Auswahl_Lkw_pkw,EF_Ausbringung[POCP (kg NMVOC Äq. / Einheit)]) -> 0
C129: Lkw >14-26t, Euro 6, Diesel | D129: =SUMIF(Eingabe_Ausbringungen[Angaben zu den Fahrzeugen (Lkw: zulässiges Gesamtgewicht, Euro Norm, Kraftstoff)],Result_Ausbringung[[#This Row],[Fahrzeuge (Lkw, zulässiges Gesamtgewicht, Euro_Norm, Kraftstoffe)]],Eingabe_Ausbringungen[Verbrauch Kraftstoffe])*_xlfn.XLOOKUP(Result_Ausbringung[[#This Row],[Fahrzeuge (Lkw, zulässiges Gesamtgewicht, Euro_Norm, Kraftstoffe)]],Auswahl_Lkw_pkw,EF_Ausbringung[KEA (MJ / Einheit)]) -> 0 | E129: =SUMIF(Eingabe_Ausbringungen[Angaben zu den Fahrzeugen (Lkw: zulässiges Gesamtgewicht, Euro Norm, Kraftstoff)],Result_Ausbringung[[#This Row],[Fahrzeuge (Lkw, zulässiges Gesamtgewicht, Euro_Norm, Kraftstoffe)]],Eingabe_Ausbringungen[Verbrauch Kraftstoffe])*_xlfn.XLOOKUP(Result_Ausbringung[[#This Row],[Fahrzeuge (Lkw, zulässiges Gesamtgewicht, Euro_Norm, Kraftstoffe)]],Auswahl_Lkw_pkw,EF_Ausbringung[GWP (kg CO2Äq. / Einheit)]) -> 0 | F129: =SUMIF(Eingabe_Ausbringungen[Angaben zu den Fahrzeugen (Lkw: zulässiges Gesamtgewicht, Euro Norm, Kraftstoff)],Result_Ausbringung[[#This Row],[Fahrzeuge (Lkw, zulässiges Gesamtgewicht, Euro_Norm, Kraftstoffe)]],Eingabe_Ausbringungen[Verbrauch Kraftstoffe])*_xlfn.XLOOKUP(Result_Ausbringung[[#This Row],[Fahrzeuge (Lkw, zulässiges Gesamtgewicht, Euro_Norm, Kraftstoffe)]],Auswahl_Lkw_pkw,EF_Ausbringung[AP (mol H+ Äq. / Einheit)]) -> 0 | G129: =SUMIF(Eingabe_Ausbringungen[Angaben zu den Fahrzeugen (Lkw: zulässiges Gesamtgewicht, Euro Norm, Kraftstoff)],Result_Ausbringung[[#This Row],[Fahrzeuge (Lkw, zulässiges Gesamtgewicht, Euro_Norm, Kraftstoffe)]],Eingabe_Ausbringungen[Verbrauch Kraftstoffe])*_xlfn.XLOOKUP(Result_Ausbringung[[#This Row],[Fahrzeuge (Lkw, zulässiges Gesamtgewicht, Euro_Norm, Kraftstoffe)]],Auswahl_Lkw_pkw,EF_Ausbringung[ODP (kg FCKW-11 Äq. / Einheit)]) -> 0 | H129: =SUMIF(Eingabe_Ausbringungen[Angaben zu den Fahrzeugen (Lkw: zulässiges Gesamtgewicht, Euro Norm, Kraftstoff)],Result_Ausbringung[[#This Row],[Fahrzeuge (Lkw, zulässiges Gesamtgewicht, Euro_Norm, Kraftstoffe)]],Eingabe_Ausbringungen[Verbrauch Kraftstoffe])*_xlfn.XLOOKUP(Result_Ausbringung[[#This Row],[Fahrzeuge (Lkw, zulässiges Gesamtgewicht, Euro_Norm, Kraftstoffe)]],Auswahl_Lkw_pkw,EF_Ausbringung[POCP (kg NMVOC Äq. / Einheit)]) -> 0
C130: Lkw / Unimog >7.5-14t, Euro 3, Diesel | D130: =SUMIF(Eingabe_Ausbringungen[Angaben zu den Fahrzeugen (Lkw: zulässiges Gesamtgewicht, Euro Norm, Kraftstoff)],Result_Ausbringung[[#This Row],[Fahrzeuge (Lkw, zulässiges Gesamtgewicht, Euro_Norm, Kraftstoffe)]],Eingabe_Ausbringungen[Verbrauch Kraftstoffe])*_xlfn.XLOOKUP(Result_Ausbringung[[#This Row],[Fahrzeuge (Lkw, zulässiges Gesamtgewicht, Euro_Norm, Kraftstoffe)]],Auswahl_Lkw_pkw,EF_Ausbringung[KEA (MJ / Einheit)]) -> 0 | E130: =SUMIF(Eingabe_Ausbringungen[Angaben zu den Fahrzeugen (Lkw: zulässiges Gesamtgewicht, Euro Norm, Kraftstoff)],Result_Ausbringung[[#This Row],[Fahrzeuge (Lkw, zulässiges Gesamtgewicht, Euro_Norm, Kraftstoffe)]],Eingabe_Ausbringungen[Verbrauch Kraftstoffe])*_xlfn.XLOOKUP(Result_Ausbringung[[#This Row],[Fahrzeuge (Lkw, zulässiges Gesamtgewicht, Euro_Norm, Kraftstoffe)]],Auswahl_Lkw_pkw,EF_Ausbringung[GWP (kg CO2Äq. / Einheit)]) -> 0 | F130: =SUMIF(Eingabe_Ausbringungen[Angaben zu den Fahrzeugen (Lkw: zulässiges Gesamtgewicht, Euro Norm, Kraftstoff)],Result_Ausbringung[[#This Row],[Fahrzeuge (Lkw, zulässiges Gesamtgewicht, Euro_Norm, Kraftstoffe)]],Eingabe_Ausbringungen[Verbrauch Kraftstoffe])*_xlfn.XLOOKUP(Result_Ausbringung[[#This Row],[Fahrzeuge (Lkw, zulässiges Gesamtgewicht, Euro_Norm, Kraftstoffe)]],Auswahl_Lkw_pkw,EF_Ausbringung[AP (mol H+ Äq. / Einheit)]) -> 0 | G130: =SUMIF(Eingabe_Ausbringungen[Angaben zu den Fahrzeugen (Lkw: zulässiges Gesamtgewicht, Euro Norm, Kraftstoff)],Result_Ausbringung[[#This Row],[Fahrzeuge (Lkw, zulässiges Gesamtgewicht, Euro_Norm, Kraftstoffe)]],Eingabe_Ausbringungen[Verbrauch Kraftstoffe])*_xlfn.XLOOKUP(Result_Ausbringung[[#This Row],[Fahrzeuge (Lkw, zulässiges Gesamtgewicht, Euro_Norm, Kraftstoffe)]],Auswahl_Lkw_pkw,EF_Ausbringung[ODP (kg FCKW-11 Äq. / Einheit)]) -> 0 | H130: =SUMIF(Eingabe_Ausbringungen[Angaben zu den Fahrzeugen (Lkw: zulässiges Gesamtgewicht, Euro Norm, Kraftstoff)],Result_Ausbringung[[#This Row],[Fahrzeuge (Lkw, zulässiges Gesamtgewicht, Euro_Norm, Kraftstoffe)]],Eingabe_Ausbringungen[Verbrauch Kraftstoffe])*_xlfn.XLOOKUP(Result_Ausbringung[[#This Row],[Fahrzeuge (Lkw, zulässiges Gesamtgewicht, Euro_Norm, Kraftstoffe)]],Auswahl_Lkw_pkw,EF_Ausbringung[POCP (kg NMVOC Äq. / Einheit)]) -> 0
C131: Lkw / Unimog >7.5-14t, Euro 4, Diesel | D131: =SUMIF(Eingabe_Ausbringungen[Angaben zu den Fahrzeugen (Lkw: zulässiges Gesamtgewicht, Euro Norm, Kraftstoff)],Result_Ausbringung[[#This Row],[Fahrzeuge (Lkw, zulässiges Gesamtgewicht, Euro_Norm, Kraftstoffe)]],Eingabe_Ausbringungen[Verbrauch Kraftstoffe])*_xlfn.XLOOKUP(Result_Ausbringung[[#This Row],[Fahrzeuge (Lkw, zulässiges Gesamtgewicht, Euro_Norm, Kraftstoffe)]],Auswahl_Lkw_pkw,EF_Ausbringung[KEA (MJ / Einheit)]) -> 0 | E131: =SUMIF(Eingabe_Ausbringungen[Angaben zu den Fahrzeugen (Lkw: zulässiges Gesamtgewicht, Euro Norm, Kraftstoff)],Result_Ausbringung[[#This Row],[Fahrzeuge (Lkw, zulässiges Gesamtgewicht, Euro_Norm, Kraftstoffe)]],Eingabe_Ausbringungen[Verbrauch Kraftstoffe])*_xlfn.XLOOKUP(Result_Ausbringung[[#This Row],[Fahrzeuge (Lkw, zulässiges Gesamtgewicht, Euro_Norm, Kraftstoffe)]],Auswahl_Lkw_pkw,EF_Ausbringung[GWP (kg CO2Äq. / Einheit)]) -> 0 | F131: =SUMIF(Eingabe_Ausbringungen[Angaben zu den Fahrzeugen (Lkw: zulässiges Gesamtgewicht, Euro Norm, Kraftstoff)],Result_Ausbringung[[#This Row],[Fahrzeuge (Lkw, zulässiges Gesamtgewicht, Euro_Norm, Kraftstoffe)]],Eingabe_Ausbringungen[Verbrauch Kraftstoffe])*_xlfn.XLOOKUP(Result_Ausbringung[[#This Row],[Fahrzeuge (Lkw, zulässiges Gesamtgewicht, Euro_Norm, Kraftstoffe)]],Auswahl_Lkw_pkw,EF_Ausbringung[AP (mol H+ Äq. / Einheit)]) -> 0 | G131: =SUMIF(Eingabe_Ausbringungen[Angaben zu den Fahrzeugen (Lkw: zulässiges Gesamtgewicht, Euro Norm, Kraftstoff)],Result_Ausbringung[[#This Row],[Fahrzeuge (Lkw, zulässiges Gesamtgewicht, Euro_Norm, Kraftstoffe)]],Eingabe_Ausbringungen[Verbrauch Kraftstoffe])*_xlfn.XLOOKUP(Result_Ausbringung[[#This Row],[Fahrzeuge (Lkw, zulässiges Gesamtgewicht, Euro_Norm, Kraftstoffe)]],Auswahl_Lkw_pkw,EF_Ausbringung[ODP (kg FCKW-11 Äq. / Einheit)]) -> 0 | H131: =SUMIF(Eingabe_Ausbringungen[Angaben zu den Fahrzeugen (Lkw: zulässiges Gesamtgewicht, Euro Norm, Kraftstoff)],Result_Ausbringung[[#This Row],[Fahrzeuge (Lkw, zulässiges Gesamtgewicht, Euro_Norm, Kraftstoffe)]],Eingabe_Ausbringungen[Verbrauch Kraftstoffe])*_xlfn.XLOOKUP(Result_Ausbringung[[#This Row],[Fahrzeuge (Lkw, zulässiges Gesamtgewicht, Euro_Norm, Kraftstoffe)]],Auswahl_Lkw_pkw,EF_Ausbringung[POCP (kg NMVOC Äq. / Einheit)]) -> 0
C132: Lkw / Unimog >7.5-14t, Euro 5, Diesel | D132: =SUMIF(Eingabe_Ausbringungen[Angaben zu den Fahrzeugen (Lkw: zulässiges Gesamtgewicht, Euro Norm, Kraftstoff)],Result_Ausbringung[[#This Row],[Fahrzeuge (Lkw, zulässiges Gesamtgewicht, Euro_Norm, Kraftstoffe)]],Eingabe_Ausbringungen[Verbrauch Kraftstoffe])*_xlfn.XLOOKUP(Result_Ausbringung[[#This Row],[Fahrzeuge (Lkw, zulässiges Gesamtgewicht, Euro_Norm, Kraftstoffe)]],Auswahl_Lkw_pkw,EF_Ausbringung[KEA (MJ / Einheit)]) -> 0 | E132: =SUMIF(Eingabe_Ausbringungen[Angaben zu den Fahrzeugen (Lkw: zulässiges Gesamtgewicht, Euro Norm, Kraftstoff)],Result_Ausbringung[[#This Row],[Fahrzeuge (Lkw, zulässiges Gesamtgewicht, Euro_Norm, Kraftstoffe)]],Eingabe_Ausbringungen[Verbrauch Kraftstoffe])*_xlfn.XLOOKUP(Result_Ausbringung[[#This Row],[Fahrzeuge (Lkw, zulässiges Gesamtgewicht, Euro_Norm, Kraftstoffe)]],Auswahl_Lkw_pkw,EF_Ausbringung[GWP (kg CO2Äq. / Einheit)]) -> 0 | F132: =SUMIF(Eingabe_Ausbringungen[Angaben zu den Fahrzeugen (Lkw: zulässiges Gesamtgewicht, Euro Norm, Kraftstoff)],Result_Ausbringung[[#This Row],[Fahrzeuge (Lkw, zulässiges Gesamtgewicht, Euro_Norm, Kraftstoffe)]],Eingabe_Ausbringungen[Verbrauch Kraftstoffe])*_xlfn.XLOOKUP(Result_Ausbringung[[#This Row],[Fahrzeuge (Lkw, zulässiges Gesamtgewicht, Euro_Norm, Kraftstoffe)]],Auswahl_Lkw_pkw,EF_Ausbringung[AP (mol H+ Äq. / Einheit)]) -> 0 | G132: =SUMIF(Eingabe_Ausbringungen[Angaben zu den Fahrzeugen (Lkw: zulässiges Gesamtgewicht, Euro Norm, Kraftstoff)],Result_Ausbringung[[#This Row],[Fahrzeuge (Lkw, zulässiges Gesamtgewicht, Euro_Norm, Kraftstoffe)]],Eingabe_Ausbringungen[Verbrauch Kraftstoffe])*_xlfn.XLOOKUP(Result_Ausbringung[[#This Row],[Fahrzeuge (Lkw, zulässiges Gesamtgewicht, Euro_Norm, Kraftstoffe)]],Auswahl_Lkw_pkw,EF_Ausbringung[ODP (kg FCKW-11 Äq. / Einheit)]) -> 0 | H132: =SUMIF(Eingabe_Ausbringungen[Angaben zu den Fahrzeugen (Lkw: zulässiges Gesamtgewicht, Euro Norm, Kraftstoff)],Result_Ausbringung[[#This Row],[Fahrzeuge (Lkw, zulässiges Gesamtgewicht, Euro_Norm, Kraftstoffe)]],Eingabe_Ausbringungen[Verbrauch Kraftstoffe])*_xlfn.XLOOKUP(Result_Ausbringung[[#This Row],[Fahrzeuge (Lkw, zulässiges Gesamtgewicht, Euro_Norm, Kraftstoffe)]],Auswahl_Lkw_pkw,EF_Ausbringung[POCP (kg NMVOC Äq. / Einheit)]) -> 0
C133: Lkw / Unimog >7.5-14t, Euro 6, Diesel | D133: =SUMIF(Eingabe_Ausbringungen[Angaben zu den Fahrzeugen (Lkw: zulässiges Gesamtgewicht, Euro Norm, Kraftstoff)],Result_Ausbringung[[#This Row],[Fahrzeuge (Lkw, zulässiges Gesamtgewicht, Euro_Norm, Kraftstoffe)]],Eingabe_Ausbringungen[Verbrauch Kraftstoffe])*_xlfn.XLOOKUP(Result_Ausbringung[[#This Row],[Fahrzeuge (Lkw, zulässiges Gesamtgewicht, Euro_Norm, Kraftstoffe)]],Auswahl_Lkw_pkw,EF_Ausbringung[KEA (MJ / Einheit)]) -> 0 | E133: =SUMIF(Eingabe_Ausbringungen[Angaben zu den Fahrzeugen (Lkw: zulässiges Gesamtgewicht, Euro Norm, Kraftstoff)],Result_Ausbringung[[#This Row],[Fahrzeuge (Lkw, zulässiges Gesamtgewicht, Euro_Norm, Kraftstoffe)]],Eingabe_Ausbringungen[Verbrauch Kraftstoffe])*_xlfn.XLOOKUP(Result_Ausbringung[[#This Row],[Fahrzeuge (Lkw, zulässiges Gesamtgewicht, Euro_Norm, Kraftstoffe)]],Auswahl_Lkw_pkw,EF_Ausbringung[GWP (kg CO2Äq. / Einheit)]) -> 0 | F133: =SUMIF(Eingabe_Ausbringungen[Angaben zu den Fahrzeugen (Lkw: zulässiges Gesamtgewicht, Euro Norm, Kraftstoff)],Result_Ausbringung[[#This Row],[Fahrzeuge (Lkw, zulässiges Gesamtgewicht, Euro_Norm, Kraftstoffe)]],Eingabe_Ausbringungen[Verbrauch Kraftstoffe])*_xlfn.XLOOKUP(Result_Ausbringung[[#This Row],[Fahrzeuge (Lkw, zulässiges Gesamtgewicht, Euro_Norm, Kraftstoffe)]],Auswahl_Lkw_pkw,EF_Ausbringung[AP (mol H+ Äq. / Einheit)]) -> 0 | G133: =SUMIF(Eingabe_Ausbringungen[Angaben zu den Fahrzeugen (Lkw: zulässiges Gesamtgewicht, Euro Norm, Kraftstoff)],Result_Ausbringung[[#This Row],[Fahrzeuge (Lkw, zulässiges Gesamtgewicht, Euro_Norm, Kraftstoffe)]],Eingabe_Ausbringungen[Verbrauch Kraftstoffe])*_xlfn.XLOOKUP(Result_Ausbringung[[#This Row],[Fahrzeuge (Lkw, zulässiges Gesamtgewicht, Euro_Norm, Kraftstoffe)]],Auswahl_Lkw_pkw,EF_Ausbringung[ODP (kg FCKW-11 Äq. / Einheit)]) -> 0 | H133: =SUMIF(Eingabe_Ausbringungen[Angaben zu den Fahrzeugen (Lkw: zulässiges Gesamtgewicht, Euro Norm, Kraftstoff)],Result_Ausbringung[[#This Row],[Fahrzeuge (Lkw, zulässiges Gesamtgewicht, Euro_Norm, Kraftstoffe)]],Eingabe_Ausbringungen[Verbrauch Kraftstoffe])*_xlfn.XLOOKUP(Result_Ausbringung[[#This Row],[Fahrzeuge (Lkw, zulässiges Gesamtgewicht, Euro_Norm, Kraftstoffe)]],Auswahl_Lkw_pkw,EF_Ausbringung[POCP (kg NMVOC Äq. / Einheit)]) -> 0
C134: Unimog ≤7,5t, Euro 3, Diesel | D134: =SUMIF(Eingabe_Ausbringungen[Angaben zu den Fahrzeugen (Lkw: zulässiges Gesamtgewicht, Euro Norm, Kraftstoff)],Result_Ausbringung[[#This Row],[Fahrzeuge (Lkw, zulässiges Gesamtgewicht, Euro_Norm, Kraftstoffe)]],Eingabe_Ausbringungen[Verbrauch Kraftstoffe])*_xlfn.XLOOKUP(Result_Ausbringung[[#This Row],[Fahrzeuge (Lkw, zulässiges Gesamtgewicht, Euro_Norm, Kraftstoffe)]],Auswahl_Lkw_pkw,EF_Ausbringung[KEA (MJ / Einheit)]) -> 0 | E134: =SUMIF(Eingabe_Ausbringungen[Angaben zu den Fahrzeugen (Lkw: zulässiges Gesamtgewicht, Euro Norm, Kraftstoff)],Result_Ausbringung[[#This Row],[Fahrzeuge (Lkw, zulässiges Gesamtgewicht, Euro_Norm, Kraftstoffe)]],Eingabe_Ausbringungen[Verbrauch Kraftstoffe])*_xlfn.XLOOKUP(Result_Ausbringung[[#This Row],[Fahrzeuge (Lkw, zulässiges Gesamtgewicht, Euro_Norm, Kraftstoffe)]],Auswahl_Lkw_pkw,EF_Ausbringung[GWP (kg CO2Äq. / Einheit)]) -> 0 | F134: =SUMIF(Eingabe_Ausbringungen[Angaben zu den Fahrzeugen (Lkw: zulässiges Gesamtgewicht, Euro Norm, Kraftstoff)],Result_Ausbringung[[#This Row],[Fahrzeuge (Lkw, zulässiges Gesamtgewicht, Euro_Norm, Kraftstoffe)]],Eingabe_Ausbringungen[Verbrauch Kraftstoffe])*_xlfn.XLOOKUP(Result_Ausbringung[[#This Row],[Fahrzeuge (Lkw, zulässiges Gesamtgewicht, Euro_Norm, Kraftstoffe)]],Auswahl_Lkw_pkw,EF_Ausbringung[AP (mol H+ Äq. / Einheit)]) -> 0 | G134: =SUMIF(Eingabe_Ausbringungen[Angaben zu den Fahrzeugen (Lkw: zulässiges Gesamtgewicht, Euro Norm, Kraftstoff)],Result_Ausbringung[[#This Row],[Fahrzeuge (Lkw, zulässiges Gesamtgewicht, Euro_Norm, Kraftstoffe)]],Eingabe_Ausbringungen[Verbrauch Kraftstoffe])*_xlfn.XLOOKUP(Result_Ausbringung[[#This Row],[Fahrzeuge (Lkw, zulässiges Gesamtgewicht, Euro_Norm, Kraftstoffe)]],Auswahl_Lkw_pkw,EF_Ausbringung[ODP (kg FCKW-11 Äq. / Einheit)]) -> 0 | H134: =SUMIF(Eingabe_Ausbringungen[Angaben zu den Fahrzeugen (Lkw: zulässiges Gesamtgewicht, Euro Norm, Kraftstoff)],Result_Ausbringung[[#This Row],[Fahrzeuge (Lkw, zulässiges Gesamtgewicht, Euro_Norm, Kraftstoffe)]],Eingabe_Ausbringungen[Verbrauch Kraftstoffe])*_xlfn.XLOOKUP(Result_Ausbringung[[#This Row],[Fahrzeuge (Lkw, zulässiges Gesamtgewicht, Euro_Norm, Kraftstoffe)]],Auswahl_Lkw_pkw,EF_Ausbringung[POCP (kg NMVOC Äq. / Einheit)]) -> 0
C135: Unimog ≤7,5t, Euro 4, Diesel | D135: =SUMIF(Eingabe_Ausbringungen[Angaben zu den Fahrzeugen (Lkw: zulässiges Gesamtgewicht, Euro Norm, Kraftstoff)],Result_Ausbringung[[#This Row],[Fahrzeuge (Lkw, zulässiges Gesamtgewicht, Euro_Norm, Kraftstoffe)]],Eingabe_Ausbringungen[Verbrauch Kraftstoffe])*_xlfn.XLOOKUP(Result_Ausbringung[[#This Row],[Fahrzeuge (Lkw, zulässiges Gesamtgewicht, Euro_Norm, Kraftstoffe)]],Auswahl_Lkw_pkw,EF_Ausbringung[KEA (MJ / Einheit)]) -> 0 | E135: =SUMIF(Eingabe_Ausbringungen[Angaben zu den Fahrzeugen (Lkw: zulässiges Gesamtgewicht, Euro Norm, Kraftstoff)],Result_Ausbringung[[#This Row],[Fahrzeuge (Lkw, zulässiges Gesamtgewicht, Euro_Norm, Kraftstoffe)]],Eingabe_Ausbringungen[Verbrauch Kraftstoffe])*_xlfn.XLOOKUP(Result_Ausbringung[[#This Row],[Fahrzeuge (Lkw, zulässiges Gesamtgewicht, Euro_Norm, Kraftstoffe)]],Auswahl_Lkw_pkw,EF_Ausbringung[GWP (kg CO2Äq. / Einheit)]) -> 0 | F135: =SUMIF(Eingabe_Ausbringungen[Angaben zu den Fahrzeugen (Lkw: zulässiges Gesamtgewicht, Euro Norm, Kraftstoff)],Result_Ausbringung[[#This Row],[Fahrzeuge (Lkw, zulässiges Gesamtgewicht, Euro_Norm, Kraftstoffe)]],Eingabe_Ausbringungen[Verbrauch Kraftstoffe])*_xlfn.XLOOKUP(Result_Ausbringung[[#This Row],[Fahrzeuge (Lkw, zulässiges Gesamtgewicht, Euro_Norm, Kraftstoffe)]],Auswahl_Lkw_pkw,EF_Ausbringung[AP (mol H+ Äq. / Einheit)]) -> 0 | G135: =SUMIF(Eingabe_Ausbringungen[Angaben zu den Fahrzeugen (Lkw: zulässiges Gesamtgewicht, Euro Norm, Kraftstoff)],Result_Ausbringung[[#This Row],[Fahrzeuge (Lkw, zulässiges Gesamtgewicht, Euro_Norm, Kraftstoffe)]],Eingabe_Ausbringungen[Verbrauch Kraftstoffe])*_xlfn.XLOOKUP(Result_Ausbringung[[#This Row],[Fahrzeuge (Lkw, zulässiges Gesamtgewicht, Euro_Norm, Kraftstoffe)]],Auswahl_Lkw_pkw,EF_Ausbringung[ODP (kg FCKW-11 Äq. / Einheit)]) -> 0 | H135: =SUMIF(Eingabe_Ausbringungen[Angaben zu den Fahrzeugen (Lkw: zulässiges Gesamtgewicht, Euro Norm, Kraftstoff)],Result_Ausbringung[[#This Row],[Fahrzeuge (Lkw, zulässiges Gesamtgewicht, Euro_Norm, Kraftstoffe)]],Eingabe_Ausbringungen[Verbrauch Kraftstoffe])*_xlfn.XLOOKUP(Result_Ausbringung[[#This Row],[Fahrzeuge (Lkw, zulässiges Gesamtgewicht, Euro_Norm, Kraftstoffe)]],Auswahl_Lkw_pkw,EF_Ausbringung[POCP (kg NMVOC Äq. / Einheit)]) -> 0
C136: Unimog ≤7,5t, Euro 5, Diesel | D136: =SUMIF(Eingabe_Ausbringungen[Angaben zu den Fahrzeugen (Lkw: zulässiges Gesamtgewicht, Euro Norm, Kraftstoff)],Result_Ausbringung[[#This Row],[Fahrzeuge (Lkw, zulässiges Gesamtgewicht, Euro_Norm, Kraftstoffe)]],Eingabe_Ausbringungen[Verbrauch Kraftstoffe])*_xlfn.XLOOKUP(Result_Ausbringung[[#This Row],[Fahrzeuge (Lkw, zulässiges Gesamtgewicht, Euro_Norm, Kraftstoffe)]],Auswahl_Lkw_pkw,EF_Ausbringung[KEA (MJ / Einheit)]) -> 0 | E136: =SUMIF(Eingabe_Ausbringungen[Angaben zu den Fahrzeugen (Lkw: zulässiges Gesamtgewicht, Euro Norm, Kraftstoff)],Result_Ausbringung[[#This Row],[Fahrzeuge (Lkw, zulässiges Gesamtgewicht, Euro_Norm, Kraftstoffe)]],Eingabe_Ausbringungen[Verbrauch Kraftstoffe])*_xlfn.XLOOKUP(Result_Ausbringung[[#This Row],[Fahrzeuge (Lkw, zulässiges Gesamtgewicht, Euro_Norm, Kraftstoffe)]],Auswahl_Lkw_pkw,EF_Ausbringung[GWP (kg CO2Äq. / Einheit)]) -> 0 | F136: =SUMIF(Eingabe_Ausbringungen[Angaben zu den Fahrzeugen (Lkw: zulässiges Gesamtgewicht, Euro Norm, Kraftstoff)],Result_Ausbringung[[#This Row],[Fahrzeuge (Lkw, zulässiges Gesamtgewicht, Euro_Norm, Kraftstoffe)]],Eingabe_Ausbringungen[Verbrauch Kraftstoffe])*_xlfn.XLOOKUP(Result_Ausbringung[[#This Row],[Fahrzeuge (Lkw, zulässiges Gesamtgewicht, Euro_Norm, Kraftstoffe)]],Auswahl_Lkw_pkw,EF_Ausbringung[AP (mol H+ Äq. / Einheit)]) -> 0 | G136: =SUMIF(Eingabe_Ausbringungen[Angaben zu den Fahrzeugen (Lkw: zulässiges Gesamtgewicht, Euro Norm, Kraftstoff)],Result_Ausbringung[[#This Row],[Fahrzeuge (Lkw, zulässiges Gesamtgewicht, Euro_Norm, Kraftstoffe)]],Eingabe_Ausbringungen[Verbrauch Kraftstoffe])*_xlfn.XLOOKUP(Result_Ausbringung[[#This Row],[Fahrzeuge (Lkw, zulässiges Gesamtgewicht, Euro_Norm, Kraftstoffe)]],Auswahl_Lkw_pkw,EF_Ausbringung[ODP (kg FCKW-11 Äq. / Einheit)]) -> 0 | H136: =SUMIF(Eingabe_Ausbringungen[Angaben zu den Fahrzeugen (Lkw: zulässiges Gesamtgewicht, Euro Norm, Kraftstoff)],Result_Ausbringung[[#This Row],[Fahrzeuge (Lkw, zulässiges Gesamtgewicht, Euro_Norm, Kraftstoffe)]],Eingabe_Ausbringungen[Verbrauch Kraftstoffe])*_xlfn.XLOOKUP(Result_Ausbringung[[#This Row],[Fahrzeuge (Lkw, zulässiges Gesamtgewicht, Euro_Norm, Kraftstoffe)]],Auswahl_Lkw_pkw,EF_Ausbringung[POCP (kg NMVOC Äq. / Einheit)]) -> 0
C137: Unimog ≤7,5t, Euro 6, Diesel | D137: =SUMIF(Eingabe_Ausbringungen[Angaben zu den Fahrzeugen (Lkw: zulässiges Gesamtgewicht, Euro Norm, Kraftstoff)],Result_Ausbringung[[#This Row],[Fahrzeuge (Lkw, zulässiges Gesamtgewicht, Euro_Norm, Kraftstoffe)]],Eingabe_Ausbringungen[Verbrauch Kraftstoffe])*_xlfn.XLOOKUP(Result_Ausbringung[[#This Row],[Fahrzeuge (Lkw, zulässiges Gesamtgewicht, Euro_Norm, Kraftstoffe)]],Auswahl_Lkw_pkw,EF_Ausbringung[KEA (MJ / Einheit)]) -> 0 | E137: =SUMIF(Eingabe_Ausbringungen[Angaben zu den Fahrzeugen (Lkw: zulässiges Gesamtgewicht, Euro Norm, Kraftstoff)],Result_Ausbringung[[#This Row],[Fahrzeuge (Lkw, zulässiges Gesamtgewicht, Euro_Norm, Kraftstoffe)]],Eingabe_Ausbringungen[Verbrauch Kraftstoffe])*_xlfn.XLOOKUP(Result_Ausbringung[[#This Row],[Fahrzeuge (Lkw, zulässiges Gesamtgewicht, Euro_Norm, Kraftstoffe)]],Auswahl_Lkw_pkw,EF_Ausbringung[GWP (kg CO2Äq. / Einheit)]) -> 0 | F137: =SUMIF(Eingabe_Ausbringungen[Angaben zu den Fahrzeugen (Lkw: zulässiges Gesamtgewicht, Euro Norm, Kraftstoff)],Result_Ausbringung[[#This Row],[Fahrzeuge (Lkw, zulässiges Gesamtgewicht, Euro_Norm, Kraftstoffe)]],Eingabe_Ausbringungen[Verbrauch Kraftstoffe])*_xlfn.XLOOKUP(Result_Ausbringung[[#This Row],[Fahrzeuge (Lkw, zulässiges Gesamtgewicht, Euro_Norm, Kraftstoffe)]],Auswahl_Lkw_pkw,EF_Ausbringung[AP (mol H+ Äq. / Einheit)]) -> 0 | G137: =SUMIF(Eingabe_Ausbringungen[Angaben zu den Fahrzeugen (Lkw: zulässiges Gesamtgewicht, Euro Norm, Kraftstoff)],Result_Ausbringung[[#This Row],[Fahrzeuge (Lkw, zulässiges Gesamtgewicht, Euro_Norm, Kraftstoffe)]],Eingabe_Ausbringungen[Verbrauch Kraftstoffe])*_xlfn.XLOOKUP(Result_Ausbringung[[#This Row],[Fahrzeuge (Lkw, zulässiges Gesamtgewicht, Euro_Norm, Kraftstoffe)]],Auswahl_Lkw_pkw,EF_Ausbringung[ODP (kg FCKW-11 Äq. / Einheit)]) -> 0 | H137: =SUMIF(Eingabe_Ausbringungen[Angaben zu den Fahrzeugen (Lkw: zulässiges Gesamtgewicht, Euro Norm, Kraftstoff)],Result_Ausbringung[[#This Row],[Fahrzeuge (Lkw, zulässiges Gesamtgewicht, Euro_Norm, Kraftstoffe)]],Eingabe_Ausbringungen[Verbrauch Kraftstoffe])*_xlfn.XLOOKUP(Result_Ausbringung[[#This Row],[Fahrzeuge (Lkw, zulässiges Gesamtgewicht, Euro_Norm, Kraftstoffe)]],Auswahl_Lkw_pkw,EF_Ausbringung[POCP (kg NMVOC Äq. / Einheit)]) -> 0
C138: Lkw, Biodiesel | D138: =SUMIF(Eingabe_Ausbringungen[Angaben zu den Fahrzeugen (Lkw: zulässiges Gesamtgewicht, Euro Norm, Kraftstoff)],Result_Ausbringung[[#This Row],[Fahrzeuge (Lkw, zulässiges Gesamtgewicht, Euro_Norm, Kraftstoffe)]],Eingabe_Ausbringungen[Verbrauch Kraftstoffe])*_xlfn.XLOOKUP(Result_Ausbringung[[#This Row],[Fahrzeuge (Lkw, zulässiges Gesamtgewicht, Euro_Norm, Kraftstoffe)]],Auswahl_Lkw_pkw,EF_Ausbringung[KEA (MJ / Einheit)]) -> 0 | E138: =SUMIF(Eingabe_Ausbringungen[Angaben zu den Fahrzeugen (Lkw: zulässiges Gesamtgewicht, Euro Norm, Kraftstoff)],Result_Ausbringung[[#This Row],[Fahrzeuge (Lkw, zulässiges Gesamtgewicht, Euro_Norm, Kraftstoffe)]],Eingabe_Ausbringungen[Verbrauch Kraftstoffe])*_xlfn.XLOOKUP(Result_Ausbringung[[#This Row],[Fahrzeuge (Lkw, zulässiges Gesamtgewicht, Euro_Norm, Kraftstoffe)]],Auswahl_Lkw_pkw,EF_Ausbringung[GWP (kg CO2Äq. / Einheit)]) -> 0 | F138: =SUMIF(Eingabe_Ausbringungen[Angaben zu den Fahrzeugen (Lkw: zulässiges Gesamtgewicht, Euro Norm, Kraftstoff)],Result_Ausbringung[[#This Row],[Fahrzeuge (Lkw, zulässiges Gesamtgewicht, Euro_Norm, Kraftstoffe)]],Eingabe_Ausbringungen[Verbrauch Kraftstoffe])*_xlfn.XLOOKUP(Result_Ausbringung[[#This Row],[Fahrzeuge (Lkw, zulässiges Gesamtgewicht, Euro_Norm, Kraftstoffe)]],Auswahl_Lkw_pkw,EF_Ausbringung[AP (mol H+ Äq. / Einheit)]) -> 0 | G138: =IFERROR(SUMIF(Eingabe_Ausbringungen[Angaben zu den Fahrzeugen (Lkw: zulässiges Gesamtgewicht, Euro Norm, Kraftstoff)],Result_Ausbringung[[#This Row],[Fahrzeuge (Lkw, zulässiges Gesamtgewicht, Euro_Norm, Kraftstoffe)]],Eingabe_Ausbringungen[Verbrauch Kraftstoffe])*_xlfn.XLOOKUP(Result_Ausbringung[[#This Row],[Fahrzeuge (Lkw, zulässiges Gesamtgewicht, Euro_Norm, Kraftstoffe)]],Auswahl_Lkw_pkw,EF_Ausbringung[ODP (kg FCKW-11 Äq. / Einheit)]),"k.A.") -> k.A. | H138: =SUMIF(Eingabe_Ausbringungen[Angaben zu den Fahrzeugen (Lkw: zulässiges Gesamtgewicht, Euro Norm, Kraftstoff)],Result_Ausbringung[[#This Row],[Fahrzeuge (Lkw, zulässiges Gesamtgewicht, Euro_Norm, Kraftstoffe)]],Eingabe_Ausbringungen[Verbrauch Kraftstoffe])*_xlfn.XLOOKUP(Result_Ausbringung[[#This Row],[Fahrzeuge (Lkw, zulässiges Gesamtgewicht, Euro_Norm, Kraftstoffe)]],Auswahl_Lkw_pkw,EF_Ausbringung[POCP (kg NMVOC Äq. / Einheit)]) -> 0
C139: Pkw, Biodiesel | D139: =SUMIF(Eingabe_Ausbringungen[Angaben zu den Fahrzeugen (Lkw: zulässiges Gesamtgewicht, Euro Norm, Kraftstoff)],Result_Ausbringung[[#This Row],[Fahrzeuge (Lkw, zulässiges Gesamtgewicht, Euro_Norm, Kraftstoffe)]],Eingabe_Ausbringungen[Verbrauch Kraftstoffe])*_xlfn.XLOOKUP(Result_Ausbringung[[#This Row],[Fahrzeuge (Lkw, zulässiges Gesamtgewicht, Euro_Norm, Kraftstoffe)]],Auswahl_Lkw_pkw,EF_Ausbringung[KEA (MJ / Einheit)]) -> 0 | E139: =SUMIF(Eingabe_Ausbringungen[Angaben zu den Fahrzeugen (Lkw: zulässiges Gesamtgewicht, Euro Norm, Kraftstoff)],Result_Ausbringung[[#This Row],[Fahrzeuge (Lkw, zulässiges Gesamtgewicht, Euro_Norm, Kraftstoffe)]],Eingabe_Ausbringungen[Verbrauch Kraftstoffe])*_xlfn.XLOOKUP(Result_Ausbringung[[#This Row],[Fahrzeuge (Lkw, zulässiges Gesamtgewicht, Euro_Norm, Kraftstoffe)]],Auswahl_Lkw_pkw,EF_Ausbringung[GWP (kg CO2Äq. / Einheit)]) -> 0 | F139: =SUMIF(Eingabe_Ausbringungen[Angaben zu den Fahrzeugen (Lkw: zulässiges Gesamtgewicht, Euro Norm, Kraftstoff)],Result_Ausbringung[[#This Row],[Fahrzeuge (Lkw, zulässiges Gesamtgewicht, Euro_Norm, Kraftstoffe)]],Eingabe_Ausbringungen[Verbrauch Kraftstoffe])*_xlfn.XLOOKUP(Result_Ausbringung[[#This Row],[Fahrzeuge (Lkw, zulässiges Gesamtgewicht, Euro_Norm, Kraftstoffe)]],Auswahl_Lkw_pkw,EF_Ausbringung[AP (mol H+ Äq. / Einheit)]) -> 0 | G139: =IFERROR(SUMIF(Eingabe_Ausbringungen[Angaben zu den Fahrzeugen (Lkw: zulässiges Gesamtgewicht, Euro Norm, Kraftstoff)],Result_Ausbringung[[#This Row],[Fahrzeuge (Lkw, zulässiges Gesamtgewicht, Euro_Norm, Kraftstoffe)]],Eingabe_Ausbringungen[Verbrauch Kraftstoffe])*_xlfn.XLOOKUP(Result_Ausbringung[[#This Row],[Fahrzeuge (Lkw, zulässiges Gesamtgewicht, Euro_Norm, Kraftstoffe)]],Auswahl_Lkw_pkw,EF_Ausbringung[ODP (kg FCKW-11 Äq. / Einheit)]),"k.A.") -> k.A. | H139: =SUMIF(Eingabe_Ausbringungen[Angaben zu den Fahrzeugen (Lkw: zulässiges Gesamtgewicht, Euro Norm, Kraftstoff)],Result_Ausbringung[[#This Row],[Fahrzeuge (Lkw, zulässiges Gesamtgewicht, Euro_Norm, Kraftstoffe)]],Eingabe_Ausbringungen[Verbrauch Kraftstoffe])*_xlfn.XLOOKUP(Result_Ausbringung[[#This Row],[Fahrzeuge (Lkw, zulässiges Gesamtgewicht, Euro_Norm, Kraftstoffe)]],Auswahl_Lkw_pkw,EF_Ausbringung[POCP (kg NMVOC Äq. / Einheit)]) -> 0
C140: Pkw, Diesel | D140: =SUMIF(Eingabe_Ausbringungen[Angaben zu den Fahrzeugen (Lkw: zulässiges Gesamtgewicht, Euro Norm, Kraftstoff)],Result_Ausbringung[[#This Row],[Fahrzeuge (Lkw, zulässiges Gesamtgewicht, Euro_Norm, Kraftstoffe)]],Eingabe_Ausbringungen[Verbrauch Kraftstoffe])*_xlfn.XLOOKUP(Result_Ausbringung[[#This Row],[Fahrzeuge (Lkw, zulässiges Gesamtgewicht, Euro_Norm, Kraftstoffe)]],Auswahl_Lkw_pkw,EF_Ausbringung[KEA (MJ / Einheit)]) -> 0 | E140: =SUMIF(Eingabe_Ausbringungen[Angaben zu den Fahrzeugen (Lkw: zulässiges Gesamtgewicht, Euro Norm, Kraftstoff)],Result_Ausbringung[[#This Row],[Fahrzeuge (Lkw, zulässiges Gesamtgewicht, Euro_Norm, Kraftstoffe)]],Eingabe_Ausbringungen[Verbrauch Kraftstoffe])*_xlfn.XLOOKUP(Result_Ausbringung[[#This Row],[Fahrzeuge (Lkw, zulässiges Gesamtgewicht, Euro_Norm, Kraftstoffe)]],Auswahl_Lkw_pkw,EF_Ausbringung[GWP (kg CO2Äq. / Einheit)]) -> 0 | F140: =SUMIF(Eingabe_Ausbringungen[Angaben zu den Fahrzeugen (Lkw: zulässiges Gesamtgewicht, Euro Norm, Kraftstoff)],Result_Ausbringung[[#This Row],[Fahrzeuge (Lkw, zulässiges Gesamtgewicht, Euro_Norm, Kraftstoffe)]],Eingabe_Ausbringungen[Verbrauch Kraftstoffe])*_xlfn.XLOOKUP(Result_Ausbringung[[#This Row],[Fahrzeuge (Lkw, zulässiges Gesamtgewicht, Euro_Norm, Kraftstoffe)]],Auswahl_Lkw_pkw,EF_Ausbringung[AP (mol H+ Äq. / Einheit)]) -> 0 | G140: =SUMIF(Eingabe_Ausbringungen[Angaben zu den Fahrzeugen (Lkw: zulässiges Gesamtgewicht, Euro Norm, Kraftstoff)],Result_Ausbringung[[#This Row],[Fahrzeuge (Lkw, zulässiges Gesamtgewicht, Euro_Norm, Kraftstoffe)]],Eingabe_Ausbringungen[Verbrauch Kraftstoffe])*_xlfn.XLOOKUP(Result_Ausbringung[[#This Row],[Fahrzeuge (Lkw, zulässiges Gesamtgewicht, Euro_Norm, Kraftstoffe)]],Auswahl_Lkw_pkw,EF_Ausbringung[ODP (kg FCKW-11 Äq. / Einheit)]) -> 0 | H140: =SUMIF(Eingabe_Ausbringungen[Angaben zu den Fahrzeugen (Lkw: zulässiges Gesamtgewicht, Euro Norm, Kraftstoff)],Result_Ausbringung[[#This Row],[Fahrzeuge (Lkw, zulässiges Gesamtgewicht, Euro_Norm, Kraftstoffe)]],Eingabe_Ausbringungen[Verbrauch Kraftstoffe])*_xlfn.XLOOKUP(Result_Ausbringung[[#This Row],[Fahrzeuge (Lkw, zulässiges Gesamtgewicht, Euro_Norm, Kraftstoffe)]],Auswahl_Lkw_pkw,EF_Ausbringung[POCP (kg NMVOC Äq. / Einheit)]) -> 0
C141: Pkw, Benzin | D141: =SUMIF(Eingabe_Ausbringungen[Angaben zu den Fahrzeugen (Lkw: zulässiges Gesamtgewicht, Euro Norm, Kraftstoff)],Result_Ausbringung[[#This Row],[Fahrzeuge (Lkw, zulässiges Gesamtgewicht, Euro_Norm, Kraftstoffe)]],Eingabe_Ausbringungen[Verbrauch Kraftstoffe])*_xlfn.XLOOKUP(Result_Ausbringung[[#This Row],[Fahrzeuge (Lkw, zulässiges Gesamtgewicht, Euro_Norm, Kraftstoffe)]],Auswahl_Lkw_pkw,EF_Ausbringung[KEA (MJ / Einheit)]) -> 0 | E141: =SUMIF(Eingabe_Ausbringungen[Angaben zu den Fahrzeugen (Lkw: zulässiges Gesamtgewicht, Euro Norm, Kraftstoff)],Result_Ausbringung[[#This Row],[Fahrzeuge (Lkw, zulässiges Gesamtgewicht, Euro_Norm, Kraftstoffe)]],Eingabe_Ausbringungen[Verbrauch Kraftstoffe])*_xlfn.XLOOKUP(Result_Ausbringung[[#This Row],[Fahrzeuge (Lkw, zulässiges Gesamtgewicht, Euro_Norm, Kraftstoffe)]],Auswahl_Lkw_pkw,EF_Ausbringung[GWP (kg CO2Äq. / Einheit)]) -> 0 | F141: =SUMIF(Eingabe_Ausbringungen[Angaben zu den Fahrzeugen (Lkw: zulässiges Gesamtgewicht, Euro Norm, Kraftstoff)],Result_Ausbringung[[#This Row],[Fahrzeuge (Lkw, zulässiges Gesamtgewicht, Euro_Norm, Kraftstoffe)]],Eingabe_Ausbringungen[Verbrauch Kraftstoffe])*_xlfn.XLOOKUP(Result_Ausbringung[[#This Row],[Fahrzeuge (Lkw, zulässiges Gesamtgewicht, Euro_Norm, Kraftstoffe)]],Auswahl_Lkw_pkw,EF_Ausbringung[AP (mol H+ Äq. / Einheit)]) -> 0 | G141: =SUMIF(Eingabe_Ausbringungen[Angaben zu den Fahrzeugen (Lkw: zulässiges Gesamtgewicht, Euro Norm, Kraftstoff)],Result_Ausbringung[[#This Row],[Fahrzeuge (Lkw, zulässiges Gesamtgewicht, Euro_Norm, Kraftstoffe)]],Eingabe_Ausbringungen[Verbrauch Kraftstoffe])*_xlfn.XLOOKUP(Result_Ausbringung[[#This Row],[Fahrzeuge (Lkw, zulässiges Gesamtgewicht, Euro_Norm, Kraftstoffe)]],Auswahl_Lkw_pkw,EF_Ausbringung[ODP (kg FCKW-11 Äq. / Einheit)]) -> 0 | H141: =SUMIF(Eingabe_Ausbringungen[Angaben zu den Fahrzeugen (Lkw: zulässiges Gesamtgewicht, Euro Norm, Kraftstoff)],Result_Ausbringung[[#This Row],[Fahrzeuge (Lkw, zulässiges Gesamtgewicht, Euro_Norm, Kraftstoffe)]],Eingabe_Ausbringungen[Verbrauch Kraftstoffe])*_xlfn.XLOOKUP(Result_Ausbringung[[#This Row],[Fahrzeuge (Lkw, zulässiges Gesamtgewicht, Euro_Norm, Kraftstoffe)]],Auswahl_Lkw_pkw,EF_Ausbringung[POCP (kg NMVOC Äq. / Einheit)]) -> 0
C142: Pkw, Erdgas, CNG | D142: =SUMIF(Eingabe_Ausbringungen[Angaben zu den Fahrzeugen (Lkw: zulässiges Gesamtgewicht, Euro Norm, Kraftstoff)],Result_Ausbringung[[#This Row],[Fahrzeuge (Lkw, zulässiges Gesamtgewicht, Euro_Norm, Kraftstoffe)]],Eingabe_Ausbringungen[Verbrauch Kraftstoffe])*_xlfn.XLOOKUP(Result_Ausbringung[[#This Row],[Fahrzeuge (Lkw, zulässiges Gesamtgewicht, Euro_Norm, Kraftstoffe)]],Auswahl_Lkw_pkw,EF_Ausbringung[KEA (MJ / Einheit)]) -> 0 | E142: =SUMIF(Eingabe_Ausbringungen[Angaben zu den Fahrzeugen (Lkw: zulässiges Gesamtgewicht, Euro Norm, Kraftstoff)],Result_Ausbringung[[#This Row],[Fahrzeuge (Lkw, zulässiges Gesamtgewicht, Euro_Norm, Kraftstoffe)]],Eingabe_Ausbringungen[Verbrauch Kraftstoffe])*_xlfn.XLOOKUP(Result_Ausbringung[[#This Row],[Fahrzeuge (Lkw, zulässiges Gesamtgewicht, Euro_Norm, Kraftstoffe)]],Auswahl_Lkw_pkw,EF_Ausbringung[GWP (kg CO2Äq. / Einheit)]) -> 0 | F142: =SUMIF(Eingabe_Ausbringungen[Angaben zu den Fahrzeugen (Lkw: zulässiges Gesamtgewicht, Euro Norm, Kraftstoff)],Result_Ausbringung[[#This Row],[Fahrzeuge (Lkw, zulässiges Gesamtgewicht, Euro_Norm, Kraftstoffe)]],Eingabe_Ausbringungen[Verbrauch Kraftstoffe])*_xlfn.XLOOKUP(Result_Ausbringung[[#This Row],[Fahrzeuge (Lkw, zulässiges Gesamtgewicht, Euro_Norm, Kraftstoffe)]],Auswahl_Lkw_pkw,EF_Ausbringung[AP (mol H+ Äq. / Einheit)]) -> 0 | G142: =IFERROR(SUMIF(Eingabe_Ausbringungen[Angaben zu den Fahrzeugen (Lkw: zulässiges Gesamtgewicht, Euro Norm, Kraftstoff)],Result_Ausbringung[[#This Row],[Fahrzeuge (Lkw, zulässiges Gesamtgewicht, Euro_Norm, Kraftstoffe)]],Eingabe_Ausbringungen[Verbrauch Kraftstoffe])*_xlfn.XLOOKUP(Result_Ausbringung[[#This Row],[Fahrzeuge (Lkw, zulässiges Gesamtgewicht, Euro_Norm, Kraftstoffe)]],Auswahl_Lkw_pkw,EF_Ausbringung[ODP (kg FCKW-11 Äq. / Einheit)]),"k.A.") -> k.A. | H142: =SUMIF(Eingabe_Ausbringungen[Angaben zu den Fahrzeugen (Lkw: zulässiges Gesamtgewicht, Euro Norm, Kraftstoff)],Result_Ausbringung[[#This Row],[Fahrzeuge (Lkw, zulässiges Gesamtgewicht, Euro_Norm, Kraftstoffe)]],Eingabe_Ausbringungen[Verbrauch Kraftstoffe])*_xlfn.XLOOKUP(Result_Ausbringung[[#This Row],[Fahrzeuge (Lkw, zulässiges Gesamtgewicht, Euro_Norm, Kraftstoffe)]],Auswahl_Lkw_pkw,EF_Ausbringung[POCP (kg NMVOC Äq. / Einheit)]) -> 0
C143: Pkw, Erdgas, LPG | D143: =SUMIF(Eingabe_Ausbringungen[Angaben zu den Fahrzeugen (Lkw: zulässiges Gesamtgewicht, Euro Norm, Kraftstoff)],Result_Ausbringung[[#This Row],[Fahrzeuge (Lkw, zulässiges Gesamtgewicht, Euro_Norm, Kraftstoffe)]],Eingabe_Ausbringungen[Verbrauch Kraftstoffe])*_xlfn.XLOOKUP(Result_Ausbringung[[#This Row],[Fahrzeuge (Lkw, zulässiges Gesamtgewicht, Euro_Norm, Kraftstoffe)]],Auswahl_Lkw_pkw,EF_Ausbringung[KEA (MJ / Einheit)]) -> 0 | E143: =SUMIF(Eingabe_Ausbringungen[Angaben zu den Fahrzeugen (Lkw: zulässiges Gesamtgewicht, Euro Norm, Kraftstoff)],Result_Ausbringung[[#This Row],[Fahrzeuge (Lkw, zulässiges Gesamtgewicht, Euro_Norm, Kraftstoffe)]],Eingabe_Ausbringungen[Verbrauch Kraftstoffe])*_xlfn.XLOOKUP(Result_Ausbringung[[#This Row],[Fahrzeuge (Lkw, zulässiges Gesamtgewicht, Euro_Norm, Kraftstoffe)]],Auswahl_Lkw_pkw,EF_Ausbringung[GWP (kg CO2Äq. / Einheit)]) -> 0 | F143: =SUMIF(Eingabe_Ausbringungen[Angaben zu den Fahrzeugen (Lkw: zulässiges Gesamtgewicht, Euro Norm, Kraftstoff)],Result_Ausbringung[[#This Row],[Fahrzeuge (Lkw, zulässiges Gesamtgewicht, Euro_Norm, Kraftstoffe)]],Eingabe_Ausbringungen[Verbrauch Kraftstoffe])*_xlfn.XLOOKUP(Result_Ausbringung[[#This Row],[Fahrzeuge (Lkw, zulässiges Gesamtgewicht, Euro_Norm, Kraftstoffe)]],Auswahl_Lkw_pkw,EF_Ausbringung[AP (mol H+ Äq. / Einheit)]) -> 0 | G143: =SUMIF(Eingabe_Ausbringungen[Angaben zu den Fahrzeugen (Lkw: zulässiges Gesamtgewicht, Euro Norm, Kraftstoff)],Result_Ausbringung[[#This Row],[Fahrzeuge (Lkw, zulässiges Gesamtgewicht, Euro_Norm, Kraftstoffe)]],Eingabe_Ausbringungen[Verbrauch Kraftstoffe])*_xlfn.XLOOKUP(Result_Ausbringung[[#This Row],[Fahrzeuge (Lkw, zulässiges Gesamtgewicht, Euro_Norm, Kraftstoffe)]],Auswahl_Lkw_pkw,EF_Ausbringung[ODP (kg FCKW-11 Äq. / Einheit)]) -> 0 | H143: =SUMIF(Eingabe_Ausbringungen[Angaben zu den Fahrzeugen (Lkw: zulässiges Gesamtgewicht, Euro Norm, Kraftstoff)],Result_Ausbringung[[#This Row],[Fahrzeuge (Lkw, zulässiges Gesamtgewicht, Euro_Norm, Kraftstoffe)]],Eingabe_Ausbringungen[Verbrauch Kraftstoffe])*_xlfn.XLOOKUP(Result_Ausbringung[[#This Row],[Fahrzeuge (Lkw, zulässiges Gesamtgewicht, Euro_Norm, Kraftstoffe)]],Auswahl_Lkw_pkw,EF_Ausbringung[POCP (kg NMVOC Äq. / Einheit)]) -> 0
C144: Summe | D144: =SUBTOTAL(109,Result_Ausbringung[Kumulierter Energie Aufwand (MJ / funktionelle Einheit)]) -> 0 | E144: =SUBTOTAL(109,Result_Ausbringung[Treibhauspotenzial (kg CO2-Äq / funktionelle Einheit)]) -> 0 | F144: =SUBTOTAL(109,Result_Ausbringung[Versauerungspotenzial (mol H+-Äq/ funktionelle Einheit)]) -> 0 | G144: =SUBTOTAL(109,Result_Ausbringung[Ozonabbaupotenzial (kg CFC11-Äq / funktionelle Einheit)]) -> 0 | H144: =SUBTOTAL(109,Result_Ausbringung[Photooxidantienpotenzial (kg NMVOC-Äq / funktionelle Einheit)]) -> 0
B146: 2.5 | C146: =Ergebnis_eigene_Wärmeerzeugung -> Wärmeverbrauch in der Meisterei / im Bauhof (Bereitstellung Wärme, eigene Wärmeerzeugung)
C147: Energieträger / Einheit der Energieträger | D147: Kumulierter Energie Aufwand (MJ / funktionelle Einheit) | E147: Treibhauspotenzial (kg CO2-Äq / funktionelle Einheit) | F147: Versauerungspotenzial (mol H+-Äq/ funktionelle Einheit) | G147: Ozonabbaupotenzial (kg CFC11-Äq / funktionelle Einheit) | H147: Photooxidantienpotenzial (kg NMVOC-Äq / funktionelle Einheit)
C148: Erdgas | D148: ='Eingabe spezifische Daten'!$F38*Emissionsfaktoren!D$89 -> 0 | E148: ='Eingabe spezifische Daten'!$F38*Emissionsfaktoren!E$89 -> 0 | F148: ='Eingabe spezifische Daten'!$F38*Emissionsfaktoren!F$89 -> 0 | G148: ='Eingabe spezifische Daten'!$F38*Emissionsfaktoren!G$89 -> 0 | H148: ='Eingabe spezifische Daten'!$F38*Emissionsfaktoren!H$89 -> 0
C149: Heizöl | D149: ='Eingabe spezifische Daten'!$F39*Emissionsfaktoren!D$90 -> 0 | E149: ='Eingabe spezifische Daten'!$F39*Emissionsfaktoren!E$90 -> 0 | F149: ='Eingabe spezifische Daten'!$F39*Emissionsfaktoren!F$90 -> 0 | G149: ='Eingabe spezifische Daten'!$F39*Emissionsfaktoren!G$90 -> 0 | H149: ='Eingabe spezifische Daten'!$F39*Emissionsfaktoren!H$90 -> 0
C150: Holzhackschnitzel | D150: ='Eingabe spezifische Daten'!$F40*Emissionsfaktoren!D$91 -> 0 | E150: ='Eingabe spezifische Daten'!$F40*Emissionsfaktoren!E$91 -> 0 | F150: ='Eingabe spezifische Daten'!$F40*Emissionsfaktoren!F$91 -> 0 | G150: ='Eingabe spezifische Daten'!$F40*Emissionsfaktoren!G$91 -> 0 | H150: ='Eingabe spezifische Daten'!$F40*Emissionsfaktoren!H$91 -> 0
C151: Holzpellets | D151: ='Eingabe spezifische Daten'!$F41*Emissionsfaktoren!D$92 -> 0 | E151: ='Eingabe spezifische Daten'!$F41*Emissionsfaktoren!E$92 -> 0 | F151: ='Eingabe spezifische Daten'!$F41*Emissionsfaktoren!F$92 -> 0 | G151: ='Eingabe spezifische Daten'!$F41*Emissionsfaktoren!G$92 -> 0 | H151: ='Eingabe spezifische Daten'!$F41*Emissionsfaktoren!H$92 -> 0
C152: Biogas | D152: ='Eingabe spezifische Daten'!$F42*Emissionsfaktoren!D$93 -> 0 | E152: ='Eingabe spezifische Daten'!$F42*Emissionsfaktoren!E$93 -> 0 | F152: ='Eingabe spezifische Daten'!$F42*Emissionsfaktoren!F$93 -> 0 | G152: ='Eingabe spezifische Daten'!$F42*Emissionsfaktoren!G$93 -> 0 | H152: ='Eingabe spezifische Daten'!$F42*Emissionsfaktoren!H$93 -> 0
C153: Solarthermie (eigene Kollektoren) | D153: ='Eingabe spezifische Daten'!$F43*Emissionsfaktoren!D$94 -> 0 | E153: ='Eingabe spezifische Daten'!$F43*Emissionsfaktoren!E$94 -> 0 | F153: ='Eingabe spezifische Daten'!$F43*Emissionsfaktoren!F$94 -> 0 | G153: ='Eingabe spezifische Daten'!$F43*Emissionsfaktoren!G$94 -> 0 | H153: ='Eingabe spezifische Daten'!$F43*Emissionsfaktoren!H$94 -> 0
C154: Summe | D154: =SUBTOTAL(109,Result_Eigen_Wärmebereitstellung[Kumulierter Energie Aufwand (MJ / funktionelle Einheit)]) -> 0 | E154: =SUBTOTAL(109,Result_Eigen_Wärmebereitstellung[Treibhauspotenzial (kg CO2-Äq / funktionelle Einheit)]) -> 0 | F154: =SUBTOTAL(109,Result_Eigen_Wärmebereitstellung[Versauerungspotenzial (mol H+-Äq/ funktionelle Einheit)]) -> 0 | G154: =SUBTOTAL(109,Result_Eigen_Wärmebereitstellung[Ozonabbaupotenzial (kg CFC11-Äq / funktionelle Einheit)]) -> 0 | H154: =SUBTOTAL(109,Result_Eigen_Wärmebereitstellung[Photooxidantienpotenzial (kg NMVOC-Äq / funktionelle Einheit)]) -> 0
B156: 2.6 | C156: Wasserverbrauch für Soleeigenherstellung und für Fahrzeug- und Streumaschinenreinigung
C157: Wasserverbrauch | D157: Liter / funktionelle Einheit | E157: Anteil in %
C158: Leitungswasser | D158: =Eingabe_Leitungswasser -> 0 | E158: =D158/$D$160 -> 
C159: Niederschlagswasser | D159: =Eingabe_Regenwasser -> 0 | E159: =D159/$D$160 -> 
C160: Summe | D160: =SUM(D158:D159) -> 0 | E160: =D160/$D$160 -> 
B164: 3. Grafische Darstellung: Anteile der einzelnen Prozesse am Gesamtergebnis der einzelen Wirkungskategorien [Prozent]
B225: 4. Ergebnisse in PDF umwandeln

Sheet Emissionsfaktoren
B9: Emissionsfaktoren zur Herstellung der Streumittel (trocken und Sole) | L9: Ja
L10: Nein
C11: Trockensalz | D11: KEA (MJ / Tonne) | E11: GWP (kg CO2Äq. / Tonne) | F11: AP (mol H+ Äq. / Tonne) | G11: ODP (kg FCKW-11 Äq. / Tonne) | H11: POCP (kg NMVOC Äq. / Tonne) | I11: Quelle | K11: konzentrierte Fremdsole
C12: Natriumchlorid (aus Steinsalz) | D12: 194.90 | E12: 8.01 | F12: 1.40E-02 | G12: 2.33E-10 | H12: 1.32E-02 | I12: Eigene Modellierung basierend auf [3], Hintergrunddatenbank: ÖkobauDat, ELCD, Gemis 5.1 | K12: anwendungsfertige Fremdsole
C13: Natriumchlorid (aus Siedesalz) | D13: 2764.59 | E13: 123.16 | F13: 1.50E-01 | G13: 4.62E-09 | H13: 1.14E-01 | I13: Eigene Modellierung basierend auf [3], Hintergrunddatenbank: ÖkobauDat, ELCD, Gemis 5.1 | K13: voreingestellter Betreuungsfaktor
C14: Natriumchlorid (aus Meersalz) | D14: 60.19 | E14: 3.04 | F14: 1.23E-02 | G14: 7.15E-08 | H14: 6.75E-03 | I14: Eigene Modellierung basiert auf [3], Hintergrunddatenbank: ÖkobauDat, ELCD, Gemis 5.1 | K14: Nutzereingabe
C15: Calciumchlorid (Prills, 100%) | D15: 18977.13 | E15: 1250.26 | F15: 1.09E+00 | G15: 4.62E-08 | H15: 8.14E-01 | I15: Eigene Modellierung basierend auf [6] und [3]; Hintergrunddatenbank: ÖkobauDat, ELCD, Gemis 5.1 | L15: Natriumchlorid-Sole
C16: Calciumchlorid (Flakes 76-82%) | D16: 12404.68 | E16: 845.01 | F16: 7.81E-01 | G16: 3.61E-08 | H16: 5.53E-01 | I16: Eigene Modellierung basierend auf [6] und [3]; Hintergrunddatenbank: ÖkobauDat, ELCD, Gemis 5.1 | L16: Magnesiumchlorid-Sole
L17: Calciumchlorid-Sole
C18: Sole | D18: KEA (MJ / Tonne) | E18: GWP (kg CO2Äq. / Tonne) | F18: AP (mol H+ Äq. / Tonne) | G18: ODP (kg FCKW-11 Äq. / Tonne) | H18: POCP (kg NMVOC Äq. / Tonne) | I18: Quelle | L18: Natiumchlorid (aus Steinsalz)
C19: Sole_NaCl_Steinsalz, konzentrierte Fremdsole | D19: =D12*Konzentration_NaCl_konz_Fremdsole+(1-Konzentration_NaCl_konz_Fremdsole)*EF_KEA_Wasser*1000 -> 53.37 | E19: =E12*Konzentration_NaCl_konz_Fremdsole+(1-Konzentration_NaCl_konz_Fremdsole)*EF_GWP_Wasser*1000 -> 2.55 | F19: =F12*Konzentration_NaCl_konz_Fremdsole+(1-Konzentration_NaCl_konz_Fremdsole)*EF_AP_Wasser*1000 -> 5.10E-03 | G19: =G12*Konzentration_NaCl_konz_Fremdsole+(1-Konzentration_NaCl_konz_Fremdsole)*EF_ODP_Wasser*1000 -> 7.23E-09 | H19: =H12*Konzentration_NaCl_konz_Fremdsole+(1-Konzentration_NaCl_konz_Fremdsole)*EF_POCP_Wasser*1000 -> 4.40E-03 | I19: Berechnet auf der Basis von Natriumclorid, trocken, aus Steinsalz. Annahme Konzentration: 26% | L19: Natriumchlorid (aus Siedesalz)
C20: Sole_NaCl_Siedesalz, konzentrierte Fremdsole | D20: 53.05 | E20: 2.56 | F20: 1.04E-02 | G20: 7.08E-08 | H20: 4.46E-03 | I20: Eigene Modellierung basierend auf dem Prozessschritt Solegewinnung aus der Siedesalz-Herstellung | L20: Natriumchlorid (aus Meersalz)
C21: Sole_NaCl, konzentrierte Fremdsole | D21: =AVERAGE(D19:D20) -> 53.21 | E21: =AVERAGE(E19:E20) -> 2.55 | F21: =AVERAGE(F19:F20) -> 7.72E-03 | G21: =AVERAGE(G19:G20) -> 3.90E-08 | H21: =AVERAGE(H19:H20) -> 4.43E-03 | I21: Mittelwert von Sole aus Steinsalz und Sole aus Siedesalz | L21: Calciumchlorid (Prills, 100%)
C22: Sole_CaCl2, konzentrierte Fremdsole | D22: 3391.45 | E22: 236.38 | F22: 2.77E-01 | G22: 1.50E-08 | H22: 1.69E-01 | I22: Eigene Modellierung basierend auf [6] und [3]; Hintergrunddatenbank: ÖkobauDat, ELCD, Gemis 5.1 | L22: Calciumchlorid (Flakes 76-82%)
C23: Sole_MgCl2, konzentrierte Fremdsole | D23: 53.05 | E23: 2.56 | F23: 1.04E-02 | G23: 7.08E-08 | H23: 4.46E-03 | I23: Näherung, da kein Datensatz zu MgCl2-Sole identifiziert werden konnte: wie Sole_NaCl, konzentrierte Fremdsole
C25: Annahmen zur konzentrierten Fremdsole
C26: Sole_NaCl, konzentrierte Fremdsole | D26: 26%
C27: Sole_CaCl2, konzentrierte Fremdsole | D27: 33%
C28: Sole_MgCl2, konzentrierte Fremdsole | D28: 33%
B32: Emissionsfakoren für den Antransport der Streumittel
C34: Transportmittel | D34: KEA (MJ / tkm) | E34: GWP (kg CO2Äq. / tkm) | F34: AP (mol H+ Äq. / tkm) | G34: ODP (kg FCKW-11 Äq. / tkm) | H34: POCP (kg NMVOC Äq. / tkm) | I34: Quelle
C35: Bahn | D35: 0.47 | E35: 0.027 | F35: 2.80E-04 | G35: 2.47E-09 | H35: 2.50E-04 | I35: Mittelwert aus [15] und [16]
C36: Binnenschiff | D36: 0.37 | E36: 0.027 | F36: 3.60E-04 | G36: 3.86E-11 | H36: 4.60E-04 | I36: [14]
C37: Massengutfrachter | D37: 0.03 | E37: 0.002 | F37: 9.91E-05 | G37: 3.07E-12 | H37: 6.37E-05 | I37: [13]
C38: Containerschiff | D38: 0.17 | E38: 0.01 | F38: 5.30E-04 | G38: 1.65E-11 | H38: 3.40E-04 | I38: [12]
C39: Lkw >14-26t, Euro 3 | D39: 2.54 | E39: 0.17 | F39: 1.18E-03 | G39: 3.30E-11 | H39: 1.46E-03 | I39: Direkte Emissionen und Kraftstoffverbrauch stammen aus [24]. Produktion des Diesels aus [10]
C40: Lkw >14-26t, Euro 4 | D40: 2.37 | E40: 0.16 | F40: 9.04E-04 | G40: 3.08E-11 | H40: 1.06E-03 | I40: Direkte Emissionen und Kraftstoffverbrauch stammen aus [24]. Produktion des Diesels aus [10]
C41: Lkw >14-26t, Euro 5 | D41: 2.20 | E41: 0.15 | F41: 9.10E-04 | G41: 2.86E-11 | H41: 1.09E-03 | I41: Direkte Emissionen und Kraftstoffverbrauch stammen aus [24]. Produktion des Diesels aus [10]
C42: Lkw >14-26t, Euro 6 | D42: 2.00 | E42: 0.14 | F42: 2.84E-04 | G42: 2.59E-11 | H42: 2.31E-04 | I42: Direkte Emissionen und Kraftstoffverbrauch stammen aus [24]. Produktion des Diesels aus [10]
C43: Lkw >7.5-14t, Euro 3 | D43: 3.67 | E43: 0.25 | F43: 1.61E-03 | G43: 4.76E-11 | H43: 1.98E-03 | I43: Direkte Emissionen und Kraftstoffverbrauch stammen aus [24]. Produktion des Diesels aus [10]
C44: Lkw >7.5-14t, Euro 4 | D44: 3.33 | E44: 0.22 | F44: 1.23E-03 | G44: 4.32E-11 | H44: 1.44E-03 | I44: Direkte Emissionen und Kraftstoffverbrauch stammen aus [24]. Produktion des Diesels aus [10]
C45: Lkw >7.5-14t, Euro 5 | D45: 3.07 | E45: 0.21 | F45: 1.10E-03 | G45: 3.98E-11 | H45: 1.28E-03 | I45: Direkte Emissionen und Kraftstoffverbrauch stammen aus [24]. Produktion des Diesels aus [10]
C46: Lkw >7.5-14t, Euro 6 | D46: 2.79 | E46: 0.19 | F46: 3.59E-04 | G46: 3.63E-11 | H46: 2.69E-04 | I46: Direkte Emissionen und Kraftstoffverbrauch stammen aus [24]. Produktion des Diesels aus [10]
B49: Emissionsfakoren für die Ausbringung (Bereitstellung der Kraftstoffe und direkte Emissionen des Fahrzeugbetriebes)
C50: Die Emissionsfaktoren bilden die Emissionen aus der Herstellung der Kraftstoffe und die direkten Emissionen des Fahrzeugbetriebes bei der Ausbringung einschließlich Leer- und Kontrollfahrten ab
C52: Fahrzeug (Fahrzeugtyp, zulässiges Gesamtgewicht, Abgasnorm, Kraftstoff) | D52: Einheit | E52: KEA (MJ / Einheit) | F52: GWP (kg CO2Äq. / Einheit) | G52: AP (mol H+ Äq. / Einheit) | H52: ODP (kg FCKW-11 Äq. / Einheit) | I52: POCP (kg NMVOC Äq. / Einheit) | J52: Quelle
C53: Lkw >14-26t, Euro 3, Diesel | D53: Liter | E53: 44.89 | F53: 3.00 | G53: 2.08E-02 | H53: 5.83E-10 | I53: 2.58E-02 | J53: umgerechnet auf Liter auf Basis von Emissionsfaktoren in tkm
C54: Lkw >14-26t, Euro 4, Diesel | D54: Liter | E54: 44.89 | F54: 3.01 | G54: 1.71E-02 | H54: 5.83E-10 | I54: 2.02E-02 | J54: umgerechnet auf Liter auf Basis von Emissionsfaktoren in tkm
C55: Lkw >14-26t, Euro 5, Diesel | D55: Liter | E55: 44.89 | F55: 3.04 | G55: 1.86E-02 | H55: 5.83E-10 | I55: 2.22E-02 | J55: umgerechnet auf Liter auf Basis von Emissionsfaktoren in tkm
C56: Lkw >14-26t, Euro 6, Diesel | D56: Liter | E56: 44.89 | F56: 3.04 | G56: 6.37E-03 | H56: 5.83E-10 | I56: 5.19E-03 | J56: umgerechnet auf Liter auf Basis von Emissionsfaktoren in tkm
C57: Lkw / Unimog >7.5-14t, Euro 3, Diesel | D57: Liter | E57: 44.89 | F57: 3.00 | G57: 1.97E-02 | H57: 5.83E-10 | I57: 2.42E-02 | J57: umgerechnet auf Liter auf Basis von Emissionsfaktoren in tkm
C58: Lkw / Unimog >7.5-14t, Euro 4, Diesel | D58: Liter | E58: 44.89 | F58: 3.01 | G58: 1.66E-02 | H58: 5.83E-10 | I58: 1.94E-02 | J58: umgerechnet auf Liter auf Basis von Emissionsfaktoren in tkm
C59: Lkw / Unimog >7.5-14t, Euro 5, Diesel | D59: Liter | E59: 44.89 | F59: 3.04 | G59: 1.61E-02 | H59: 5.83E-10 | I59: 1.87E-02 | J59: umgerechnet auf Liter auf Basis von Emissionsfaktoren in tkm
C60: Lkw / Unimog >7.5-14t, Euro 6, Diesel | D60: Liter | E60: 44.89 | F60: 3.04 | G60: 5.77E-03 | H60: 5.83E-10 | I60: 4.33E-03 | J60: umgerechnet auf Liter auf Basis von Emissionsfaktoren in tkm
C61: Unimog ≤7,5t, Euro 3, Diesel | D61: Liter | E61: 44.89 | F61: 3.00 | G61: 2.07E-02 | H61: 5.83E-10 | I61: 2.57E-02 | J61: Direkte Emissionen und Kraftstoffverbrauch stammen aus [24]. Produktion des Diesels aus [10]
C62: Unimog ≤7,5t, Euro 4, Diesel | D62: Liter | E62: 44.89 | F62: 3.01 | G62: 1.69E-02 | H62: 5.83E-10 | I62: 1.97E-02 | J62: Direkte Emissionen und Kraftstoffverbrauch stammen aus [24]. Produktion des Diesels aus [10]
C63: Unimog ≤7,5t, Euro 5, Diesel | D63: Liter | E63: 44.89 | F63: 3.03 | G63: 1.78E-02 | H63: 5.83E-10 | I63: 2.09E-02 | J63: Direkte Emissionen und Kraftstoffverbrauch stammen aus [24]. Produktion des Diesels aus [10]
C64: Unimog ≤7,5t, Euro 6, Diesel | D64: Liter | E64: 44.89 | F64: 3.03 | G64: 5.36E-03 | H64: 5.83E-10 | I64: 3.78E-03 | J64: Direkte Emissionen und Kraftstoffverbrauch stammen aus [24]. Produktion des Diesels aus [10]
C65: Lkw, Biodiesel | D65: Liter | E65: 41.91 | F65: 1.41 | G65: 3.02E-02 | H65: k.A. | I65: 4.64E-03 | J65: Direkte Emissionen stammen aus [8]. Produktion des Kraftstoffes aus [25]
C66: Pkw, Biodiesel | D66: Liter | E66: =E65 -> 41.91 | F66: =F65 -> 1.41 | G66: =G65 -> 3.02E-02 | H66: =H65 -> k.A. | I66: =I65 -> 4.64E-03 | J66: Kraftstoffbezogen, keinen Unterschied zwischen Lkw und Pkw
C67: Pkw, Diesel | D67: Liter | E67: 44.89 | F67: 3.04 | G67: 1.33E-02 | H67: 5.83E-10 | I67: 1.45E-02 | J67: Direkte Emissionen stammen aus [24]. Produktion des Kraftstoffes aus [10]
C68: Pkw, Benzin | D68: Liter | E68: 42.04 | F68: 2.90 | G68: 5.96E-03 | H68: 7.43E-10 | I68: 4.43E-03 | J68: Direkte Emissionen stammen aus [24]. Produktion des Kraftstoffes aus [26]
C69: Pkw, Erdgas, CNG | D69: kg | E69: 51.40 | F69: 3.58 | G69: 5.78E-03 | H69: k.A. | I69: 6.52E-03 | J69: Direkte Emissionen stammen aus [24]. Produktion des Kraftstoffes aus [25]
C70: Pkw, Erdgas, LPG | D70: kg | E70: 53.81 | F70: 3.91 | G70: 7.37E-03 | H70: 7.51E-13 | I70: 7.98E-03 | J70: Direkte Emissionen stammen aus [24]. Produktion des Kraftstoffes aus [27]
B73: Emissionsfakoren der Energiebereitstellung
C75: Energie | D75: KEA (MJ / kWh) | E75: GWP (kg CO2Äq. / kWh) | F75: AP (mol H+ Äq. / kWh) | G75: ODP (kg FCKW-11 Äq. / kWh) | H75: POCP (kg NMVOC Äq. / kWh) | I75: Quelle
C76: Strommix | D76: 11.96 | E76: 0.40 | F76: 6.2E-04 | G76: 1.4E-11 | H76: 4.8E-04 | I76: [23]
C78: Energie | D78: KEA (MJ / MJ) | E78: GWP (kg CO2Äq. / MJ) | F78: AP (mol H+ Äq. / MJ) | G78: ODP (kg FCKQ-11 Äq. / MJ) | H78: POCP (kg NMVOC Äq. / MJ) | I78: Quelle
C79: Wärmemix | D79: 1.22 | E79: 0.07 | F79: 8.3E-05 | G79: 1.7E-14 | H79: 7.8E-05 | I79: [2]
C81: Eigene Stromerzeugung
C83: Energieträger | D83: KEA (MJ / kWh) | E83: GWP (kg CO2Äq. / kWh) | F83: AP (mol H+ Äq. / kWh) | G83: ODP (kg FCKW-11 Äq. / kWh) | H83: POCP (kg NMVOC Äq. / kWh) | I83: Quelle
C84: Photovoltaik | D84: 0.782 | E84: 0.073 | F84: 4.94E-04 | G84: 6.53E-09 | H84: 2.88E-04 | I84: Umrechnung basiert auf [7]
C86: Eigene Wärmebereitsstellung
C88: Energieträger / Einheit der Energieträger | D88: KEA (MJ / Einheit) | E88: GWP (kg CO2Äq. / Einheit) | F88: AP (mol H+ Äq. / Einheit) | G88: ODP (kg FCKW-11 Äq. / Einheit) | H88: POCP (kg NMVOC Äq. / Einheit) | I88: Quelle
C89: Erdgas / m³ | D89: 43.92 | E89: 2.58 | F89: 1.16E-03 | G89: 1.81E-13 | H89: 1.50E-03 | I89: Eigene Berechnung aus [8] und [17]
C90: Öl / Liter | D90: 50.81 | E90: 3.66 | F90: 2.81E-03 | G90: 6.12E-13 | H90: 3.10E-03 | I90: Eigene Berechnung aus [8] und [18]
C91: Holzhackschnitzel / Tonne | D91: 22783.57 | E91: 70.19 | F91: 1.90E+00 | G91: 1.93E-10 | H91: 2.62E+00 | I91: Eigene Berechnung aus [8] und [19]
C92: Holzpellets / Tonne | D92: 40002.35 | E92: 138.82 | F92: 2.42E+00 | G92: 1.17E-09 | H92: 3.32E+00 | I92: Eigene Berechnung aus [8] und [20]
C93: Biogas / m³ | D93: 149.14 | E93: 1.49 | F93: 2.38E-02 | G93: 2.79E-12 | H93: 1.35E-02 | I93: Eigene Berechnung aus [8] und [21]
C94: Solarthermie (eigene Kollektoren) / MJ Endenergie | D94: 0.045 | E94: 0.003 | F94: 1.47E-05 | G94: 7.12E-15 | H94: 6.18E-06 | I94: Eigene Berechnung basierend auf eigenen Annahmen und [22]
B98: Emissionsfaktoren zur Bereitstellung von Wasser, Hydrauliköl / Motoröl und Diesel
C100: Bezeichnung | D100: KEA (MJ / Liter) | E100: GWP (kg CO2Äq. / Liter) | F100: AP (mol H+ Äq. / Liter) | G100: ODP (kg CFC11 Äq. / Liter) | H100: POCP (kg NMVOC Äq. / Liter) | I100: Quelle
C101: Leitungswasser | D101: 0.0036 | E101: 0.0006 | F101: 1.97E-06 | G101: 9.69E-12 | H101: 1.31E-06 | I101: [9]
C102: Hydrauliköl / Motoröl | D102: 46.37 | E102: 0.38 | F102: 2.95E-03 | G102: 6.16E-10 | H102: 1.59E-03 | I102: [11]
C103: Diesel | D103: 44.89 | E103: 0.40 | F103: 3.66E-03 | G103: 5.80E-10 | H103: 1.59E-03 | I103: [10]
B107: Sonstige hinterlegte Daten
B108: 1 | C108: Voreingestellte Betreuungsfaktoren basieren auf TAUSALA; Quelle: [4]
C109: Straßenklasse | D109: Betreuungsfaktor
C110: Bundesautobahnen | D110: 1.00
C111: Bundesstraßen | D111: 0.80
C112: Landes-, Staatsstraßen | D112: 0.67
C113: Kreisstraßen | D113: 0.67

Sheet Quellen
B5: Quellen- und Literaturverzeichnis
B6: [1] | C6: Smith, C., Z.R.J. Nicholls, K. Armour, W. Collins, P. Forster, M. Meinshausen, M.D. Palmer, M. Watanabe (2021): The Earth’s Energy Budget, Climate Feedbacks, and Climate Sensitivity Supplementary Material. In Climate Change 2021: The Physical Science Basis. Contribution of Working Group I to the Sixth Assessment Report of the Intergovernmental Panel on Climate Change [Masson-Delmotte, V., P. Zhai, A. Pirani, S.L. Connors, C. Péan, S. Berger, N. Caud, Y. Chen, L. Goldfarb, M.I. Gomis, M. Huang, K. Leitzell, E. Lonnoy, J.B.R. Matthews, T.K. Maycock, T. Waterfield, O. Yelekçi, R. Yu, and B. Zhou (eds.)]. Available from https://www.ipcc.ch/; https://www.ipcc.ch/report/ar6/wg1/downloads/report/IPCC_AR6_WGI_Chapter07_SM.pdf
B7: [2] | C7: ÖKOBAUDAT: Fernwärme Mix Deutschland, https://oekobaudat.de/OEKOBAU.DAT/datasetdetail/process.xhtml?uuid=63aac37f-e1bc-4e1d-8338-beb5f78fa7e3&version=20.23.050&stock=OBD_2023_I&lang=de
B8: [3] | C8: Stratmann, Britta; Quack, Dietlinde (2009): Vergleichende Ökobilanz drei verschiedener Auftausalze: Steinsalz, Siedesalz und Meersalz. Im Auftrag der Südsalz GmbH, Heilbronn. Unter Mitarbeit von Franz Götzfried, Florian Knappe, Gero Morlock und Eörs Kondorosy. Öko-Institut e. V. Freiburg
B9: [4] | C9: BMVI (2019): Leitfaden für die Dimensionierung von Tausalzlagern Leitfaden TAUSALA. Hrsg: Bundesministerium für Verkehr und digitale Infrastruktur. Veröffentlicht auf BASt-Homepage, Link: https://www.bast.de/DE/Verkehrstechnik/Fachthemen/Daten/tausala-leitfaden.pdf?__blob=publicationFile&v=4 zuletzt abgerufen am 03.10.2023
B10: [5] | C10: EMPFEHLUNG (EU) 2021/2279 DER KOMMISSION vom 15. Dezember 2021 zur Anwendung der Methoden für die Berechnung des Umweltfußabdrucks zur Messung und Offenlegung der Umweltleistung von Produkten und Organisationen entlang ihres Lebenswegs, https://eur-lex.europa.eu/legal-content/EN/TXT/?uri=CELEX%3A32021H2279
B11: [6] | C11: European Commission, lntegrated Pollution Prevention and Control, Reference Document on Best Available Techniques for the Manufacture of Large Volume lnorganic Chemicals - Solids and Others industry, 2007
B12: [7] | C12: Environmental product declaration, https://www.viridiansolar.com/assets/common/Clearline-fusion-module-EPD-Report.pdf
B13: [8] | C13: Emissionsbilanz erneuerbarer Energieträger Bestimmung der vermiedenen Emissionen im Jahr 2020, Dr. Thomas Lauf, Michael Memmler, Sven Schneider, https://www.umweltbundesamt.de/publikationen/emissionsbilanz-erneuerbarer-energietraeger-2020
B14: [9] | C14: Fazio, Simone; Pennington, David (2005): Drinking water; water purification treatment; production mix, at plant; from groundwater (Location: RER). European Commission, Joint Research Centre (JRC) [Dataset] PID: http://data.europa.eu/89h/jrc-eplca-db009013-338f-11dd-bd11-0800200c9a66
B15: [10] | C15: Fazio, Simone; Pennington, David (2008): Diesel mix at refinery; from crude oil and bio components, fuel supply; production mix, at refinery; 10 ppm sulphur, 5.75 wt.% bio components (Location: EU-27). European Commission, Joint Research Centre (JRC) [Dataset] PID: http://data.europa.eu/89h/jrc-eplca-1ea201ab-eec9-4356-93d8-3a4905ea35cd
B16: [11] | C16: Fazio, Simone; Pennington, David (2008): Light fuel oil at refinery; from crude oil, fuel supply; production mix, at refinery; 0.1 wt.% sulphur (Location: EU-27). European Commission, Joint Research Centre (JRC) [Dataset] PID: http://data.europa.eu/89h/jrc-eplca-5214312b-3726-4af4-b804-2b1556b94d54
B17: [12] | C17: Fazio, Simone; Pennington, David (2005): Container ship ocean; technology mix; 27.500 dwt pay load capacity (Location: RER). European Commission, Joint Research Centre (JRC) [Dataset] PID: http://data.europa.eu/89h/jrc-eplca-7d4c6dee-3d6b-4fbf-a496-2354450a1a14
B18: [13] | C18: Fazio, Simone; Pennington, David (2005): Bulk carrier ocean; technology mix; 100.000-200.000 dwt (Location: RER). European Commission, Joint Research Centre (JRC) [Dataset] PID: http://data.europa.eu/89h/jrc-eplca-ee57e8ac-17cd-4538-be62-35d1095a30c2
B19: [14] | C19: Fazio, Simone; Pennington, David (2005): Barge; technology mix; 1.228 t pay load capacity (Location: RER). European Commission, Joint Research Centre (JRC) [Dataset] PID: http://data.europa.eu/89h/jrc-eplca-09aa1e7b-1d7d-4a7c-8dde-ec6d40022fa1
B20: [15] | C20: Fazio, Simone; Pennington, David (2005): Rail transport; technology mix, electricity driven, cargo (Location: RER). European Commission, Joint Research Centre (JRC) [Dataset] PID: http://data.europa.eu/89h/jrc-eplca-9d66aabb-906f-45f6-b3f3-6d002cae096d
B21: [16] | C21: Fazio, Simone; Pennington, David (2005): Rail transport; technology mix, diesel driven, cargo (Location: RER). European Commission, Joint Research Centre (JRC) [Dataset] PID: http://data.europa.eu/89h/jrc-eplca-db009023-338f-11dd-bd11-0800200c9a66
B22: [17] | C22: ÖKOBAUDAT: Nutzung - 1 kWh Endenergie aus Gas Niedertemperatur (entspr. GEG), https://oekobaudat.de/OEKOBAU.DAT/datasetdetail/process.xhtml?uuid=a0318d13-5658-4f05-bdf6-a2c2ce410e04&version=20.23.050&stock=OBD_2023_I&lang=de
B23: [18] | C23: ÖKOBAUDAT: Nutzung - 1 kWh Endenergie aus Öl Niedertemperatur und Brennwert (entspr. GEG), https://oekobaudat.de/OEKOBAU.DAT/datasetdetail/process.xhtml?uuid=0453f1ec-971a-472d-89ee-4d1dd3e98e0c&version=20.23.050&stock=OBD_2023_I&lang=de
B24: [19] | C24: ÖKOBAUDAT: Nutzung - 1 kWh Endenergie aus Hackschnitzeln (entspr. GEG), https://oekobaudat.de/OEKOBAU.DAT/datasetdetail/process.xhtml?uuid=5f167dab-507c-4a05-862f-951f177c846a&version=20.23.050&stock=OBD_2023_I&lang=de
B25: [20] | C25: ÖKOBAUDAT: Nutzung - 1 kWh Endenergie aus Holzpellets (entspr. GEG), https://oekobaudat.de/OEKOBAU.DAT/datasetdetail/process.xhtml?uuid=dfa79627-6389-4cfd-9000-58835bb5dd6d&version=20.23.050&stock=OBD_2023_I&lang=de
B26: [21] | C26: ÖKOBAUDAT: Biogas (1 kg), https://oekobaudat.de/OEKOBAU.DAT/datasetdetail/process.xhtml?uuid=896ea45c-a831-46a4-883f-d4bb4f1d661e&version=20.23.050&stock=OBD_2023_I&lang=de
B27: [22] | C27: ÖKOBAUDAT: Solaranlage Flachkollektor; https://oekobaudat.de/OEKOBAU.DAT/datasetdetail/process.xhtml?uuid=ad5f4666-dffa-45d4-abe4-fb5ab74d63e1&version=20.23.050&stock=OBD_2023_I&lang=de
B28: [23] | C28: ÖKOBAUDAT: Strom für Gebäudebetrieb 2021, https://oekobaudat.de/OEKOBAU.DAT/datasetdetail/process.xhtml?uuid=c1ccc7a6-09a5-4b36-b6f8-1af3cc43e5b8&version=20.23.050&stock=OBD_2023_I&lang=de
B29: [24] | C29: Handbuch für Emissionsfaktoren (HBEFA) Version 4.2, Infras, 2022, https://www.hbefa.net/d/
B30: [25] | C30: GEMIS 5.1, https://iinas.org/
B31: [26] | C31: Fazio, Simone; Pennington, David (2008): Gasoline mix (regular) at refinery; from crude oil and bio components, fuel supply; production mix, at refinery; 10 ppm sulphur, 5.75 wt.% bio components (Location: EU-27). European Commission, Joint Research Centre (JRC) [Dataset] PID: http://data.europa.eu/89h/jrc-eplca-f44f98ce-1d4c-4267-9d06-c7686b9488a3
B32: [27] | C32: ÖKOBAUDAT:Liquefied petroleum gas (LPG; 70% propane; 30% butane) https://oekobaudat.de/OEKOBAU.DAT/datasetdetail/process.xhtml?uuid=649d96f3-73b2-41e3-950a-3cd259f7d8ba&version=20.23.050&stock=OBD_2023_I&lang=de
